Workbook

Sheet Инструкция
B2: ="Код шаблона: " & Getcode() -> Код шаблона: ELPASS.FORMS.BH
B3: ="Версия " & Getversion() & " от " & GetTemplateDate() -> Версия 1.0 от 01.10.2017
B5: =GetTemplateName() -> Формы бухгалтерского баланса, отчета о финансовых результатах и отчета о целевом использовании средств
E7: • На рабочем месте должна быть установлена полная версия приложения Microsoft Office Excel 2007 SP3, 2010, 2013, 2016. Microsoft Office Excel 2003 или иные офисные пакеты не поддерживаются. • Для корректной работы отчёта требуется включить макросы и выбрать низкий уровень безопасности: В меню MS Excel 2007/2010: Параметры Excel | Центр управления безопасностью | Параметры центра управления безопасностью | Параметры макросов | Включить все макросы | ОК • Не рекомендуется снимать защиту с листов и каким-либо образом модифицировать защищаемые формулы и расчётные поля. В случае внесения несанкционированных изменений отчёт будет отклонён системой • При сохранении не следует выбирать формат XLSX (Книга Excel), так как в указанном формате макросы, необходимые для работы отчёта, безвозвратно удаляются, а также форматы XLS или XLSB. Должен использоваться формат XLSM
E23: A | F23: - не обязательные для заполнения | O23: A | P23: - обязательные для заполнения
E24: A | F24: - заполняемые автоматически | O24: A | P24: - незаполняемые поля
E37: • При сохранении отчета осуществляется проверка корректности данных, в том числе на наличие значений в ячейках, обязательных для заполнения • Если какая-то ячейка не удовлетворяет условию проверки, на лист «Ошибки и предупреждения» добавляется гиперссылка на данную ячейку и указывается причина ошибки • В колонке «Статус» для каждого сообщения возможны 2 значения: ошибка и предупреждение • При наличии сообщений со статусом «Ошибка» отчет будет отклонён системой • Сообщения со статусом «Предупреждение» носят информационный характер, и такой отчет будет принят системой
E52: Служба технической поддержки группы компаний "Экстрим"
E54: E-mail: | G54: rek@xrm.ru
E55: Телефон: | G55: (343) 2222-139
E67: • На листах «Титульный» и «Параметры» обязательно заполните все ячейки голубого цвета. Далее нажмите кнопку «Начать заполнение отчета». Отобразятся листы для заполнения. • Если в поле, обязательном для заполнении, для вашей организации показатель отсутствует, введите в поле «0» (для числовых показателей) и «-» (для текстовых). • Вводите дату непосредственно в ячейку в формате - 'ДД.ММ.ГГГГ'. • Для добавления гиперссылки дважды щелкните левой кнопкой мыши по ячейке и только после этого вставьте скопированный элемент. • Добавьте комментарии к раскрываемым сведениям на листе «Комментарии» (при необходимости).
E82: В шаблоне раскрывается упрощенная бухгалтерская отчетность. В шаблон включены следующие упрощенные формы:
E84: • | F84: бухгалтерский баланс (форма 1)
E85: • | F85: отчет о финансовых результатах (форма 2)
E86: • | F86: отчет о целевом использовании средств (форма 6)
E88: Данный шаблон разработан в соответствии с:
E89: • | F89: Приказом Минфина РФ от 02.07.2010 г. N 66н «О формах бухгалтерской отчетности организаций»
E91: • | F91: Приказом Минфина РФ от 06.07.1999 N 43н (ред. от 08.11.2010) «Об утверждении Положения по бухгалтерскому учету «Бухгалтерская отчетность организации» (ПБУ 4/99)»
E94: Обязательность раскрытия информации по бухгалтерской отчетности и сроки раскрытия устанавливаются в соответствие с:
D96: • | E96: пунктом 18 подпунктом "е", пунктами 28, 30 Постановления Правительства РФ от 17.01.2013 г. N 6 «О стандартах раскрытия информации в сфере водоснабжения и водоотведения" в рамках информации об основных показателях финансово-хозяйственной деятельности регулируемой организации, включая структуру основных производственных затрат (в части регулируемой деятельности)»
E101: II. Стандарты раскрытия информации регулируемыми организациями, осуществляющими холодное водоснабжение
F103: 18. Информация об основных показателях финансово-хозяйственной деятельности регулируемой организации, включая структуру основных производственных затрат (в части регулируемой деятельности), содержит сведения:
F106: е) о годовой бухгалтерской отчетности, включая бухгалтерский баланс и приложения к нему (раскрывается регулируемой организацией, выручка от регулируемой деятельности которой превышает 80 процентов совокупной выручки за отчетный год);
F109: 28. Информация, указанная в пунктах 18 - 20 настоящего документа, раскрывается регулируемой организацией не позднее 30 календарных дней со дня направления годового бухгалтерского баланса в налоговые органы, за исключением информации, указанной в подпункте "з" пункта 20 настоящего документа.
F113: 30. Регулируемая организация, не осуществляющая сдачу годового бухгалтерского баланса в налоговые органы, информацию, указанную в пунктах 18 - 20, за исключением информации, указанной в подпункте "з" пункта 20 настоящего документа, раскрывает не позднее 30 календарных дней со дня истечения срока, установленного законодательством Российской Федерации для сдачи годового бухгалтерского баланса в налоговые органы.
D118: • | E118: пунктом 39 подпунктом "ж", пунктами 49, 51 Постановления Правительства РФ от 17.01.2013 г. N 6 «О стандартах раскрытия информации в сфере водоснабжения и водоотведения" в рамках информации об основных показателях финансово-хозяйственной деятельности регулируемой организации, включая структуру основных производственных затрат (в части регулируемой деятельности)»
E123: III. Стандарты раскрытия информации регулируемыми организациями, осуществляющими водоотведение
F125: 39. Информация об основных показателях финансово-хозяйственной деятельности регулируемой организации, включая структуру основных производственных затрат (в части регулируемой деятельности), содержит сведения:
F128: ж) о годовой бухгалтерской отчетности, включая бухгалтерский баланс и приложения к нему (раскрывается регулируемой организацией, выручка от регулируемой деятельности которых превышает 80 процентов совокупной выручки за отчетный год);
F131: 49. Информация, указанная в пунктах 39 - 41 настоящего документа, раскрывается регулируемой организацией не позднее 30 календарных дней со дня направления годового бухгалтерского баланса в налоговые органы, за исключением информации, указанной в подпункте "з" пункта 41 настоящего документа.
F135: 51. Регулируемая организация, не осуществляющая сдачу годового бухгалтерского баланса в налоговые органы, информацию, указанную в пунктах 39 - 41, за исключением информации, указанной в подпункте "з" пункта 41 настоящего документа, раскрывает не позднее 30 календарных дней со дня истечения срока, установленного законодательством Российской Федерации для сдачи годового бухгалтерского баланса в налоговые органы.
D141: • | E141: пунктом 60 подпунктом "е", пунктами 70, 72 Постановления Правительства РФ от 17.01.2013 г. N 6 «О стандартах раскрытия информации в сфере водоснабжения и водоотведения" в рамках информации об основных показателях финансово-хозяйственной деятельности регулируемой организации, включая структуру основных производственных затрат (в части регулируемой деятельности)»
E146: IV. Стандарты раскрытия информации регулируемыми организациями, осуществляющими горячее водоснабжение
F148: 60. Информация об основных показателях финансово-хозяйственной деятельности регулируемой организации, включая структуру основных производственных затрат (в части регулируемой деятельности), содержит сведения:
F151: е) о годовой бухгалтерской отчетности, включая бухгалтерский баланс и приложения к нему (раскрывается регулируемой организацией, выручка от регулируемой деятельности которой превышает 80 процентов совокупной выручки за отчетный год);
F154: 70. Информация, указанная в пунктах 60 - 62 настоящего документа, раскрывается регулируемой организацией не позднее 30 календарных дней со дня сдачи годового бухгалтерского баланса в налоговые органы, за исключением информации, указанной в подпункте "з" пункта 62 настоящего документа.
F158: 72. Регулируемые организации, не осуществляющие сдачу годового бухгалтерского баланса в налоговые органы, информацию, указанную в пунктах 60 - 62 настоящего документа, за исключением информации, указанной в подпункте "з" пункта 62 настоящего документа, раскрывают не позднее 30 календарных дней со дня истечения срока, установленного законодательством Российской Федерации для сдачи годового бухгалтерского баланса в налоговые органы, за исключением информации, указанной в подпункте "з" пункта 62 настоящего документа.
D165: • | E165: пунктом 15 подпунктом "д", пунктами 21, 22 Постановления Правительства РФ от 21.06.2016 г. N 564 «Об утверждении стандартов раскрытия информации в области обращения с твердыми коммунальными отходами»
F168: 15. Информация об основных показателях финансово-хозяйственной деятельности регулируемой организации (в части регулируемой деятельности) содержит сведения:
F170: д) о годовой бухгалтерской отчетности, включая бухгалтерский баланс и приложения к нему в соответствии с законодательством Российской Федерации о бухгалтерском учете (раскрывается регулируемыми организациями, выручка от регулируемой деятельности которых превышает 80 процентов совокупной выручки за отчетный год);
F174: 21. Информация, указанная в пункте 15, подпунктах "д" (в отношении фактических значений показателей эффективности) и "е" пункта 16 настоящего документа, раскрывается регулируемой организацией не позднее 30 календарных дней со дня истечения срока, установленного законодательством Российской Федерации для сдачи годового бухгалтерского баланса в налоговые органы.
F179: 22. Регулируемая организация, не осуществляющая сдачу годового бухгалтерского баланса в налоговые органы, информацию, указанную в пункте 15, подпунктах "д" (в отношении фактических значений показателей эффективности) и "е" пункта 16 настоящего документа, раскрывает не позднее 30 календарных дней со дня истечения срока, установленного законодательством Российской Федерации для сдачи годового бухгалтерского баланса в налоговые органы.
D185: • | E185: пунктом 19 подпунктом "е", пунктами 29, 30 Постановления Правительства РФ от 5 июля 2013 г. N 570 «О стандартах раскрытия информации теплоснабжающими организациями, теплосетевыми организациями и органами регулирования»
F188: 19. Информация об основных показателях финансово-хозяйственной деятельности регулируемой организации, включая структуру основных производственных затрат (в части регулируемых видов деятельности), содержит сведения:
F191: е) о годовой бухгалтерской отчетности, включая бухгалтерский баланс и приложения к нему (раскрывается регулируемой организацией, выручка от регулируемой деятельности которой превышает 80 процентов совокупной выручки за отчетный год);
F194: 29. Информация, указанная в пунктах 19 - 21 настоящего документа, раскрывается регулируемой организацией не позднее 30 календарных дней со дня направления годового бухгалтерского баланса в налоговые органы, за исключением информации, указанной в подпункте "з" пункта 21 настоящего документа.
F198: 30. Регулируемая организация, не осуществляющая сдачу годового бухгалтерского баланса в налоговые органы, раскрывает информацию, указанную в пунктах 19 - 21 настоящего документа, за исключением информации, указанной в подпункте "з" пункта 21 настоящего документа, не позднее 30 календарных дней со дня истечения срока, установленного законодательством Российской Федерации для сдачи годового бухгалтерского баланса в налоговые органы.
D204: • | E204: пунктом 9 подпунктом "а", пунктом 10 Постановления Правительства РФ от 21 января 2004 г. N 24 «Об утверждении стандартов раскрытия информации субъектами оптового и розничных рынков электрической энергии»
F207: 9. Субъекты рынков электрической энергии раскрывают следующую информацию:
F208: а) годовая финансовая (бухгалтерская) отчетность, а также аудиторское заключение (в случае, если в соответствии с законодательством Российской Федерации осуществлялась аудиторская проверка);
F211: 10. Субъекты рынков электрической энергии, отнесенные к числу субъектов электроэнергетики, инвестиционные программы которых утверждаются федеральным органом исполнительной власти и (или) органами исполнительной власти субъектов Российской Федерации, раскрывают информацию, указанную в подпункте "а" пункта 9 настоящего документа, на официальном сайте в сети "Интернет", определяемом Правительством Российской Федерации для раскрытия информации об инвестиционных программах указанных субъектов электроэнергетики, ежегодно, не позднее 1 апреля.
F218: Субъекты рынков электрической энергии, за исключением субъектов рынков электрической энергии, указанных в абзаце первом настоящего пункта, раскрывают информацию, указанную в подпункте "а" пункта 9 настоящего документа, в электронных средствах массовой информации, на официальных сайтах субъектов рынков электрической энергии или на ином официальном сайте в сети "Интернет", определяемом Правительством Российской Федерации, и (или) в официальном печатном издании ежегодно, не позднее 1 июня.
B226: =IF(GetMode()="DEBUG", "Режим отладки", "") -> 
B227: 2017 © Общество с ограниченной ответственностью "Элвинг"
E228: http://elpass.ru

Sheet Титульный
D3: =Getcode() -> ELPASS.FORMS.BH | E3: =version -> Версия 1.0 от 01.10.2017
D4: =GetTemplateName() -> Формы бухгалтерского баланса, отчета о финансовых результатах и отчета о целевом использовании средств
D6: Субъект РФ | E6: Республика Башкортостан
D8: Отчетный период | E8: 2017
D10: Сведения о регулируемой организации
D11: Полное наименование организации | E11: Ишимбайское муниципальное унитарное предприятие "Межрайкоммунводоканал"
D12: Сокращенное наименование организации | E12: ИМУП "Межрайкоммунводоканал"
D13: ОГРН | E13: 1020201773349
D14: ИНН | E14: 0261002348
D15: КПП | E15: 026101001
D16: Режим налогообложения | E16: Общий
D18: Сведения о филиале
D19: Является ли данное юридическое лицо филиалом другой организации
D20: Наименование филиала
D21: КПП филиала
D23: Адрес регулируемой организации
D24: Юридический адрес | E24: 453204, РБ, г. Ишимбай, ул. Жукова, д. 16
D25: Почтовый адрес | E25: 453204, РБ, г. Ишимбай, ул. Жукова, д. 16
D27: Руководитель регулируемой организации
D28: Фамилия | E28: Матросов
D29: Имя | E29: Александр
D30: Отчество (при наличии) | E30: Васильевич
D31: Контактный телефон | E31: 34794 42323
D33: Главный бухгалтер регулируемой организации
D34: Фамилия | E34: Фаурян
D35: Имя | E35: Сергей
D36: Отчество (при наличии) | E36: Константинович
D37: Контактный телефон | E37: 34794 42956
D39: Должностное лицо, ответственное за составление формы
A40: L11.1 | B40: Ответственный.ФИО | D40: Фамилия | E40: Фаурян
D41: Имя | E41: Сергей
D42: Отчество (при наличии) | E42: Константинович
A43: L11.2 | B43: Ответственный.Должность | D43: Должность | E43: Главный бухгалтер
A44: L11.3 | B44: Ответственный.Телефон | D44: Контактный телефон | E44: 34794 42956
A45: L11.4 | B45: Ответственный. E-Mail | D45: e-mail | E45: GUP_IMRKVK@mail.ru

Sheet Параметры
D3: =Getcode() -> ELPASS.FORMS.BH | G3: =version -> Версия 1.0 от 01.10.2017
D4: =GetTemplateName() -> Формы бухгалтерского баланса, отчета о финансовых результатах и отчета о целевом использовании средств
G5: Коды
D6: Дата отчетности | E6: 2018-02-20 | F6: Форма по ОКУД | G6: 0710001, 0710002, 0710006
D7: Организация | E7: Ишимбайское муниципальное унитарное предприятие "Межрайкоммунводоканал" | F7: по ОКПО | G7: 3253871
D8: Вид экономической деятельности | E8: Распределение воды для питьевых и промышленных нужд. Сбор и обработка сточных вод. | F8: по ОКВЭД | G8: 36.00.2
D9: Организационно-правовая форма | E9: Унитарные предприятия, основанные на праве хозяйственного ведения | F9: по ОКОПФ | G9: 42
D10: Форма собственности | E10: Муниципалная | F10: по ОКФС | G10: 14
D11: Единица измерения | E11: тыс.руб. | F11: по ОКЕИ | G11: =IF(E11="тыс.руб.",384,IF(E11="млн.руб.",385,"")) -> 384
D14: Выручка от регулируемой деятельности превышает 80 процентов совокупной выручки за отчетный год или организация является субъектом рынка электрической энергии? | E14: да
D15: Открыть отчетные формы для заполнение? Заполнять отчет не требуется, если выручка от регулируемой деятельности менее 80% от совокупной выручки

Sheet Форма 1. Актив
E5: =Getcode() -> ELPASS.FORMS.BH | P5: =version -> Версия 1.0 от 01.10.2017
P7: Форма 0710001 с. 1
E8: Бухгалтерский баланс
E9: Актив
E11: Пояснения | F11: Наименование показателя | G11: Код | H11: ="На 31 декабря " & IF(List_01_reporting_period=""," отчётную дату отчётного года",List_01_reporting_period&" г.") -> На 31 декабря 2017 г. | K11: ="На 31 декабря " & IF(List_01_reporting_period=""," предыдущего года",List_01_reporting_period-1&" г.") -> На 31 декабря 2016 г. | N11: ="На 31 декабря " & IF(List_01_reporting_period=""," года, предшествующего предыдущему",List_01_reporting_period-2&" г.") -> На 31 декабря 2015 г.
E12: 1 | F12: 2 | G12: 3 | H12: 4 | K12: 5 | N12: 6
F13: I. Внеоборотные активы
F14: Нематериальные активы | G14: 1110 | J14: =IF(H14="(",")","") ->  | M14: =IF(K14="(",")","") ->  | P14: =IF(N14="(",")","") -> 
F15: Результаты исследований и разработок | G15: 1120
F16: Нематериальные поисковые активы | G16: 1130
F17: Материальные поисковые активы | G17: 1140
F18: Основные средства | G18: 1150 | I18: 80075 | L18: 63377 | O18: 55582
F19: Доходные вложения в материальные ценности | G19: 1160
F20: Финансовые вложения | G20: 1170
F21: Отложенные налоговые активы | G21: 1180 | I21: 1860 | L21: 2502 | O21: 3980
F22: Прочие внеоборотные активы | G22: 1190 | I22: 729 | L22: 902 | O22: 1026
F23: Итого по разделу I | G23: 1100 | H23: =IF((SUMIF(OFFSET(SUM_1100_1,0,-1),"",SUM_1100_1)-SUMIF(OFFSET(SUM_1100_1,0,-1),"(",SUM_1100_1))<0,"(","") ->  | I23: =ABS(SUMIF(OFFSET(SUM_1100_1,0,-1),"",SUM_1100_1)-SUMIF(OFFSET(SUM_1100_1,0,-1),"(",SUM_1100_1)) -> 82664 | J23: =IF(H23="(",")","") ->  | K23: =IF((SUMIF(OFFSET(SUM_1100_2,0,-1),"",SUM_1100_2)-SUMIF(OFFSET(SUM_1100_2,0,-1),"(",SUM_1100_2))<0,"(","") ->  | L23: =ABS(SUMIF(OFFSET(SUM_1100_2,0,-1),"",SUM_1100_2)-SUMIF(OFFSET(SUM_1100_2,0,-1),"(",SUM_1100_2)) -> 66781 | M23: =IF(K23="(",")","") ->  | N23: =IF((SUMIF(OFFSET(SUM_1100_3,0,-1),"",SUM_1100_3)-SUMIF(OFFSET(SUM_1100_3,0,-1),"(",SUM_1100_3))<0,"(","") ->  | O23: =ABS(SUMIF(OFFSET(SUM_1100_3,0,-1),"",SUM_1100_3)-SUMIF(OFFSET(SUM_1100_3,0,-1),"(",SUM_1100_3)) -> 60588 | P23: =IF(N23="(",")","") -> 
F24: II. Оборотные активы
F25: Запасы | G25: 1210 | I25: 6312 | J25: =IF(H25="(",")","") ->  | L25: 6394 | M25: =IF(K25="(",")","") ->  | O25: 4787 | P25: =IF(N25="(",")","") -> 
F26: Налог на добавленную стоимость по приобретенным ценностям | G26: 1220 | O26: 12
F27: Дебиторская задолженность | G27: 1230 | I27: 26509 | L27: 18837 | O27: 14955
F28: Финансовые вложения (за исключением денежных эквивалентов) | G28: 1240
F29: Денежные средства и денежные эквиваленты | G29: 1250 | I29: 6062 | L29: 7769 | O29: 4798
F30: Прочие оборотные активы | G30: 1260
F31: Итого по разделу II | G31: 1200 | H31: =IF((SUMIF(OFFSET(SUM_1200_1,0,-1),"",SUM_1200_1)-SUMIF(OFFSET(SUM_1200_1,0,-1),"(",SUM_1200_1))<0,"(","") ->  | I31: =ABS(SUMIF(OFFSET(SUM_1200_1,0,-1),"",SUM_1200_1)-SUMIF(OFFSET(SUM_1200_1,0,-1),"(",SUM_1200_1)) -> 38883 | J31: =IF(H31="(",")","") ->  | K31: =IF((SUMIF(OFFSET(SUM_1200_2,0,-1),"",SUM_1200_2)-SUMIF(OFFSET(SUM_1200_2,0,-1),"(",SUM_1200_2))<0,"(","") ->  | L31: =ABS(SUMIF(OFFSET(SUM_1200_2,0,-1),"",SUM_1200_2)-SUMIF(OFFSET(SUM_1200_2,0,-1),"(",SUM_1200_2)) -> 33000 | M31: =IF(K31="(",")","") ->  | N31: =IF((SUMIF(OFFSET(SUM_1200_3,0,-1),"",SUM_1200_3)-SUMIF(OFFSET(SUM_1200_3,0,-1),"(",SUM_1200_3))<0,"(","") ->  | O31: =ABS(SUMIF(OFFSET(SUM_1200_3,0,-1),"",SUM_1200_3)-SUMIF(OFFSET(SUM_1200_3,0,-1),"(",SUM_1200_3)) -> 24552 | P31: =IF(N31="(",")","") -> 
F32: Баланс | G32: 1600 | H32: =IF((IF(H23="(",-LINE_1100_1,LINE_1100_1)+IF(H31="(",-LINE_1200_1,LINE_1200_1))<0,"(","") ->  | I32: =ABS(IF(H23="(",-LINE_1100_1,LINE_1100_1)+IF(H31="(",-LINE_1200_1,LINE_1200_1)) -> 121547 | J32: =IF(H32="(",")","") ->  | K32: =IF((IF(K23="(",-LINE_1100_2,LINE_1100_2)+IF(K31="(",-LINE_1200_2,LINE_1200_2))<0,"(","") ->  | L32: =ABS(IF(K23="(",-LINE_1100_2,LINE_1100_2)+IF(K31="(",-LINE_1200_2,LINE_1200_2)) -> 99781 | M32: =IF(K32="(",")","") ->  | N32: =IF((IF(N23="(",-LINE_1100_3,LINE_1100_3)+IF(N31="(",-LINE_1200_3,LINE_1200_3))<0,"(","") ->  | O32: =ABS(IF(N23="(",-LINE_1100_3,LINE_1100_3)+IF(N31="(",-LINE_1200_3,LINE_1200_3)) -> 85140 | P32: =IF(N32="(",")","") -> 

Sheet Форма 1. Пассив
E5: =Getcode() -> ELPASS.FORMS.BH | P5: =version -> Версия 1.0 от 01.10.2017
P7: Форма 0710001 с. 2
E8: Бухгалтерский баланс
E9: Пассив
E11: Пояснения | F11: Наименование показателя | G11: Код | H11: ="На 31 декабря " & IF(List_01_reporting_period=""," отчётную дату отчётного года",List_01_reporting_period&" г.") -> На 31 декабря 2017 г. | K11: ="На 31 декабря " & IF(List_01_reporting_period=""," предыдущего года",List_01_reporting_period-1&" г.") -> На 31 декабря 2016 г. | N11: ="На 31 декабря " & IF(List_01_reporting_period=""," года, предшествующего предыдущему",List_01_reporting_period-2&" г.") -> На 31 декабря 2015 г.
E12: 1 | F12: 2 | G12: 3 | H12: 4 | K12: 5 | N12: 6
F13: III. Капитал и резервы
F14: Уставный капитал (складочный капитал, уставный фонд, вклады товарищей) | G14: 1310 | I14: 40732 | J14: =IF(H14="(",")","") ->  | L14: 40732 | M14: =IF(K14="(",")","") ->  | O14: 40732 | P14: =IF(N14="(",")","") -> 
F15: Собственные акции, выкупленные у акционеров | G15: 1320 | H15: ( | J15: ) | K15: ( | M15: ) | N15: ( | P15: )
F16: Переоценка внеоборотных активов | G16: 1340 | I16: 15079 | L16: 15079 | M16: =IF(K16="(",")","") ->  | O16: 15083
F17: Добавочный капитал (без переоценки) | G17: 1350 | I17: 35923 | L17: 15716 | M17: =IF(K17="(",")","") ->  | O17: 15716
F18: Резервный капитал | G18: 1360 | M18: =IF(K18="(",")","") -> 
F19: Нераспределенная прибыль (непокрытый убыток) | G19: 1370 | I19: 6142 | L19: 6042 | M19: =IF(K19="(",")","") ->  | N19: ( | O19: 3893 | P19: )
F20: Итого по разделу III | G20: 1300 | H20: =IF((SUMIF(OFFSET(SUM_1300_1,0,-1),"",SUM_1300_1)-SUMIF(OFFSET(SUM_1300_1,0,-1),"(",SUM_1300_1))<0,"(","") ->  | I20: =ABS(SUMIF(OFFSET(SUM_1300_1,0,-1),"",SUM_1300_1)-SUMIF(OFFSET(SUM_1300_1,0,-1),"(",SUM_1300_1)) -> 97876 | J20: =IF(H20="(",")","") ->  | K20: =IF((SUMIF(OFFSET(SUM_1300_2,0,-1),"",SUM_1300_2)-SUMIF(OFFSET(SUM_1300_2,0,-1),"(",SUM_1300_2))<0,"(","") ->  | L20: =ABS(SUMIF(OFFSET(SUM_1300_2,0,-1),"",SUM_1300_2)-SUMIF(OFFSET(SUM_1300_2,0,-1),"(",SUM_1300_2)) -> 77569 | M20: =IF(K20="(",")","") ->  | N20: =IF((SUMIF(OFFSET(SUM_1300_3,0,-1),"",SUM_1300_3)-SUMIF(OFFSET(SUM_1300_3,0,-1),"(",SUM_1300_3))<0,"(","") ->  | O20: =ABS(SUMIF(OFFSET(SUM_1300_3,0,-1),"",SUM_1300_3)-SUMIF(OFFSET(SUM_1300_3,0,-1),"(",SUM_1300_3)) -> 67638 | P20: =IF(N20="(",")","") -> 
F21: IV. Долгосрочные обязательства
F22: Заемные средства | G22: 1410 | J22: =IF(H22="(",")","") ->  | M22: =IF(K22="(",")","") ->  | P22: =IF(N22="(",")","") -> 
F23: Отложенные налоговые обязательства | G23: 1420 | I23: 1535 | J23: =IF(H23="(",")","") ->  | L23: 1513 | M23: =IF(K23="(",")","") ->  | O23: 1273 | P23: =IF(N23="(",")","") -> 
F24: Оценочные обязательства | G24: 1430 | J24: =IF(H24="(",")","") ->  | M24: =IF(K24="(",")","") ->  | P24: =IF(N24="(",")","") -> 
F25: Прочие обязательства | G25: 1450 | J25: =IF(H25="(",")","") ->  | M25: =IF(K25="(",")","") ->  | P25: =IF(N25="(",")","") -> 
F26: Итого по разделу IV | G26: 1400 | H26: =IF((SUMIF(OFFSET(SUM_1400_1,0,-1),"",SUM_1400_1)-SUMIF(OFFSET(SUM_1400_1,0,-1),"(",SUM_1400_1))<0,"(","") ->  | I26: =ABS(SUMIF(OFFSET(SUM_1400_1,0,-1),"",SUM_1400_1)-SUMIF(OFFSET(SUM_1400_1,0,-1),"(",SUM_1400_1)) -> 1535 | J26: =IF(H26="(",")","") ->  | K26: =IF((SUMIF(OFFSET(SUM_1400_2,0,-1),"",SUM_1400_2)-SUMIF(OFFSET(SUM_1400_2,0,-1),"(",SUM_1400_2))<0,"(","") ->  | L26: =ABS(SUMIF(OFFSET(SUM_1400_2,0,-1),"",SUM_1400_2)-SUMIF(OFFSET(SUM_1400_2,0,-1),"(",SUM_1400_2)) -> 1513 | M26: =IF(K26="(",")","") ->  | N26: =IF((SUMIF(OFFSET(SUM_1400_3,0,-1),"",SUM_1400_3)-SUMIF(OFFSET(SUM_1400_3,0,-1),"(",SUM_1400_3))<0,"(","") ->  | O26: =ABS(SUMIF(OFFSET(SUM_1400_3,0,-1),"",SUM_1400_3)-SUMIF(OFFSET(SUM_1400_3,0,-1),"(",SUM_1400_3)) -> 1273 | P26: =IF(N26="(",")","") -> 
F27: V. Краткосрочные обязательства
F28: Заемные средства | G28: 1510 | J28: =IF(H28="(",")","") ->  | M28: =IF(K28="(",")","") ->  | P28: =IF(N28="(",")","") -> 
F29: Кредиторская задолженность | G29: 1520 | I29: 15336 | L29: 11382 | O29: 11036
F30: Доходы будущих периодов | G30: 1530 | I30: 6800 | L30: 9317 | O30: 5193
F31: Оценочные обязательства | G31: 1540
F32: Прочие обязательства | G32: 1550
F33: Итого по разделу V | G33: 1500 | H33: =IF((SUMIF(OFFSET(SUM_1500_1,0,-1),"",SUM_1500_1)-SUMIF(OFFSET(SUM_1500_1,0,-1),"(",SUM_1500_1))<0,"(","") ->  | I33: =ABS(SUMIF(OFFSET(SUM_1500_1,0,-1),"",SUM_1500_1)-SUMIF(OFFSET(SUM_1500_1,0,-1),"(",SUM_1500_1)) -> 22136 | K33: =IF((SUMIF(OFFSET(SUM_1500_2,0,-1),"",SUM_1500_2)-SUMIF(OFFSET(SUM_1500_2,0,-1),"(",SUM_1500_2))<0,"(","") ->  | L33: =ABS(SUMIF(OFFSET(SUM_1500_2,0,-1),"",SUM_1500_2)-SUMIF(OFFSET(SUM_1500_2,0,-1),"(",SUM_1500_2)) -> 20699 | N33: =IF((SUMIF(OFFSET(SUM_1500_3,0,-1),"",SUM_1500_3)-SUMIF(OFFSET(SUM_1500_3,0,-1),"(",SUM_1500_3))<0,"(","") ->  | O33: =ABS(SUMIF(OFFSET(SUM_1500_3,0,-1),"",SUM_1500_3)-SUMIF(OFFSET(SUM_1500_3,0,-1),"(",SUM_1500_3)) -> 16229
F34: Баланс | G34: 1700 | H34: =IF((IF(H20="(",-LINE_1300_1,LINE_1300_1)+IF(H26="(",-LINE_1400_1,LINE_1400_1)+IF(H33="(",-LINE_1500_1,LINE_1500_1))<0,"(","") ->  | I34: =ABS(IF(H20="(",-LINE_1300_1,LINE_1300_1)+IF(H26="(",-LINE_1400_1,LINE_1400_1)+IF(H33="(",-LINE_1500_1,LINE_1500_1)) -> 121547 | K34: =IF((IF(K20="(",-LINE_1300_2,LINE_1300_2)+IF(K26="(",-LINE_1400_2,LINE_1400_2)+IF(K33="(",-LINE_1500_2,LINE_1500_2))<0,"(","") ->  | L34: =ABS(IF(K20="(",-LINE_1300_2,LINE_1300_2)+IF(K26="(",-LINE_1400_2,LINE_1400_2)+IF(K33="(",-LINE_1500_2,LINE_1500_2)) -> 99781 | N34: =IF((IF(N20="(",-LINE_1300_3,LINE_1300_3)+IF(N26="(",-LINE_1400_3,LINE_1400_3)+IF(N33="(",-LINE_1500_3,LINE_1500_3))<0,"(","") ->  | O34: =ABS(IF(N20="(",-LINE_1300_3,LINE_1300_3)+IF(N26="(",-LINE_1400_3,LINE_1400_3)+IF(N33="(",-LINE_1500_3,LINE_1500_3)) -> 85140

Sheet Форма1. Расшифровка показателей
E5: =Getcode() -> ELPASS.FORMS.BH | P5: =version -> Версия 1.0 от 01.10.2017
P7: Форма 0710001 с. 2
E8: Бухгалтерский баланс
E9: Расшифровка отдельных показателей бухгалтерского баланса
E11: № п/п | F11: Наименование показателя | G11: Код | H11: ="На 31 декабря " & IF(List_01_reporting_period=""," отчётную дату отчётного года",List_01_reporting_period&" г.") -> На 31 декабря 2017 г. | K11: ="На 31 декабря " & IF(List_01_reporting_period=""," предыдущего года",List_01_reporting_period-1&" г.") -> На 31 декабря 2016 г. | N11: ="На 31 декабря " & IF(List_01_reporting_period=""," года, предшествующего предыдущему",List_01_reporting_period-2&" г.") -> На 31 декабря 2015 г.
E12: 1 | F12: 2 | G12: 3 | H12: 4 | K12: 5 | N12: 6
E13: 1 | F13: Нематериальные активы (стр.1110), в том числе: | H13: =IF('Форма 1. Актив'!H14="(","(","") ->  | I13: ='Форма 1. Актив'!I14 -> 0 | J13: =IF(H13="(",")","") ->  | K13: =IF('Форма 1. Актив'!K14="(","(","") ->  | L13: ='Форма 1. Актив'!L14 -> 0 | M13: =IF(K13="(",")","") ->  | N13: =IF('Форма 1. Актив'!N14="(","(","") ->  | O13: ='Форма 1. Актив'!O14 -> 0 | P13: =IF(N13="(",")","") -> 
E14: 1.1 | G14: 11101 | J14: =IF(H14="(",")","") ->  | M14: =IF(K14="(",")","") ->  | P14: =IF(N14="(",")","") -> 
E15: 1.2 | G15: 11102 | J15: =IF(H15="(",")","") ->  | M15: =IF(K15="(",")","") ->  | P15: =IF(N15="(",")","") -> 
E16: 1.3 | G16: 11103 | J16: =IF(H16="(",")","") ->  | M16: =IF(K16="(",")","") ->  | P16: =IF(N16="(",")","") -> 
F17: Добавить строку | Q17: add_FORMA1_R1_range
E18: 2 | F18: Результаты исследований и разработок (стр.1120), в том числе: | H18: =IF('Форма 1. Актив'!H15="(","(","") ->  | I18: ='Форма 1. Актив'!I15 -> 0 | J18: =IF(H18="(",")","") ->  | K18: =IF('Форма 1. Актив'!K15="(","(","") ->  | L18: ='Форма 1. Актив'!L15 -> 0 | M18: =IF(K18="(",")","") ->  | N18: =IF('Форма 1. Актив'!N15="(","(","") ->  | O18: ='Форма 1. Актив'!O15 -> 0 | P18: =IF(N18="(",")","") -> 
E19: 2.1 | G19: 11201 | J19: =IF(H19="(",")","") ->  | M19: =IF(K19="(",")","") ->  | P19: =IF(N19="(",")","") -> 
E20: 2.2 | G20: 11202 | J20: =IF(H20="(",")","") ->  | M20: =IF(K20="(",")","") ->  | P20: =IF(N20="(",")","") -> 
F21: Добавить строку | Q21: add_FORMA1_R1_range
E22: 3 | F22: ="Нематериальные поисковые активы (стр."&'Форма 1. Актив'!$G$16&"), в том числе:" -> Нематериальные поисковые активы (стр.1130), в том числе: | H22: =IF('Форма 1. Актив'!H$16="(","(","") ->  | I22: ='Форма 1. Актив'!I$16 -> 0 | J22: =IF(H22="(",")","") ->  | K22: =IF('Форма 1. Актив'!K$16="(","(","") ->  | L22: ='Форма 1. Актив'!L$16 -> 0 | M22: =IF(K22="(",")","") ->  | N22: =IF('Форма 1. Актив'!N$16="(","(","") ->  | O22: ='Форма 1. Актив'!O$16 -> 0 | P22: =IF(N22="(",")","") -> 
E23: 3.1 | G23: ='Форма 1. Актив'!$G$16&"1" -> 11301 | J23: =IF(H23="(",")","") ->  | M23: =IF(K23="(",")","") ->  | P23: =IF(N23="(",")","") -> 
E24: 3.2 | G24: ='Форма 1. Актив'!$G$16&"2" -> 11302 | J24: =IF(H24="(",")","") ->  | M24: =IF(K24="(",")","") ->  | P24: =IF(N24="(",")","") -> 
F25: Добавить строку | Q25: add_FORMA1_R1_range
E26: 4 | F26: ="Материальные поисковые активы (стр."&'Форма 1. Актив'!$G$17&"), в том числе:" -> Материальные поисковые активы (стр.1140), в том числе: | H26: =IF('Форма 1. Актив'!H$17="(","(","") ->  | I26: ='Форма 1. Актив'!I$17 -> 0 | J26: =IF(H26="(",")","") ->  | K26: =IF('Форма 1. Актив'!K$17="(","(","") ->  | L26: ='Форма 1. Актив'!L$17 -> 0 | M26: =IF(K26="(",")","") ->  | N26: =IF('Форма 1. Актив'!N$17="(","(","") ->  | O26: ='Форма 1. Актив'!O$17 -> 0 | P26: =IF(N26="(",")","") -> 
E27: 4.1 | G27: ='Форма 1. Актив'!$G$17&"1" -> 11401 | J27: =IF(H27="(",")","") ->  | M27: =IF(K27="(",")","") ->  | P27: =IF(N27="(",")","") -> 
E28: 4.2 | G28: ='Форма 1. Актив'!$G$17&"2" -> 11402 | J28: =IF(H28="(",")","") ->  | M28: =IF(K28="(",")","") ->  | P28: =IF(N28="(",")","") -> 
F29: Добавить строку | Q29: add_FORMA1_R1_range
E30: 5 | F30: ="Основные средства (стр."&'Форма 1. Актив'!$G$18&"), в том числе:" -> Основные средства (стр.1150), в том числе: | H30: =IF('Форма 1. Актив'!H18="(","(","") ->  | I30: ='Форма 1. Актив'!I18 -> 80075 | J30: =IF(H30="(",")","") ->  | K30: =IF('Форма 1. Актив'!K18="(","(","") ->  | L30: ='Форма 1. Актив'!L18 -> 63377 | M30: =IF(K30="(",")","") ->  | N30: =IF('Форма 1. Актив'!N18="(","(","") ->  | O30: ='Форма 1. Актив'!O18 -> 55582 | P30: =IF(N30="(",")","") -> 
E31: 5.1 | G31: ='Форма 1. Актив'!$G$18&"1" -> 11501 | J31: =IF(H31="(",")","") ->  | M31: =IF(K31="(",")","") ->  | P31: =IF(N31="(",")","") -> 
E32: 5.2 | G32: ='Форма 1. Актив'!$G$18&"2" -> 11502 | J32: =IF(H32="(",")","") ->  | M32: =IF(K32="(",")","") ->  | P32: =IF(N32="(",")","") -> 
E33: 5.3 | G33: ='Форма 1. Актив'!$G$18&"3" -> 11503 | J33: =IF(H33="(",")","") ->  | M33: =IF(K33="(",")","") ->  | P33: =IF(N33="(",")","") -> 
F34: Добавить строку | Q34: add_FORMA1_R1_range
E35: 6 | F35: ="Доходные вложения (стр."&'Форма 1. Актив'!$G$19&"), в том числе:" -> Доходные вложения (стр.1160), в том числе: | H35: =IF('Форма 1. Актив'!H19="(","(","") ->  | I35: ='Форма 1. Актив'!I19 -> 0 | J35: =IF(H35="(",")","") ->  | K35: =IF('Форма 1. Актив'!K19="(","(","") ->  | L35: ='Форма 1. Актив'!L19 -> 0 | M35: =IF(K35="(",")","") ->  | N35: =IF('Форма 1. Актив'!N19="(","(","") ->  | O35: ='Форма 1. Актив'!O19 -> 0 | P35: =IF(N35="(",")","") -> 
E36: 6.1 | G36: ='Форма 1. Актив'!$G$19&"1" -> 11601 | J36: =IF(H36="(",")","") ->  | M36: =IF(K36="(",")","") ->  | P36: =IF(N36="(",")","") -> 
E37: 6.2 | G37: ='Форма 1. Актив'!$G$19&"2" -> 11602 | J37: =IF(H37="(",")","") ->  | M37: =IF(K37="(",")","") ->  | P37: =IF(N37="(",")","") -> 
F38: Добавить строку | Q38: add_FORMA1_R1_range
E39: 7 | F39: ="Финансовые вложения (стр."&'Форма 1. Актив'!$G$20&"), в том числе:" -> Финансовые вложения (стр.1170), в том числе: | H39: =IF('Форма 1. Актив'!H20="(","(","") ->  | I39: ='Форма 1. Актив'!I20 -> 0 | J39: =IF(H39="(",")","") ->  | K39: =IF('Форма 1. Актив'!K20="(","(","") ->  | L39: ='Форма 1. Актив'!L20 -> 0 | M39: =IF(K39="(",")","") ->  | N39: =IF('Форма 1. Актив'!N20="(","(","") ->  | O39: ='Форма 1. Актив'!O20 -> 0 | P39: =IF(N39="(",")","") -> 
E40: 7.1 | G40: ='Форма 1. Актив'!$G$20&"1" -> 11701 | J40: =IF(H40="(",")","") ->  | M40: =IF(K40="(",")","") ->  | P40: =IF(N40="(",")","") -> 
E41: 7.2 | G41: ='Форма 1. Актив'!$G$20&"2" -> 11702 | J41: =IF(H41="(",")","") ->  | M41: =IF(K41="(",")","") ->  | P41: =IF(N41="(",")","") -> 
E42: 7.3 | G42: ='Форма 1. Актив'!$G$20&"3" -> 11703 | J42: =IF(H42="(",")","") ->  | M42: =IF(K42="(",")","") ->  | P42: =IF(N42="(",")","") -> 
E43: 7.4 | G43: ='Форма 1. Актив'!$G$20&"4" -> 11704 | J43: =IF(H43="(",")","") ->  | M43: =IF(K43="(",")","") ->  | P43: =IF(N43="(",")","") -> 
F44: Добавить строку | Q44: add_FORMA1_R1_range
E45: 8 | F45: ="Отложенные налоговые активы (стр."&'Форма 1. Актив'!$G$21&"), в том числе:" -> Отложенные налоговые активы (стр.1180), в том числе: | H45: =IF('Форма 1. Актив'!H21="(","(","") ->  | I45: ='Форма 1. Актив'!I21 -> 1860 | J45: =IF(H45="(",")","") ->  | K45: =IF('Форма 1. Актив'!K21="(","(","") ->  | L45: ='Форма 1. Актив'!L21 -> 2502 | M45: =IF(K45="(",")","") ->  | N45: =IF('Форма 1. Актив'!N21="(","(","") ->  | O45: ='Форма 1. Актив'!O21 -> 3980 | P45: =IF(N45="(",")","") -> 
E46: 8.1 | F46: Вычитаемые временные разницы в т.ч. РБП, зарплата | G46: ='Форма 1. Актив'!$G$21&"1" -> 11801 | I46: 199 | J46: =IF(H46="(",")","") ->  | L46: 246 | M46: =IF(K46="(",")","") ->  | O46: 180 | P46: =IF(N46="(",")","") -> 
D47: ы | E47: 8.2 | F47: Полученная сумма прибыли (убытка) | G47: 11802 | I47: 1661 | J47: =IF(H47="(",")","") ->  | L47: 2256 | M47: =IF(K47="(",")","") ->  | O47: 3800 | P47: =IF(N47="(",")","") -> 
F48: Добавить строку | Q48: add_FORMA1_R1_range
E49: 9 | F49: ="Вписываемые показатели (стр."&IF('Форма 1. Актив'!$G$21="1180","1185","1165")&"), в том числе:" -> Вписываемые показатели (стр.1185), в том числе: | H49: =IF((SUMIF(OFFSET(SUM_1185_1,0,-1),"",SUM_1185_1)-SUMIF(OFFSET(SUM_1185_1,0,-1),"(",SUM_1185_1))<0,"(","") ->  | I49: =ABS(SUMIF(OFFSET(SUM_1185_1,0,-1),"",SUM_1185_1)-SUMIF(OFFSET(SUM_1185_1,0,-1),"(",SUM_1185_1)) -> 0 | J49: =IF(H49="(",")","") ->  | K49: =IF((SUMIF(OFFSET(SUM_1185_2,0,-1),"",SUM_1185_2)-SUMIF(OFFSET(SUM_1185_2,0,-1),"(",SUM_1185_2))<0,"(","") ->  | L49: =ABS(SUMIF(OFFSET(SUM_1185_2,0,-1),"",SUM_1185_2)-SUMIF(OFFSET(SUM_1185_2,0,-1),"(",SUM_1185_2)) -> 0 | M49: =IF(K49="(",")","") ->  | N49: =IF((SUMIF(OFFSET(SUM_1185_3,0,-1),"",SUM_1185_3)-SUMIF(OFFSET(SUM_1185_3,0,-1),"(",SUM_1185_3))<0,"(","") ->  | O49: =ABS(SUMIF(OFFSET(SUM_1185_3,0,-1),"",SUM_1185_3)-SUMIF(OFFSET(SUM_1185_3,0,-1),"(",SUM_1185_3)) -> 0 | P49: =IF(N49="(",")","") -> 
E50: 9.1 | G50: =IF('Форма 1. Актив'!$G$21="1180","1185","1165")&"1" -> 11851 | J50: =IF(H50="(",")","") ->  | M50: =IF(K50="(",")","") ->  | P50: =IF(N50="(",")","") -> 
E51: 9.2 | G51: =IF('Форма 1. Актив'!$G$21="1180","1185","1165")&"2" -> 11852 | J51: =IF(H51="(",")","") ->  | M51: =IF(K51="(",")","") ->  | P51: =IF(N51="(",")","") -> 
F52: Добавить строку | Q52: add_FORMA1_R1_range
E53: 10 | F53: ="Прочие внеоборотные активы (стр."&'Форма 1. Актив'!$G$22&"), в том числе:" -> Прочие внеоборотные активы (стр.1190), в том числе: | H53: =IF('Форма 1. Актив'!H22="(","(","") ->  | I53: ='Форма 1. Актив'!I22 -> 729 | J53: =IF(H53="(",")","") ->  | K53: =IF('Форма 1. Актив'!K22="(","(","") ->  | L53: ='Форма 1. Актив'!L22 -> 902 | M53: =IF(K53="(",")","") ->  | N53: =IF('Форма 1. Актив'!N22="(","(","") ->  | O53: ='Форма 1. Актив'!O22 -> 1026 | P53: =IF(N53="(",")","") -> 
E54: 10.1 | F54: незавершенное строительство | G54: ='Форма 1. Актив'!$G$22&"1" -> 11901 | I54: 66 | J54: =IF(H54="(",")","") ->  | L54: 160 | M54: =IF(K54="(",")","") ->  | O54: 160 | P54: =IF(N54="(",")","") -> 
E55: 10.2 | F55: Расходы будущих периодов, срок списания свыше 12 месяцев | G55: ='Форма 1. Актив'!$G$22&"2" -> 11902 | I55: 663 | J55: =IF(H55="(",")","") ->  | L55: 742 | M55: =IF(K55="(",")","") ->  | O55: 866 | P55: =IF(N55="(",")","") -> 
E56: 10.3 | G56: ='Форма 1. Актив'!$G$22&"3" -> 11903 | J56: =IF(H56="(",")","") ->  | M56: =IF(K56="(",")","") ->  | P56: =IF(N56="(",")","") -> 
F57: Добавить строку | Q57: add_FORMA1_R1_range
E58: 11 | F58: Запасы (стр.1210), в том числе: | H58: =IF('Форма 1. Актив'!H25="(","(","") ->  | I58: ='Форма 1. Актив'!I25 -> 6312 | J58: =IF(H58="(",")","") ->  | K58: =IF('Форма 1. Актив'!K25="(","(","") ->  | L58: ='Форма 1. Актив'!L25 -> 6394 | M58: =IF(K58="(",")","") ->  | N58: =IF('Форма 1. Актив'!N25="(","(","") ->  | O58: ='Форма 1. Актив'!O25 -> 4787 | P58: =IF(N58="(",")","") -> 
E59: 11.1 | F59: Сырье и материалы | G59: 12101 | I59: 6065 | L59: 6147 | O59: 4534
E60: 11.2 | F60: Товары | G60: 12102 | I60: 247 | L60: 247 | O60: 253
E61: 11.3 | G61: 12103
E62: 11.4 | G62: 12104
E63: 11.5 | G63: 12105
F64: Добавить строку | Q64: add_FORMA1_R1_range
E65: 12 | F65: Налог на добавленную стоимость по приобретенным ценностям (стр.1220), в том числе: | H65: =IF('Форма 1. Актив'!H26="(","(","") ->  | I65: ='Форма 1. Актив'!I26 -> 0 | J65: =IF(H65="(",")","") ->  | K65: =IF('Форма 1. Актив'!K26="(","(","") ->  | L65: ='Форма 1. Актив'!L26 -> 0 | M65: =IF(K65="(",")","") ->  | N65: =IF('Форма 1. Актив'!N26="(","(","") ->  | O65: ='Форма 1. Актив'!O26 -> 12 | P65: =IF(N65="(",")","") -> 
E66: 12.1 | F66: НДС не возмещенный по ОС | G66: 12201 | J66: =IF(H66="(",")","") ->  | M66: =IF(K66="(",")","") ->  | O66: 12 | P66: =IF(N66="(",")","") -> 
F67: Добавить строку | Q67: add_FORMA1_R1_range
E68: 13 | F68: Дебиторская задолженность (стр.1230), в том числе: | H68: =IF('Форма 1. Актив'!H27="(","(","") ->  | I68: ='Форма 1. Актив'!I27 -> 26509 | J68: =IF(H68="(",")","") ->  | K68: =IF('Форма 1. Актив'!K27="(","(","") ->  | L68: ='Форма 1. Актив'!L27 -> 18837 | M68: =IF(K68="(",")","") ->  | N68: =IF('Форма 1. Актив'!N27="(","(","") ->  | O68: ='Форма 1. Актив'!O27 -> 14955 | P68: =IF(N68="(",")","") -> 
E69: 13.1 | F69: задолженность покупателей и заказчиков за поставленную продукцию | G69: 12301 | I69: 25089 | L69: 17881 | O69: 13962
E70: 13.2 | F70: прочие дебиторы | G70: 12302 | I70: 1029 | L70: 918 | O70: 715
E71: 13.3 | F71: расчеты по авансам выданным | G71: 12303 | I71: 391 | L71: 0 | O71: 0
E72: 13.4 | G72: 12304
E73: 13.5 | G73: 12305
F74: Добавить строку | Q74: add_FORMA1_R1_range
E75: 14 | F75: Финансовые вложения (за исключением денежных эквивалентов) (стр.1240), в том числе: | H75: =IF('Форма 1. Актив'!H28="(","(","") ->  | I75: ='Форма 1. Актив'!I28 -> 0 | J75: =IF(H75="(",")","") ->  | K75: =IF('Форма 1. Актив'!K28="(","(","") ->  | L75: ='Форма 1. Актив'!L28 -> 0 | M75: =IF(K75="(",")","") ->  | N75: =IF('Форма 1. Актив'!N28="(","(","") ->  | O75: ='Форма 1. Актив'!O28 -> 0 | P75: =IF(N75="(",")","") -> 
E76: 14.1 | G76: 12401 | J76: =IF(H76="(",")","") ->  | M76: =IF(K76="(",")","") ->  | P76: =IF(N76="(",")","") -> 
E77: 14.2 | G77: 12402 | J77: =IF(H77="(",")","") ->  | M77: =IF(K77="(",")","") ->  | P77: =IF(N77="(",")","") -> 
E78: 14.3 | G78: 12403 | J78: =IF(H78="(",")","") ->  | M78: =IF(K78="(",")","") ->  | P78: =IF(N78="(",")","") -> 
F79: Добавить строку | Q79: add_FORMA1_R1_range
E80: 15 | F80: Денежные средства и денежные эквиваленты (стр.1250), в том числе: | H80: =IF('Форма 1. Актив'!H29="(","(","") ->  | I80: ='Форма 1. Актив'!I29 -> 6062 | J80: =IF(H80="(",")","") ->  | K80: =IF('Форма 1. Актив'!K29="(","(","") ->  | L80: ='Форма 1. Актив'!L29 -> 7769 | M80: =IF(K80="(",")","") ->  | N80: =IF('Форма 1. Актив'!N29="(","(","") ->  | O80: ='Форма 1. Актив'!O29 -> 4798 | P80: =IF(N80="(",")","") -> 
E81: 15.1 | F81: сальдо денежных средств на расчетных счетах | G81: 12501 | I81: 6062 | J81: =IF(H81="(",")","") ->  | L81: 7769 | M81: =IF(K81="(",")","") ->  | O81: 4798 | P81: =IF(N81="(",")","") -> 
E82: 15.2 | G82: 12502 | J82: =IF(H82="(",")","") ->  | M82: =IF(K82="(",")","") ->  | P82: =IF(N82="(",")","") -> 
F83: Добавить строку | Q83: add_FORMA1_R1_range
E84: 16 | F84: Вписываемые показатели (стр.1255), в том числе: | H84: =IF((SUMIF(OFFSET(SUM_1255_1,0,-1),"",SUM_1255_1)-SUMIF(OFFSET(SUM_1255_1,0,-1),"(",SUM_1255_1))<0,"(","") ->  | I84: =ABS(SUMIF(OFFSET(SUM_1255_1,0,-1),"",SUM_1255_1)-SUMIF(OFFSET(SUM_1255_1,0,-1),"(",SUM_1255_1)) -> 0 | J84: =IF(H84="(",")","") ->  | K84: =IF((SUMIF(OFFSET(SUM_1255_2,0,-1),"",SUM_1255_2)-SUMIF(OFFSET(SUM_1255_2,0,-1),"(",SUM_1255_2))<0,"(","") ->  | L84: =ABS(SUMIF(OFFSET(SUM_1255_2,0,-1),"",SUM_1255_2)-SUMIF(OFFSET(SUM_1255_2,0,-1),"(",SUM_1255_2)) -> 0 | M84: =IF(K84="(",")","") ->  | N84: =IF((SUMIF(OFFSET(SUM_1255_3,0,-1),"",SUM_1255_3)-SUMIF(OFFSET(SUM_1255_3,0,-1),"(",SUM_1255_3))<0,"(","") ->  | O84: =ABS(SUMIF(OFFSET(SUM_1255_3,0,-1),"",SUM_1255_3)-SUMIF(OFFSET(SUM_1255_3,0,-1),"(",SUM_1255_3)) -> 0 | P84: =IF(N84="(",")","") -> 
E85: 16.1 | G85: 12551
E86: 16.2 | G86: 12552
F87: Добавить строку | Q87: add_FORMA1_R1_range
E88: 17 | F88: Прочие оборотные активы (стр.1260), в том числе: | H88: =IF('Форма 1. Актив'!H30="(","(","") ->  | I88: ='Форма 1. Актив'!I30 -> 0 | J88: =IF(H88="(",")","") ->  | K88: =IF('Форма 1. Актив'!K30="(","(","") ->  | L88: ='Форма 1. Актив'!L30 -> 0 | M88: =IF(K88="(",")","") ->  | N88: =IF('Форма 1. Актив'!N30="(","(","") ->  | O88: ='Форма 1. Актив'!O30 -> 0 | P88: =IF(N88="(",")","") -> 
E89: 17.1 | G89: 12601 | J89: =IF(H89="(",")","") ->  | M89: =IF(K89="(",")","") ->  | P89: =IF(N89="(",")","") -> 
E90: 17.2 | G90: 12602 | J90: =IF(H90="(",")","") ->  | M90: =IF(K90="(",")","") ->  | P90: =IF(N90="(",")","") -> 
E91: 17.3 | G91: 12603 | J91: =IF(H91="(",")","") ->  | M91: =IF(K91="(",")","") ->  | P91: =IF(N91="(",")","") -> 
F92: Добавить строку | Q92: add_FORMA1_R1_range
E93: 18 | F93: Уставный капитал (складочный капитал, уставный фонд, вклады товарищей) (стр.1310), в том числе: | H93: =IF('Форма 1. Пассив'!H14="(","(","") ->  | I93: ='Форма 1. Пассив'!I14 -> 40732 | J93: =IF(H93="(",")","") ->  | K93: =IF('Форма 1. Пассив'!K14="(","(","") ->  | L93: ='Форма 1. Пассив'!L14 -> 40732 | M93: =IF(K93="(",")","") ->  | N93: =IF('Форма 1. Пассив'!N14="(","(","") ->  | O93: ='Форма 1. Пассив'!O14 -> 40732 | P93: =IF(N93="(",")","") -> 
E94: 18.1 | F94: Уставный капитал | G94: 13101 | I94: 40732 | J94: =IF(H94="(",")","") ->  | L94: 40732 | M94: =IF(K94="(",")","") ->  | O94: 40732 | P94: =IF(N94="(",")","") -> 
F95: Добавить строку | Q95: add_FORMA1_R1_range
E96: 19 | F96: Собственные акции, выкупленные у акционеров (стр.1320), в том числе: | H96: =IF('Форма 1. Пассив'!H15="(","(","") -> ( | I96: ='Форма 1. Пассив'!I15 -> 0 | J96: =IF(H96="(",")","") -> ) | K96: =IF('Форма 1. Пассив'!K15="(","(","") -> ( | L96: ='Форма 1. Пассив'!L15 -> 0 | M96: =IF(K96="(",")","") -> ) | N96: =IF('Форма 1. Пассив'!N15="(","(","") -> ( | O96: ='Форма 1. Пассив'!O15 -> 0 | P96: =IF(N96="(",")","") -> )
E97: 19.1 | G97: 13201 | H97: ( | J97: ) | K97: ( | M97: ) | N97: ( | P97: )
F98: Добавить строку | Q98: add_FORMA1_R2_range
E99: 20 | F99: Целевой капитал (стр.1320), в том числе: | H99: =IF((SUMIF(OFFSET(SUM__1320_1,0,-1),"",SUM__1320_1)-SUMIF(OFFSET(SUM__1320_1,0,-1),"(",SUM__1320_1))<0,"(","") ->  | I99: =ABS(SUMIF(OFFSET(SUM__1320_1,0,-1),"",SUM__1320_1)-SUMIF(OFFSET(SUM__1320_1,0,-1),"(",SUM__1320_1)) -> 0 | J99: =IF(H99="(",")","") ->  | K99: =IF((SUMIF(OFFSET(SUM__1320_2,0,-1),"",SUM__1320_2)-SUMIF(OFFSET(SUM__1320_2,0,-1),"(",SUM__1320_2))<0,"(","") ->  | L99: =ABS(SUMIF(OFFSET(SUM__1320_2,0,-1),"",SUM__1320_2)-SUMIF(OFFSET(SUM__1320_2,0,-1),"(",SUM__1320_2)) -> 0 | M99: =IF(K99="(",")","") ->  | N99: =IF((SUMIF(OFFSET(SUM__1320_3,0,-1),"",SUM__1320_3)-SUMIF(OFFSET(SUM__1320_3,0,-1),"(",SUM__1320_3))<0,"(","") ->  | O99: =ABS(SUMIF(OFFSET(SUM__1320_3,0,-1),"",SUM__1320_3)-SUMIF(OFFSET(SUM__1320_3,0,-1),"(",SUM__1320_3)) -> 0 | P99: =IF(N99="(",")","") -> 
E100: 20.1 | G100: 13201 | J100: =IF(H100="(",")","") ->  | M100: =IF(K100="(",")","") ->  | P100: =IF(N100="(",")","") -> 
F101: Добавить строку | Q101: add_FORMA1_R1_range
E102: 21 | F102: Переоценка внеоборотных активов (стр.1340), в том числе: | H102: =IF('Форма 1. Пассив'!H16="(","(","") ->  | I102: ='Форма 1. Пассив'!I16 -> 15079 | J102: =IF(H102="(",")","") ->  | K102: =IF('Форма 1. Пассив'!K16="(","(","") ->  | L102: ='Форма 1. Пассив'!L16 -> 15079 | M102: =IF(K102="(",")","") ->  | N102: =IF('Форма 1. Пассив'!N16="(","(","") ->  | O102: ='Форма 1. Пассив'!O16 -> 15083 | P102: =IF(N102="(",")","") -> 
E103: 21.1 | F103: Имущество, переданное по переоценке до 2002 года | G103: 13401 | I103: 15079 | J103: =IF(H103="(",")","") ->  | L103: 15079 | M103: =IF(K103="(",")","") ->  | O103: 15083 | P103: =IF(N103="(",")","") -> 
F104: Добавить строку | Q104: add_FORMA1_R1_range
E105: 22 | F105: Добавочный капитал (без переоценки)/Целевые средства (стр.1350), в том числе: | H105: =IF('Форма 1. Пассив'!H17="(","(","") ->  | I105: ='Форма 1. Пассив'!I17 -> 35923 | J105: =IF(H105="(",")","") ->  | K105: =IF('Форма 1. Пассив'!K17="(","(","") ->  | L105: ='Форма 1. Пассив'!L17 -> 15716 | M105: =IF(K105="(",")","") ->  | N105: =IF('Форма 1. Пассив'!N17="(","(","") ->  | O105: ='Форма 1. Пассив'!O17 -> 15716 | P105: =IF(N105="(",")","") -> 
E106: 22.1 | F106: Муниципальное имущество, переданное по переоценке до 2002 года | G106: 13501 | I106: 35923 | J106: =IF(H106="(",")","") ->  | L106: 15716 | M106: =IF(K106="(",")","") ->  | O106: 15716 | P106: =IF(N106="(",")","") -> 
E107: 22.2 | G107: 13502 | J107: =IF(H107="(",")","") ->  | M107: =IF(K107="(",")","") ->  | P107: =IF(N107="(",")","") -> 
F108: Добавить строку | Q108: add_FORMA1_R1_range
E109: 23 | F109: Резервный капитал/Фонд недвижимого и особо ценного движимого имущества (стр.1360), в том числе: | H109: =IF('Форма 1. Пассив'!H18="(","(","") ->  | I109: ='Форма 1. Пассив'!I18 -> 0 | J109: =IF(H109="(",")","") ->  | K109: =IF('Форма 1. Пассив'!K18="(","(","") ->  | L109: ='Форма 1. Пассив'!L18 -> 0 | M109: =IF(K109="(",")","") ->  | N109: =IF('Форма 1. Пассив'!N18="(","(","") ->  | O109: ='Форма 1. Пассив'!O18 -> 0 | P109: =IF(N109="(",")","") -> 
E110: 23.1 | G110: 13601 | J110: =IF(H110="(",")","") ->  | M110: =IF(K110="(",")","") ->  | P110: =IF(N110="(",")","") -> 
E111: 23.2 | G111: 13602 | J111: =IF(H111="(",")","") ->  | M111: =IF(K111="(",")","") ->  | P111: =IF(N111="(",")","") -> 
F112: Добавить строку | Q112: add_FORMA1_R1_range
E113: 24 | F113: Нераспределенная прибыль (непокрытый убыток)/Резервные и иные целевые фонды (стр.1370), в том числе: | H113: =IF('Форма 1. Пассив'!H19="(","(","") ->  | I113: ='Форма 1. Пассив'!I19 -> 6142 | J113: =IF(H113="(",")","") ->  | K113: =IF('Форма 1. Пассив'!K19="(","(","") ->  | L113: ='Форма 1. Пассив'!L19 -> 6042 | M113: =IF(K113="(",")","") ->  | N113: =IF('Форма 1. Пассив'!N19="(","(","") -> ( | O113: ='Форма 1. Пассив'!O19 -> 3893 | P113: =IF(N113="(",")","") -> )
E114: 24.1 | F114: прибыль, убыток | G114: 13701 | I114: 331 | J114: =IF(H114="(",")","") ->  | L114: 3871 | M114: =IF(K114="(",")","") ->  | O114: 67 | P114: =IF(N114="(",")","") -> 
E115: 24.2 | G115: 13702 | J115: =IF(H115="(",")","") ->  | M115: =IF(K115="(",")","") ->  | P115: =IF(N115="(",")","") -> 
F116: Добавить строку | Q116: add_FORMA1_R1_range
E117: 25 | F117: Вписываемые показатели (стр.1375), в том числе: | H117: =IF((SUMIF(OFFSET(SUM_1375_1,0,-1),"",SUM_1375_1)-SUMIF(OFFSET(SUM_1375_1,0,-1),"(",SUM_1375_1))<0,"(","") ->  | I117: =ABS(SUMIF(OFFSET(SUM_1375_1,0,-1),"",SUM_1375_1)-SUMIF(OFFSET(SUM_1375_1,0,-1),"(",SUM_1375_1)) -> 0 | J117: =IF(H117="(",")","") ->  | K117: =IF((SUMIF(OFFSET(SUM_1375_2,0,-1),"",SUM_1375_2)-SUMIF(OFFSET(SUM_1375_2,0,-1),"(",SUM_1375_2))<0,"(","") ->  | L117: =ABS(SUMIF(OFFSET(SUM_1375_2,0,-1),"",SUM_1375_2)-SUMIF(OFFSET(SUM_1375_2,0,-1),"(",SUM_1375_2)) -> 0 | M117: =IF(K117="(",")","") ->  | N117: =IF((SUMIF(OFFSET(SUM_1375_3,0,-1),"",SUM_1375_3)-SUMIF(OFFSET(SUM_1375_3,0,-1),"(",SUM_1375_3))<0,"(","") ->  | O117: =ABS(SUMIF(OFFSET(SUM_1375_3,0,-1),"",SUM_1375_3)-SUMIF(OFFSET(SUM_1375_3,0,-1),"(",SUM_1375_3)) -> 0 | P117: =IF(N117="(",")","") -> 
E118: 25.1 | G118: 13751 | J118: =IF(H118="(",")","") ->  | M118: =IF(K118="(",")","") ->  | P118: =IF(N118="(",")","") -> 
E119: 25.2 | G119: 13752 | J119: =IF(H119="(",")","") ->  | M119: =IF(K119="(",")","") ->  | P119: =IF(N119="(",")","") -> 
F120: Добавить строку | Q120: add_FORMA1_R1_range
E121: 26 | F121: Заемные средства (стр.1410), в том числе: | H121: =IF('Форма 1. Пассив'!H22="(","(","") ->  | I121: ='Форма 1. Пассив'!I22 -> 0 | J121: =IF(H121="(",")","") ->  | K121: =IF('Форма 1. Пассив'!K22="(","(","") ->  | L121: ='Форма 1. Пассив'!L22 -> 0 | M121: =IF(K121="(",")","") ->  | N121: =IF('Форма 1. Пассив'!N22="(","(","") ->  | O121: ='Форма 1. Пассив'!O22 -> 0 | P121: =IF(N121="(",")","") -> 
E122: 26.1 | G122: 14101 | J122: =IF(H122="(",")","") ->  | M122: =IF(K122="(",")","") ->  | P122: =IF(N122="(",")","") -> 
E123: 26.2 | G123: 14102 | J123: =IF(H123="(",")","") ->  | M123: =IF(K123="(",")","") ->  | P123: =IF(N123="(",")","") -> 
F124: Добавить строку | Q124: add_FORMA1_R1_range
E125: 27 | F125: Отложенные налоговые обязательства (стр.1420), в том числе: | H125: =IF('Форма 1. Пассив'!H23="(","(","") ->  | I125: ='Форма 1. Пассив'!I23 -> 1535 | J125: =IF(H125="(",")","") ->  | K125: =IF('Форма 1. Пассив'!K23="(","(","") ->  | L125: ='Форма 1. Пассив'!L23 -> 1513 | M125: =IF(K125="(",")","") ->  | N125: =IF('Форма 1. Пассив'!N23="(","(","") ->  | O125: ='Форма 1. Пассив'!O23 -> 1273 | P125: =IF(N125="(",")","") -> 
E126: 27.1 | F126: Налогооблагаемые временные разницы между бух. и нал. Учетом (амортизация ОС) | G126: 14201 | I126: 1535 | J126: =IF(H126="(",")","") ->  | L126: 1513 | M126: =IF(K126="(",")","") ->  | O126: 1273 | P126: =IF(N126="(",")","") -> 
F127: Добавить строку | Q127: add_FORMA1_R1_range
E128: 28 | F128: Оценочные обязательства (стр.1430), в том числе: | H128: =IF('Форма 1. Пассив'!H24="(","(","") ->  | I128: ='Форма 1. Пассив'!I24 -> 0 | J128: =IF(H128="(",")","") ->  | K128: =IF('Форма 1. Пассив'!K24="(","(","") ->  | L128: ='Форма 1. Пассив'!L24 -> 0 | M128: =IF(K128="(",")","") ->  | N128: =IF('Форма 1. Пассив'!N24="(","(","") ->  | O128: ='Форма 1. Пассив'!O24 -> 0 | P128: =IF(N128="(",")","") -> 
E129: 28.1 | G129: 14301 | J129: =IF(H129="(",")","") ->  | M129: =IF(K129="(",")","") ->  | P129: =IF(N129="(",")","") -> 
E130: 28.2 | G130: 14302 | J130: =IF(H130="(",")","") ->  | M130: =IF(K130="(",")","") ->  | P130: =IF(N130="(",")","") -> 
F131: Добавить строку | Q131: add_FORMA1_R1_range
E132: 29 | F132: Вписываемые показатели (стр.1435), в том числе: | H132: =IF((SUMIF(OFFSET(SUM_1435_1,0,-1),"",SUM_1435_1)-SUMIF(OFFSET(SUM_1435_1,0,-1),"(",SUM_1435_1))<0,"(","") ->  | I132: =ABS(SUMIF(OFFSET(SUM_1435_1,0,-1),"",SUM_1435_1)-SUMIF(OFFSET(SUM_1435_1,0,-1),"(",SUM_1435_1)) -> 0 | J132: =IF(H132="(",")","") ->  | K132: =IF((SUMIF(OFFSET(SUM_1435_2,0,-1),"",SUM_1435_2)-SUMIF(OFFSET(SUM_1435_2,0,-1),"(",SUM_1435_2))<0,"(","") ->  | L132: =ABS(SUMIF(OFFSET(SUM_1435_2,0,-1),"",SUM_1435_2)-SUMIF(OFFSET(SUM_1435_2,0,-1),"(",SUM_1435_2)) -> 0 | M132: =IF(K132="(",")","") ->  | N132: =IF((SUMIF(OFFSET(SUM_1435_3,0,-1),"",SUM_1435_3)-SUMIF(OFFSET(SUM_1435_3,0,-1),"(",SUM_1435_3))<0,"(","") ->  | O132: =ABS(SUMIF(OFFSET(SUM_1435_3,0,-1),"",SUM_1435_3)-SUMIF(OFFSET(SUM_1435_3,0,-1),"(",SUM_1435_3)) -> 0 | P132: =IF(N132="(",")","") -> 
E133: 29.1 | G133: 14351 | J133: =IF(H133="(",")","") ->  | M133: =IF(K133="(",")","") ->  | P133: =IF(N133="(",")","") -> 
E134: 29.2 | G134: 14352 | J134: =IF(H134="(",")","") ->  | M134: =IF(K134="(",")","") ->  | P134: =IF(N134="(",")","") -> 
F135: Добавить строку | Q135: add_FORMA1_R1_range
E136: 30 | F136: Прочие долгосрочные обязательства (стр.1450), в том числе: | H136: =IF('Форма 1. Пассив'!H25="(","(","") ->  | I136: ='Форма 1. Пассив'!I25 -> 0 | J136: =IF(H136="(",")","") ->  | K136: =IF('Форма 1. Пассив'!K25="(","(","") ->  | L136: ='Форма 1. Пассив'!L25 -> 0 | M136: =IF(K136="(",")","") ->  | N136: =IF('Форма 1. Пассив'!N25="(","(","") ->  | O136: ='Форма 1. Пассив'!O25 -> 0 | P136: =IF(N136="(",")","") -> 
E137: 30.1 | G137: 14501 | J137: =IF(H137="(",")","") ->  | M137: =IF(K137="(",")","") ->  | P137: =IF(N137="(",")","") -> 
F138: Добавить строку | Q138: add_FORMA1_R1_range
E139: 31 | F139: Заемные средства (стр.1510), в том числе: | H139: =IF('Форма 1. Пассив'!H28="(","(","") ->  | I139: ='Форма 1. Пассив'!I28 -> 0 | J139: =IF(H139="(",")","") ->  | K139: =IF('Форма 1. Пассив'!K28="(","(","") ->  | L139: ='Форма 1. Пассив'!L28 -> 0 | M139: =IF(K139="(",")","") ->  | N139: =IF('Форма 1. Пассив'!N28="(","(","") ->  | O139: ='Форма 1. Пассив'!O28 -> 0 | P139: =IF(N139="(",")","") -> 
E140: 31.1 | G140: 15101 | J140: =IF(H140="(",")","") ->  | M140: =IF(K140="(",")","") ->  | P140: =IF(N140="(",")","") -> 
F141: Добавить строку | Q141: add_FORMA1_R1_range
E142: 32 | F142: Кредиторская задолженность (стр.1520), в том числе: | H142: =IF('Форма 1. Пассив'!H29="(","(","") ->  | I142: ='Форма 1. Пассив'!I29 -> 15336 | J142: =IF(H142="(",")","") ->  | K142: =IF('Форма 1. Пассив'!K29="(","(","") ->  | L142: ='Форма 1. Пассив'!L29 -> 11382 | M142: =IF(K142="(",")","") ->  | N142: =IF('Форма 1. Пассив'!N29="(","(","") ->  | O142: ='Форма 1. Пассив'!O29 -> 11036 | P142: =IF(N142="(",")","") -> 
E143: 32.1 | F143: поставщики и подрядчикизадолженность перед персоналом по зарплате - текущая на 31.12.2017 | G143: 15201 | I143: 4184 | J143: =IF(H143="(",")","") ->  | L143: 2936 | M143: =IF(K143="(",")","") ->  | O143: 3228 | P143: =IF(N143="(",")","") -> 
E144: 32.2 | F144: задолженность перед гос. Внебюджнтными фондами, текущая | G144: 15202 | I144: 3227 | L144: 3300 | O144: 3441
E145: 32.3 | F145: задолженность по налогам и сборам текущая | G145: 15203 | I145: 1694 | L145: 1689 | O145: 1174
E146: 32.4 | G146: 15204 | I146: 6231 | L146: 3457 | O146: 3193
E147: 32.5 | G147: 15205
E148: 32.6 | G148: 15206
E149: 32.7 | G149: 15207
F150: Добавить строку | Q150: add_FORMA1_R1_range
E151: 33 | F151: Доходы будущих периодов (стр.1530), в том числе: | H151: =IF('Форма 1. Пассив'!H30="(","(","") ->  | I151: ='Форма 1. Пассив'!I30 -> 6800 | J151: =IF(H151="(",")","") ->  | K151: =IF('Форма 1. Пассив'!K30="(","(","") ->  | L151: ='Форма 1. Пассив'!L30 -> 9317 | M151: =IF(K151="(",")","") ->  | N151: =IF('Форма 1. Пассив'!N30="(","(","") ->  | O151: ='Форма 1. Пассив'!O30 -> 5193 | P151: =IF(N151="(",")","") -> 
E152: 33.1 | F152: Стоимость ОС и материалов, которая будет погашаться через начисление амортизации и списание материалов в расход | G152: 15301 | I152: 6800 | J152: =IF(H152="(",")","") ->  | L152: 9317 | M152: =IF(K152="(",")","") ->  | O152: 5193 | P152: =IF(N152="(",")","") -> 
F153: Добавить строку | Q153: add_FORMA1_R1_range
E154: 34 | F154: Оценочные обязательства (стр.1540), в том числе: | H154: =IF('Форма 1. Пассив'!H31="(","(","") ->  | I154: ='Форма 1. Пассив'!I31 -> 0 | J154: =IF(H154="(",")","") ->  | K154: =IF('Форма 1. Пассив'!K31="(","(","") ->  | L154: ='Форма 1. Пассив'!L31 -> 0 | M154: =IF(K154="(",")","") ->  | N154: =IF('Форма 1. Пассив'!N31="(","(","") ->  | O154: ='Форма 1. Пассив'!O31 -> 0 | P154: =IF(N154="(",")","") -> 
E155: 34.1 | G155: 15401 | J155: =IF(H155="(",")","") ->  | M155: =IF(K155="(",")","") ->  | P155: =IF(N155="(",")","") -> 
F156: Добавить строку | Q156: add_FORMA1_R1_range
E157: 35 | F157: Вписываемые показатели (стр.1545), в том числе: | H157: =IF((SUMIF(OFFSET(SUM_1545_1,0,-1),"",SUM_1545_1)-SUMIF(OFFSET(SUM_1545_1,0,-1),"(",SUM_1545_1))<0,"(","") ->  | I157: =ABS(SUMIF(OFFSET(SUM_1545_1,0,-1),"",SUM_1545_1)-SUMIF(OFFSET(SUM_1545_1,0,-1),"(",SUM_1545_1)) -> 0 | J157: =IF(H157="(",")","") ->  | K157: =IF((SUMIF(OFFSET(SUM_1545_2,0,-1),"",SUM_1545_2)-SUMIF(OFFSET(SUM_1545_2,0,-1),"(",SUM_1545_2))<0,"(","") ->  | L157: =ABS(SUMIF(OFFSET(SUM_1545_2,0,-1),"",SUM_1545_2)-SUMIF(OFFSET(SUM_1545_2,0,-1),"(",SUM_1545_2)) -> 0 | M157: =IF(K157="(",")","") ->  | N157: =IF((SUMIF(OFFSET(SUM_1545_3,0,-1),"",SUM_1545_3)-SUMIF(OFFSET(SUM_1545_3,0,-1),"(",SUM_1545_3))<0,"(","") ->  | O157: =ABS(SUMIF(OFFSET(SUM_1545_3,0,-1),"",SUM_1545_3)-SUMIF(OFFSET(SUM_1545_3,0,-1),"(",SUM_1545_3)) -> 0 | P157: =IF(N157="(",")","") -> 
E158: 35.1 | G158: 15451 | J158: =IF(H158="(",")","") ->  | M158: =IF(K158="(",")","") ->  | P158: =IF(N158="(",")","") -> 
E159: 35.2 | G159: 15452 | J159: =IF(H159="(",")","") ->  | M159: =IF(K159="(",")","") ->  | P159: =IF(N159="(",")","") -> 
F160: Добавить строку | Q160: add_FORMA1_R1_range
E161: 36 | F161: Прочие краткосрочные обязательства (стр.1550), в том числе: | H161: =IF('Форма 1. Пассив'!H32="(","(","") ->  | I161: ='Форма 1. Пассив'!I32 -> 0 | J161: =IF(H161="(",")","") ->  | K161: =IF('Форма 1. Пассив'!K32="(","(","") ->  | L161: ='Форма 1. Пассив'!L32 -> 0 | M161: =IF(K161="(",")","") ->  | N161: =IF('Форма 1. Пассив'!N32="(","(","") ->  | O161: ='Форма 1. Пассив'!O32 -> 0 | P161: =IF(N161="(",")","") -> 
E162: 36.1 | G162: 15501 | J162: =IF(H162="(",")","") ->  | M162: =IF(K162="(",")","") ->  | P162: =IF(N162="(",")","") -> 
F163: Добавить строку | Q163: add_FORMA1_R1_range

Sheet Форма 2. Доходы-расходы
E6: =Getcode() -> ELPASS.FORMS.BH | M6: =version -> Версия 1.0 от 01.10.2017
M8: Форма 0710002 с. 1-2
E9: Отчёт о финансовых результатах
E12: Пояснения | F12: Наименование | G12: Код | H12: ="За "&IF(List_01_reporting_period="","отчётный период",List_01_reporting_period&" г.") -> За 2017 г. | K12: ="За "&IF(List_01_reporting_period="","отчётный период",List_01_reporting_period-1&" г.") -> За 2016 г.
E13: 1 | F13: 2 | G13: 3 | H13: 4 | K13: 5
F14: Выручка (за минусом налога на добавленную стоимость, акцизов) | G14: 2110 | I14: 140296 | J14: =IF(H14="(",")","") ->  | L14: 129282 | M14: =IF(K14="(",")","") -> 
F15: Себестоимость продаж | G15: 2120 | H15: ( | I15: 153198 | J15: ) | K15: ( | L15: 149353 | M15: )
F16: Валовая прибыль (убыток) | G16: 2100 | H16: ( | I16: 12902 | J16: =IF(H16="(",")","") -> ) | K16: ( | L16: 20071 | M16: =IF(K16="(",")","") -> )
F17: Коммерческие расходы | G17: 2210 | H17: ( | J17: ) | K17: ( | M17: )
F18: Управленческие расходы | G18: 2220 | H18: ( | J18: ) | K18: ( | M18: )
F19: Прибыль (убыток) от продаж | G19: 2200 | H19: ( | I19: 12902 | J19: =IF(H19="(",")","") -> ) | K19: ( | L19: 20071 | M19: =IF(K19="(",")","") -> )
F20: Доходы от участия в других организациях | G20: 2310 | J20: =IF(H20="(",")","") ->  | M20: =IF(K20="(",")","") -> 
F21: Проценты к получению | G21: 2320 | I21: 236 | J21: =IF(H21="(",")","") ->  | L21: 124 | M21: =IF(K21="(",")","") -> 
F22: Проценты к уплате | G22: 2330 | H22: ( | J22: ) | K22: ( | M22: )
F23: Прочие доходы | G23: 2340 | I23: 23148 | L23: 29343 | M23: =IF(K23="(",")","") -> 
F24: Прочие расходы | G24: 2350 | H24: ( | I24: 8891 | J24: ) | K24: ( | L24: 3733 | M24: )
F25: Прибыль (убыток) до налогообложения | G25: 2300 | I25: 1591 | J25: =IF(H25="(",")","") ->  | L25: 5663 | M25: =IF(K25="(",")","") -> 
F26: Текущий налог на прибыль | G26: 2410 | H26: ( | I26: 594 | J26: ) | K26: ( | M26: )
F27: в т.ч. постоянные налоговые обязательства (активы) | G27: 2421 | H27: ( | I27: 830 | J27: =IF(H27="(",")","") -> )
F28: Изменение отложенных налоговых обязательствов | G28: 2430 | H28: ( | I28: 22 | J28: =IF(H28="(",")","") -> ) | K28: ( | L28: 240 | M28: )
F29: Изменение отложенных налоговых активов | G29: 2450 | H29: ( | I29: 643 | J29: =IF(H29="(",")","") -> ) | K29: ( | L29: 1478 | M29: )
F30: Прочее | G30: 2460 | H30: ( | I30: 1 | J30: =IF(H30="(",")","") -> ) | K30: ( | L30: 74 | M30: )
F31: Чистая прибыль (убыток) | G31: 2400 | I31: 331 | J31: =IF(H31="(",")","") ->  | L31: 3871
F32: Справочно
F33: Результат от переоценки внеоборотных активов, не включаемый в чистую прибыль (убыток) периода | G33: 2510 | J33: =IF(H33="(",")","") ->  | M33: =IF(K33="(",")","") -> 
F34: Результат от прочих операций, не включаемый в чистую прибыль (убыток) периода | G34: 2520 | J34: =IF(H34="(",")","") ->  | M34: =IF(K34="(",")","") -> 
F35: Совокупный финансовый результат периода | G35: 2500 | H35: =IF((SUMIF(H31:H34,"",I31:I34)-SUMIF(H31:H34,"(",I31:I34))<0,"(","") ->  | I35: =ABS(SUMIF(H31:H34,"",I31:I34)-SUMIF(H31:H34,"(",I31:I34)) -> 331 | J35: =IF(H35="(",")","") ->  | K35: =IF((SUMIF(K31:K34,"",L31:L34)-SUMIF(K31:K34,"(",L31:L34))<0,"(","") ->  | L35: =ABS(SUMIF(K31:K34,"",L31:L34)-SUMIF(K31:K34,"(",L31:L34)) -> 3871 | M35: =IF(K35="(",")","") -> 
F36: Базовая прибыль (убыток) на акцию | G36: 2900 | J36: =IF(H36="(",")","") ->  | M36: =IF(K36="(",")","") -> 
F37: Единица измерения по строке 2900
F38: Разводненная прибыль (убыток) на акцию | G38: 2910 | J38: =IF(H38="(",")","") ->  | M38: =IF(K38="(",")","") -> 
F39: Единица измерения по строке 2910

Sheet Форма2. Расшифровка показателей
E5: =Getcode() -> ELPASS.FORMS.BH | M5: =version -> Версия 1.0 от 01.10.2017
M7: Форма 0710002 с. 3
E8: Отчёт о финансовых результатах
E9: Расшифровка отдельных показателей
E11: № п/п | F11: Наименование | G11: Код | H11: ="За "&IF(List_01_reporting_period="","отчётный период",List_01_reporting_period&" г.") -> За 2017 г. | K11: ="За "&IF(List_01_reporting_period="","отчётный период",List_01_reporting_period-1&" г.") -> За 2016 г.
E12: 1 | F12: 2 | G12: 3 | H12: 4 | K12: 5
E13: 1 | F13: Выручка (стр.2110), в том числе: | H13: =IF('Форма 2. Доходы-расходы'!H14="(","(","") ->  | I13: ='Форма 2. Доходы-расходы'!I14 -> 140296 | J13: =IF(H13="(",")","") ->  | K13: =IF('Форма 2. Доходы-расходы'!K14="(","(","") ->  | L13: ='Форма 2. Доходы-расходы'!L14 -> 129282 | M13: =IF(K13="(",")","") -> 
E14: 1.1 | F14: Доходы от реализации продукции, работ, услуг без НДС | G14: 21101 | I14: 140296 | J14: =IF(H14="(",")","") ->  | L14: 129282 | M14: =IF(K14="(",")","") -> 
E15: 1.2 | G15: 21102 | J15: =IF(H15="(",")","") ->  | M15: =IF(K15="(",")","") -> 
F16: Добавить строку | N16: add_FORMA2_R1_range
E17: 2 | F17: Себестоимость продаж (стр.2120), в том числе: | H17: =IF('Форма 2. Доходы-расходы'!H15="(","(","") -> ( | I17: ='Форма 2. Доходы-расходы'!I15 -> 153198 | J17: =IF(H17="(",")","") -> ) | K17: =IF('Форма 2. Доходы-расходы'!K15="(","(","") -> ( | L17: ='Форма 2. Доходы-расходы'!L15 -> 149353 | M17: =IF(K17="(",")","") -> )
E18: 2.1 | F18: Затраты на производство продукции, работ, услуг | G18: 21201 | H18: ( | I18: 153198 | J18: ) | K18: ( | L18: 149353 | M18: )
E19: 2.2 | G19: 21202 | H19: ( | J19: ) | K19: ( | M19: )
F20: Добавить строку | N20: add_FORMA2_R2_range
E21: 3 | F21: Валовая прибыль (убыток) (стр.2100), в том числе: | H21: =IF('Форма 2. Доходы-расходы'!H16="(","(","") -> ( | I21: ='Форма 2. Доходы-расходы'!I16 -> 12902 | J21: =IF(H21="(",")","") -> ) | K21: =IF('Форма 2. Доходы-расходы'!K16="(","(","") -> ( | L21: ='Форма 2. Доходы-расходы'!L16 -> 20071 | M21: =IF(K21="(",")","") -> )
E22: 3.1 | F22: Прибыль убыток от основной деятельности | G22: 21001 | I22: 12902 | J22: =IF(H22="(",")","") ->  | L22: 20071 | M22: =IF(K22="(",")","") -> 
E23: 3.2 | G23: 21002 | J23: =IF(H23="(",")","") ->  | M23: =IF(K23="(",")","") -> 
F24: Добавить строку | N24: add_FORMA2_R1_range
E25: 4 | F25: Коммерческие расходы (стр.2210), в том числе: | H25: =IF('Форма 2. Доходы-расходы'!H17="(","(","") -> ( | I25: ='Форма 2. Доходы-расходы'!I17 -> 0 | J25: =IF(H25="(",")","") -> ) | K25: =IF('Форма 2. Доходы-расходы'!K17="(","(","") -> ( | L25: ='Форма 2. Доходы-расходы'!L17 -> 0 | M25: =IF(K25="(",")","") -> )
E26: 4.1 | G26: 22101 | H26: ( | J26: ) | K26: ( | M26: )
F27: Добавить строку | N27: add_FORMA2_R2_range
E28: 5 | F28: Управленческие расходы (стр.2220), в том числе: | H28: =IF('Форма 2. Доходы-расходы'!H18="(","(","") -> ( | I28: ='Форма 2. Доходы-расходы'!I18 -> 0 | J28: =IF(H28="(",")","") -> ) | K28: =IF('Форма 2. Доходы-расходы'!K18="(","(","") -> ( | L28: ='Форма 2. Доходы-расходы'!L18 -> 0 | M28: =IF(K28="(",")","") -> )
E29: 5.1 | G29: 22201 | H29: ( | J29: ) | K29: ( | M29: )
F30: Добавить строку | N30: add_FORMA2_R2_range
E31: 6 | F31: Прибыль (убыток) от продаж (стр.2200), в том числе: | H31: =IF('Форма 2. Доходы-расходы'!H19="(","(","") -> ( | I31: ='Форма 2. Доходы-расходы'!I19 -> 12902 | J31: =IF(H31="(",")","") -> ) | K31: =IF('Форма 2. Доходы-расходы'!K19="(","(","") -> ( | L31: ='Форма 2. Доходы-расходы'!L19 -> 20071 | M31: =IF(K31="(",")","") -> )
E32: 6.1 | F32: Прибыль, убыток от основной деятельности | G32: 22001 | H32: ( | I32: 12902 | J32: =IF(H32="(",")","") -> ) | K32: ( | L32: 20071 | M32: =IF(K32="(",")","") -> )
E33: 6.2 | G33: 22002 | J33: =IF(H33="(",")","") ->  | M33: =IF(K33="(",")","") -> 
F34: Добавить строку | N34: add_FORMA2_R1_range
E35: 7 | F35: Доходы от участия в других организациях (стр.2310), в том числе: | H35: =IF('Форма 2. Доходы-расходы'!H20="(","(","") ->  | I35: ='Форма 2. Доходы-расходы'!I20 -> 0 | J35: =IF(H35="(",")","") ->  | K35: =IF('Форма 2. Доходы-расходы'!K20="(","(","") ->  | L35: ='Форма 2. Доходы-расходы'!L20 -> 0 | M35: =IF(K35="(",")","") -> 
E36: 7.1 | G36: 23101 | J36: =IF(H36="(",")","") ->  | M36: =IF(K36="(",")","") -> 
F37: Добавить строку | N37: add_FORMA2_R1_range
E38: 8 | F38: Проценты к получению (стр.2320), в том числе: | H38: =IF('Форма 2. Доходы-расходы'!H21="(","(","") ->  | I38: ='Форма 2. Доходы-расходы'!I21 -> 236 | J38: =IF(H38="(",")","") ->  | K38: =IF('Форма 2. Доходы-расходы'!K21="(","(","") ->  | L38: ='Форма 2. Доходы-расходы'!L21 -> 124 | M38: =IF(K38="(",")","") -> 
E39: 8.1 | F39: Проценты банка | G39: 23201 | I39: 236 | L39: 124
F40: Добавить строку | N40: add_FORMA2_R1_range
E41: 9 | F41: Проценты к уплате (стр.2330), в том числе: | H41: =IF('Форма 2. Доходы-расходы'!H22="(","(","") -> ( | I41: ='Форма 2. Доходы-расходы'!I22 -> 0 | J41: =IF(H41="(",")","") -> ) | K41: =IF('Форма 2. Доходы-расходы'!K22="(","(","") -> ( | L41: ='Форма 2. Доходы-расходы'!L22 -> 0 | M41: =IF(K41="(",")","") -> )
E42: 9.1 | G42: 23301 | H42: ( | J42: ) | K42: ( | M42: )
F43: Добавить строку | N43: add_FORMA2_R2_range
E44: 10 | F44: Прочие доходы (стр.2340), в том числе: | H44: =IF('Форма 2. Доходы-расходы'!H23="(","(","") ->  | I44: ='Форма 2. Доходы-расходы'!I23 -> 23148 | J44: =IF(H44="(",")","") ->  | K44: =IF('Форма 2. Доходы-расходы'!K23="(","(","") ->  | L44: ='Форма 2. Доходы-расходы'!L23 -> 29343 | M44: =IF(K44="(",")","") -> 
E45: 10.1 | F45: Субсидии, выделенные из бюджета и учтенные как внереализационный доход | G45: 23401 | I45: 22860 | J45: =IF(H45="(",")","") ->  | L45: 29297 | M45: =IF(K45="(",")","") -> 
E46: 10.2 | G46: 23402 | J46: =IF(H46="(",")","") ->  | M46: =IF(K46="(",")","") -> 
E47: 10.3 | G47: 23403 | J47: =IF(H47="(",")","") ->  | M47: =IF(K47="(",")","") -> 
F48: Добавить строку | N48: add_FORMA2_R1_range
E49: 11 | F49: Прочие расходы (стр.2350), в том числе: | H49: =IF('Форма 2. Доходы-расходы'!H24="(","(","") -> ( | I49: ='Форма 2. Доходы-расходы'!I24 -> 8891 | J49: =IF(H49="(",")","") -> ) | K49: =IF('Форма 2. Доходы-расходы'!K24="(","(","") -> ( | L49: ='Форма 2. Доходы-расходы'!L24 -> 3733 | M49: =IF(K49="(",")","") -> )
E50: 11.1 | G50: 23501 | H50: ( | J50: ) | K50: ( | M50: )
E51: 11.2 | G51: 23502 | H51: ( | J51: ) | K51: ( | M51: )
E52: 11.3 | G52: 23503 | H52: ( | J52: ) | K52: ( | M52: )
F53: Добавить строку | N53: add_FORMA2_R2_range
E54: 12 | F54: Прибыль (убыток) до налогообложения (стр.2300), в том числе: | H54: =IF('Форма 2. Доходы-расходы'!H25="(","(","") ->  | I54: ='Форма 2. Доходы-расходы'!I25 -> 1591 | J54: =IF(H54="(",")","") ->  | K54: =IF('Форма 2. Доходы-расходы'!K25="(","(","") ->  | L54: ='Форма 2. Доходы-расходы'!L25 -> 5663 | M54: =IF(K54="(",")","") -> 
E55: 12.1 | G55: 23001 | J55: =IF(H55="(",")","") ->  | M55: =IF(K55="(",")","") -> 
E56: 12.2 | G56: 23002 | J56: =IF(H56="(",")","") ->  | M56: =IF(K56="(",")","") -> 
F57: Добавить строку | N57: add_FORMA2_R1_range
E58: 13 | F58: В том числе постоянные налоговые обязательства (активы) (стр.2421), в том числе: | H58: =IF('Форма 2. Доходы-расходы'!H27="(","(","") -> ( | I58: ='Форма 2. Доходы-расходы'!I27 -> 830 | J58: =IF(H58="(",")","") -> ) | K58: =IF('Форма 2. Доходы-расходы'!K27="(","(","") ->  | L58: ='Форма 2. Доходы-расходы'!L27 -> 0 | M58: =IF(K58="(",")","") -> 
E59: 13.1 | G59: 24211 | J59: =IF(H59="(",")","") ->  | M59: =IF(K59="(",")","") -> 
F60: Добавить строку | N60: add_FORMA2_R1_range
E61: 14 | F61: Изменение отложенных налоговых обязательствов (стр.2430), в том числе: | H61: =IF('Форма 2. Доходы-расходы'!H28="(","(","") -> ( | I61: ='Форма 2. Доходы-расходы'!I28 -> 22 | J61: =IF(H61="(",")","") -> ) | K61: =IF('Форма 2. Доходы-расходы'!K28="(","(","") -> ( | L61: ='Форма 2. Доходы-расходы'!L28 -> 240 | M61: =IF(K61="(",")","") -> )
E62: 14.1 | F62: Амортизация для налогового учета ОС, единовременное списание ОС стоимостью до 100000 руб. | G62: 24301 | H62: ( | I62: 22 | J62: =IF(H62="(",")","") -> ) | K62: ( | L62: 240 | M62: =IF(K62="(",")","") -> )
F63: Добавить строку | N63: add_FORMA2_R1_range
E64: 15 | F64: Изменение отложенных налоговых активов (стр.2450), в том числе: | H64: =IF('Форма 2. Доходы-расходы'!H29="(","(","") -> ( | I64: ='Форма 2. Доходы-расходы'!I29 -> 643 | J64: =IF(H64="(",")","") -> ) | K64: =IF('Форма 2. Доходы-расходы'!K29="(","(","") -> ( | L64: ='Форма 2. Доходы-расходы'!L29 -> 1478 | M64: =IF(K64="(",")","") -> )
E65: 15.1 | F65: Прибыль (убыток) по налоговому учету, расходы будущих периодов, заработная плата | G65: 24501 | H65: ( | I65: 643 | J65: =IF(H65="(",")","") -> ) | K65: ( | L65: 1478 | M65: =IF(K65="(",")","") -> )
F66: Добавить строку | N66: add_FORMA2_R1_range
E67: 16 | F67: Прочее (стр.2460), в том числе: | H67: =IF('Форма 2. Доходы-расходы'!H30="(","(","") -> ( | I67: ='Форма 2. Доходы-расходы'!I30 -> 1 | J67: =IF(H67="(",")","") -> ) | K67: =IF('Форма 2. Доходы-расходы'!K30="(","(","") -> ( | L67: ='Форма 2. Доходы-расходы'!L30 -> 74 | M67: =IF(K67="(",")","") -> )
E68: 16.1 | F68: Пени по проверке ПФР | G68: 24601 | H68: ( | I68: 1 | J68: =IF(H68="(",")","") -> ) | K68: ( | L68: 74 | M68: =IF(K68="(",")","") -> )
E69: 16.2 | G69: 24602 | J69: =IF(H69="(",")","") ->  | M69: =IF(K69="(",")","") -> 
E70: 16.3 | G70: 24603 | J70: =IF(H70="(",")","") ->  | M70: =IF(K70="(",")","") -> 
F71: Добавить строку | N71: add_FORMA2_R1_range
E72: 17 | F72: Результат от переоценки внеоборотных активов, не включаемый в чистую прибыль (убыток) периода (стр.2510), в том числе: | H72: =IF('Форма 2. Доходы-расходы'!H33="(","(","") ->  | I72: ='Форма 2. Доходы-расходы'!I33 -> 0 | J72: =IF(H72="(",")","") ->  | K72: =IF('Форма 2. Доходы-расходы'!K33="(","(","") ->  | L72: ='Форма 2. Доходы-расходы'!L33 -> 0 | M72: =IF(K72="(",")","") -> 
E73: 17.1 | G73: 25101 | J73: =IF(H73="(",")","") ->  | M73: =IF(K73="(",")","") -> 
F74: Добавить строку | N74: add_FORMA2_R1_range
E75: 18 | F75: Результат от прочих операций, не включаемый в чистую прибыль (убыток) периода (стр.2520), в том числе: | H75: =IF('Форма 2. Доходы-расходы'!H34="(","(","") ->  | I75: ='Форма 2. Доходы-расходы'!I34 -> 0 | J75: =IF(H75="(",")","") ->  | K75: =IF('Форма 2. Доходы-расходы'!K34="(","(","") ->  | L75: ='Форма 2. Доходы-расходы'!L34 -> 0 | M75: =IF(K75="(",")","") -> 
E76: 18.1 | G76: 25201 | J76: =IF(H76="(",")","") ->  | M76: =IF(K76="(",")","") -> 
F77: Добавить строку | N77: add_FORMA2_R1_range

Sheet Форма 3. Движение капитала
F5: =Getcode() -> ELPASS.FORMS.BH | Z5: =version -> Версия 1.0 от 01.10.2017
Z7: Форма 0710023 с. 1-2
F8: Отчет об изменениях капитала
F9: 1. Движение капитала
F11: № п/п | G11: Наименование | H11: Код | I11: Уставный капитал | L11: Собственные акции, выкупленные у акционеров | O11: Добавочный капитал | R11: Резервный капитал | U11: Нераспределённая прибыль (непокрытый убыток) | X11: Итого
F13: 1 | G13: 2 | H13: 3 | I13: 4 | L13: 5 | O13: 6 | R13: 7 | U13: 8 | X13: 9
F14: 1 | G14: ="Величина капитала на 31 декабря "&IF(List_01_reporting_period>0,List_01_reporting_period-2&" г. ","НЕ УКАЗАН")& " (год, предшествующий предыдущему)" -> Величина капитала на 31 декабря 2015 г. (год, предшествующий предыдущему) | H14: 3100 | J14: 40732 | K14: =IF(I14="(",")","") ->  | L14: ( | N14: ) | P14: 30799 | Q14: =IF(O14="(",")","") ->  | T14: =IF(R14="(",")","") ->  | U14: ( | V14: 3893 | W14: =IF(U14="(",")","") -> ) | X14: =IF(IF(I14="(",-J14,J14)+IF(L14="(",-M14,M14)+IF(O14="(",-P14,P14)+IF(R14="(",-S14,S14)+IF(U14="(",-V14,V14)<0,"(","") ->  | Y14: =ABS(IF(I14="(",-J14,J14)+IF(L14="(",-M14,M14)+IF(O14="(",-P14,P14)+IF(R14="(",-S14,S14)+IF(U14="(",-V14,V14)) -> 67638 | Z14: =IF(X14="(",")","") -> 
F15: 2 | G15: ="За "&IF(List_01_reporting_period>0,List_01_reporting_period-1&" г. ","НЕ УКАЗАН")& " (предыдущий год)" -> За 2016 г. (предыдущий год)
F16: 2.1 | G16: Увеличение капитала - всего, в том числе: | H16: 3210 | I16: =IF(((SUMIF(I17:I23,"",J17:J23)-SUMIF(I17:I23,"(",J17:J23)))<0,"(","") ->  | J16: =ABS((SUMIF(I17:I23,"",J17:J23)-SUMIF(I17:I23,"(",J17:J23))) -> 0 | K16: =IF(I16="(",")","") ->  | L16: =IF(((SUMIF(L17:L23,"",M17:M23)-SUMIF(L17:L23,"(",M17:M23)))<0,"(","") ->  | M16: =ABS((SUMIF(L17:L23,"",M17:M23)-SUMIF(L17:L23,"(",M17:M23))) -> 0 | N16: =IF(L16="(",")","") ->  | O16: =IF(((SUMIF(O17:O23,"",P17:P23)-SUMIF(O17:O23,"(",P17:P23)))<0,"(","") ->  | P16: =ABS((SUMIF(O17:O23,"",P17:P23)-SUMIF(O17:O23,"(",P17:P23))) -> 0 | Q16: =IF(O16="(",")","") ->  | R16: =IF(((SUMIF(R17:R23,"",S17:S23)-SUMIF(R17:R23,"(",S17:S23)))<0,"(","") ->  | S16: =ABS((SUMIF(R17:R23,"",S17:S23)-SUMIF(R17:R23,"(",S17:S23))) -> 0 | T16: =IF(R16="(",")","") ->  | U16: =IF(((SUMIF(U17:U23,"",V17:V23)-SUMIF(U17:U23,"(",V17:V23)))<0,"(","") ->  | V16: =ABS((SUMIF(U17:U23,"",V17:V23)-SUMIF(U17:U23,"(",V17:V23))) -> 9935 | W16: =IF(U16="(",")","") ->  | X16: =IF(IF(I16="(",-J16,J16)+IF(L16="(",-M16,M16)+IF(O16="(",-P16,P16)+IF(R16="(",-S16,S16)+IF(U16="(",-V16,V16)<0,"(","") ->  | Y16: =ABS(IF(I16="(",-J16,J16)+IF(L16="(",-M16,M16)+IF(O16="(",-P16,P16)+IF(R16="(",-S16,S16)+IF(U16="(",-V16,V16)) -> 9935 | Z16: =IF(X16="(",")","") -> 
F17: 2.1.1 | G17: чистая прибыль | H17: 3211 | J17: x | M17: x | P17: x | S17: x | V17: 3871 | W17: =IF(U17="(",")","") ->  | X17: =IF(U17="(","(","") ->  | Y17: =V17 -> 3871
F18: 2.1.2 | G18: переоценка имущества | H18: 3212 | J18: x | M18: x | Q18: =IF(O18="(",")","") ->  | S18: x | W18: =IF(U18="(",")","") ->  | X18: =IF(IF(O18="(",-P18,P18)+IF(U18="(",-V18,V18)<0,"(","") ->  | Y18: =ABS(IF(O18="(",-P18,P18)+IF(U18="(",-V18,V18)) -> 0
F19: 2.1.3 | G19: доходы, относящиеся непосредственно на увеличение капитала | H19: 3213 | J19: x | M19: x | Q19: =IF(O19="(",")","") ->  | S19: x | V19: 6064 | W19: =IF(U19="(",")","") ->  | X19: =IF(IF(O19="(",-P19,P19)+IF(U19="(",-V19,V19)<0,"(","") ->  | Y19: =ABS(IF(O19="(",-P19,P19)+IF(U19="(",-V19,V19)) -> 6064
F20: 2.1.4 | G20: дополнительный выпуск акций | H20: 3214 | K20: =IF(I20="(",")","") ->  | N20: =IF(L20="(",")","") ->  | Q20: =IF(O20="(",")","") ->  | S20: x | V20: x | X20: =IF(IF(I20="(",-J20,J20)+IF(L20="(",-M20,M20)+IF(O20="(",-P20,P20)<0,"(","") ->  | Y20: =ABS(IF(I20="(",-J20,J20)+IF(L20="(",-M20,M20)+IF(O20="(",-P20,P20)) -> 0
F21: 2.1.5 | G21: увеличение номинальной стоимости акций | H21: 3215 | K21: =IF(I21="(",")","") ->  | N21: =IF(L21="(",")","") ->  | Q21: =IF(O21="(",")","") ->  | S21: x | W21: =IF(U21="(",")","") ->  | Y21: x
F22: 2.1.6 | G22: реорганизация юридического лица | H22: 3216 | K22: =IF(I22="(",")","") ->  | N22: =IF(L22="(",")","") ->  | Q22: =IF(O22="(",")","") ->  | T22: =IF(R22="(",")","") ->  | W22: =IF(U22="(",")","") ->  | X22: =IF(IF(I22="(",-J22,J22)+IF(L22="(",-M22,M22)+IF(O22="(",-P22,P22)+IF(R22="(",-S22,S22)+IF(U22="(",-V22,V22)<0,"(","") ->  | Y22: =ABS(IF(I22="(",-J22,J22)+IF(L22="(",-M22,M22)+IF(O22="(",-P22,P22)+IF(R22="(",-S22,S22)+IF(U22="(",-V22,V22)) -> 0
G23: Добавить запись | AA23: add_FORMA3_CAPITAL_range
F24: 2.2 | G24: Уменьшение капитала - всего, в том числе: | H24: 3220 | I24: =IF(((SUMIF(I25:I32,"",J25:J32)-SUMIF(I25:I32,"(",J25:J32)))<0,"(","") ->  | J24: =ABS((SUMIF(I25:I32,"",J25:J32)-SUMIF(I25:I32,"(",J25:J32))) -> 0 | K24: =IF(I24="(",")","") ->  | L24: =IF(((SUMIF(L25:L32,"",M25:M32)-SUMIF(L25:L32,"(",M25:M32)))<0,"(","") ->  | M24: =ABS((SUMIF(L25:L32,"",M25:M32)-SUMIF(L25:L32,"(",M25:M32))) -> 0 | N24: =IF(L24="(",")","") ->  | O24: =IF(((SUMIF(O25:O32,"",P25:P32)-SUMIF(O25:O32,"(",P25:P32)))<0,"(","") -> ( | P24: =ABS((SUMIF(O25:O32,"",P25:P32)-SUMIF(O25:O32,"(",P25:P32))) -> 4 | Q24: =IF(O24="(",")","") -> ) | R24: =IF(((SUMIF(R25:R32,"",S25:S32)-SUMIF(R25:R32,"(",S25:S32)))<0,"(","") ->  | S24: =ABS((SUMIF(R25:R32,"",S25:S32)-SUMIF(R25:R32,"(",S25:S32))) -> 0 | T24: =IF(R24="(",")","") ->  | U24: =IF(((SUMIF(U25:U32,"",V25:V32)-SUMIF(U25:U32,"(",V25:V32)))<0,"(","") ->  | V24: =ABS((SUMIF(U25:U32,"",V25:V32)-SUMIF(U25:U32,"(",V25:V32))) -> 0 | W24: =IF(U24="(",")","") ->  | X24: =IF(IF(I24="(",-J24,J24)+IF(L24="(",-M24,M24)+IF(O24="(",-P24,P24)+IF(R24="(",-S24,S24)+IF(U24="(",-V24,V24)<0,"(","") -> ( | Y24: =ABS(IF(I24="(",-J24,J24)+IF(L24="(",-M24,M24)+IF(O24="(",-P24,P24)+IF(R24="(",-S24,S24)+IF(U24="(",-V24,V24)) -> 4 | Z24: =IF(X24="(",")","") -> )
F25: 2.2.1 | G25: убыток | H25: 3221 | J25: x | M25: x | P25: x | S25: x | U25: ( | W25: ) | X25: =IF(U25="(","(","") -> ( | Y25: =V25 -> 0 | Z25: )
F26: 2.2.2 | G26: переоценка имущества | H26: 3222 | J26: x | M26: x | O26: ( | Q26: ) | S26: x | U26: ( | W26: ) | X26: =IF(IF(O26="(",-P26,P26)+IF(U26="(",-V26,V26)<0,"(","") ->  | Y26: =ABS(IF(O26="(",-P26,P26)+IF(U26="(",-V26,V26)) -> 0
F27: 2.2.3 | G27: расходы, относящиеся непосредственно на уменьшение капитала | H27: 3223 | J27: x | M27: x | O27: ( | P27: 4 | Q27: ) | S27: x | U27: ( | W27: ) | X27: =IF(IF(O27="(",-P27,P27)+IF(U27="(",-V27,V27)<0,"(","") -> ( | Y27: =ABS(IF(O27="(",-P27,P27)+IF(U27="(",-V27,V27)) -> 4 | Z27: )
F28: 2.2.4 | G28: уменьшение номинальной стоимости акций | H28: 3224 | I28: ( | K28: ) | N28: =IF(L28="(",")","") ->  | Q28: =IF(O28="(",")","") ->  | S28: x | W28: =IF(U28="(",")","") ->  | X28: =IF(IF(I28="(",-J28,J28)+IF(L28="(",-M28,M28)+IF(O28="(",-P28,P28)+IF(U28="(",-V28,V28)<0,"(","") ->  | Y28: =ABS(IF(I28="(",-J28,J28)+IF(L28="(",-M28,M28)+IF(O28="(",-P28,P28)+IF(U28="(",-V28,V28)) -> 0
F29: 2.2.5 | G29: уменьшения количества акций | H29: 3225 | I29: ( | K29: ) | N29: =IF(L29="(",")","") ->  | Q29: =IF(O29="(",")","") ->  | S29: x | W29: =IF(U29="(",")","") ->  | X29: =IF(IF(I29="(",-J29,J29)+IF(L29="(",-M29,M29)+IF(O29="(",-P29,P29)+IF(U29="(",-V29,V29)<0,"(","") ->  | Y29: =ABS(IF(I29="(",-J29,J29)+IF(L29="(",-M29,M29)+IF(O29="(",-P29,P29)+IF(U29="(",-V29,V29)) -> 0
F30: 2.2.6 | G30: реорганизация юридического лица | H30: 3226 | K30: =IF(I30="(",")","") ->  | N30: =IF(L30="(",")","") ->  | Q30: =IF(O30="(",")","") ->  | T30: =IF(R30="(",")","") ->  | W30: =IF(U30="(",")","") ->  | X30: =IF(IF(I30="(",-J30,J30)+IF(L30="(",-M30,M30)+IF(O30="(",-P30,P30)+IF(R30="(",-S30,S30)+IF(U30="(",-V30,V30)<0,"(","") ->  | Y30: =ABS(IF(I30="(",-J30,J30)+IF(L30="(",-M30,M30)+IF(O30="(",-P30,P30)+IF(R30="(",-S30,S30)+IF(U30="(",-V30,V30)) -> 0
F31: 2.2.7 | G31: дивиденды | H31: 3227 | J31: x | M31: x | P31: x | S31: x | U31: ( | W31: ) | X31: =IF(U31="(","(","") -> ( | Y31: =V31 -> 0 | Z31: )
G32: Добавить запись | AA32: add_FORMA3_CAPITAL_range
F33: 2.3 | G33: Изменение добавочного капитала | H33: 3230 | J33: x | M33: x | Q33: =IF(O33="(",")","") ->  | T33: =IF(R33="(",")","") ->  | W33: =IF(U33="(",")","") ->  | Y33: x
F34: 2.4 | G34: Изменение резервного капитала | H34: 3240 | J34: x | M34: x | P34: x | T34: =IF(R34="(",")","") ->  | W34: =IF(U34="(",")","") ->  | Y34: x
F35: 2.5 | G35: ="Величина капитала на 31 декабря "&IF(List_01_reporting_period>0,List_01_reporting_period-1&" г. ","НЕ УКАЗАН")& " (предыдущий год)" -> Величина капитала на 31 декабря 2016 г. (предыдущий год) | H35: 3200 | J35: 40732 | K35: =IF(I35="(",")","") ->  | L35: ( | N35: ) | P35: 30795 | Q35: =IF(O35="(",")","") ->  | T35: =IF(R35="(",")","") ->  | V35: 6042 | W35: =IF(U35="(",")","") ->  | X35: =IF(IF(I35="(",-J35,J35)+IF(L35="(",-M35,M35)+IF(O35="(",-P35,P35)+IF(R35="(",-S35,S35)+IF(U35="(",-V35,V35)<0,"(","") ->  | Y35: =ABS(IF(I35="(",-J35,J35)+IF(L35="(",-M35,M35)+IF(O35="(",-P35,P35)+IF(R35="(",-S35,S35)+IF(U35="(",-V35,V35)) -> 77569 | Z35: =IF(X35="(",")","") -> 
F36: 3 | G36: ="За "&IF(List_01_reporting_period>0,List_01_reporting_period&" г. ","НЕ УКАЗАН")& " (отчетный год)" -> За 2017 г. (отчетный год)
F37: 3.1 | G37: Увеличение капитала - всего, в том числе: | H37: 3310 | I37: =IF(((SUMIF(I38:I44,"",J38:J44)-SUMIF(I38:I44,"(",J38:J44)))<0,"(","") ->  | J37: =ABS((SUMIF(I38:I44,"",J38:J44)-SUMIF(I38:I44,"(",J38:J44))) -> 0 | K37: =IF(I37="(",")","") ->  | L37: =IF(((SUMIF(L38:L44,"",M38:M44)-SUMIF(L38:L44,"(",M38:M44)))<0,"(","") ->  | M37: =ABS((SUMIF(L38:L44,"",M38:M44)-SUMIF(L38:L44,"(",M38:M44))) -> 0 | N37: =IF(L37="(",")","") ->  | O37: =IF(((SUMIF(O38:O44,"",P38:P44)-SUMIF(O38:O44,"(",P38:P44)))<0,"(","") ->  | P37: =ABS((SUMIF(O38:O44,"",P38:P44)-SUMIF(O38:O44,"(",P38:P44))) -> 20207 | Q37: =IF(O37="(",")","") ->  | R37: =IF(((SUMIF(R38:R44,"",S38:S44)-SUMIF(R38:R44,"(",S38:S44)))<0,"(","") ->  | S37: =ABS((SUMIF(R38:R44,"",S38:S44)-SUMIF(R38:R44,"(",S38:S44))) -> 0 | T37: =IF(R37="(",")","") ->  | U37: =IF(((SUMIF(U38:U44,"",V38:V44)-SUMIF(U38:U44,"(",V38:V44)))<0,"(","") ->  | V37: =ABS((SUMIF(U38:U44,"",V38:V44)-SUMIF(U38:U44,"(",V38:V44))) -> 331 | W37: =IF(U37="(",")","") ->  | X37: =IF(IF(I37="(",-J37,J37)+IF(L37="(",-M37,M37)+IF(O37="(",-P37,P37)+IF(R37="(",-S37,S37)+IF(U37="(",-V37,V37)<0,"(","") ->  | Y37: =ABS(IF(I37="(",-J37,J37)+IF(L37="(",-M37,M37)+IF(O37="(",-P37,P37)+IF(R37="(",-S37,S37)+IF(U37="(",-V37,V37)) -> 20538 | Z37: =IF(X37="(",")","") -> 
F38: 3.1.1 | G38: чистая прибыль | H38: 3311 | J38: x | M38: x | P38: x | S38: x | V38: 331 | W38: =IF(U38="(",")","") ->  | X38: =IF(U38="(","(","") ->  | Y38: =V38 -> 331
F39: 3.1.2 | G39: переоценка имущества | H39: 3312 | J39: x | M39: x | Q39: =IF(O39="(",")","") ->  | S39: x | W39: =IF(U39="(",")","") ->  | X39: =IF(IF(O39="(",-P39,P39)+IF(U39="(",-V39,V39)<0,"(","") ->  | Y39: =ABS(IF(O39="(",-P39,P39)+IF(U39="(",-V39,V39)) -> 0
F40: 3.1.3 | G40: доходы, относящиеся непосредственно на увеличение капитала | H40: 3313 | J40: x | M40: x | P40: 20207 | Q40: =IF(O40="(",")","") ->  | S40: x | W40: =IF(U40="(",")","") ->  | X40: =IF(IF(O40="(",-P40,P40)+IF(U40="(",-V40,V40)<0,"(","") ->  | Y40: =ABS(IF(O40="(",-P40,P40)+IF(U40="(",-V40,V40)) -> 20207
F41: 3.1.4 | G41: дополнительный выпуск акций | H41: 3314 | K41: =IF(I41="(",")","") ->  | N41: =IF(L41="(",")","") ->  | Q41: =IF(O41="(",")","") ->  | S41: x | V41: x | X41: =IF(IF(I41="(",-J41,J41)+IF(L41="(",-M41,M41)+IF(O41="(",-P41,P41)<0,"(","") ->  | Y41: =ABS(IF(I41="(",-J41,J41)+IF(L41="(",-M41,M41)+IF(O41="(",-P41,P41)) -> 0
F42: 3.1.5 | G42: увеличение номинальной стоимости акций | H42: 3315 | K42: =IF(I42="(",")","") ->  | N42: =IF(L42="(",")","") ->  | Q42: =IF(O42="(",")","") ->  | S42: x | W42: =IF(U42="(",")","") ->  | Y42: x
F43: 3.1.6 | G43: реорганизация юридического лица | H43: 3316 | K43: =IF(I43="(",")","") ->  | N43: =IF(L43="(",")","") ->  | Q43: =IF(O43="(",")","") ->  | T43: =IF(R43="(",")","") ->  | W43: =IF(U43="(",")","") ->  | X43: =IF(IF(I43="(",-J43,J43)+IF(L43="(",-M43,M43)+IF(O43="(",-P43,P43)+IF(R43="(",-S43,S43)+IF(U43="(",-V43,V43)<0,"(","") ->  | Y43: =ABS(IF(I43="(",-J43,J43)+IF(L43="(",-M43,M43)+IF(O43="(",-P43,P43)+IF(R43="(",-S43,S43)+IF(U43="(",-V43,V43)) -> 0
G44: Добавить запись | AA44: add_FORMA3_CAPITAL_range
F45: 3.2 | G45: Уменьшение капитала - всего, в том числе: | H45: 3320 | I45: =IF(((SUMIF(I46:I53,"",J46:J53)-SUMIF(I46:I53,"(",J46:J53)))<0,"(","") ->  | J45: =ABS((SUMIF(I46:I53,"",J46:J53)-SUMIF(I46:I53,"(",J46:J53))) -> 0 | K45: =IF(I45="(",")","") ->  | L45: =IF(((SUMIF(L46:L53,"",M46:M53)-SUMIF(L46:L53,"(",M46:M53)))<0,"(","") ->  | M45: =ABS((SUMIF(L46:L53,"",M46:M53)-SUMIF(L46:L53,"(",M46:M53))) -> 0 | N45: =IF(L45="(",")","") ->  | O45: =IF(((SUMIF(O46:O53,"",P46:P53)-SUMIF(O46:O53,"(",P46:P53)))<0,"(","") ->  | P45: =ABS((SUMIF(O46:O53,"",P46:P53)-SUMIF(O46:O53,"(",P46:P53))) -> 0 | Q45: =IF(O45="(",")","") ->  | R45: =IF(((SUMIF(R46:R53,"",S46:S53)-SUMIF(R46:R53,"(",S46:S53)))<0,"(","") ->  | S45: =ABS((SUMIF(R46:R53,"",S46:S53)-SUMIF(R46:R53,"(",S46:S53))) -> 0 | T45: =IF(R45="(",")","") ->  | U45: =IF(((SUMIF(U46:U53,"",V46:V53)-SUMIF(U46:U53,"(",V46:V53)))<0,"(","") -> ( | V45: =ABS((SUMIF(U46:U53,"",V46:V53)-SUMIF(U46:U53,"(",V46:V53))) -> 231 | W45: =IF(U45="(",")","") -> ) | X45: =IF(IF(I45="(",-J45,J45)+IF(L45="(",-M45,M45)+IF(O45="(",-P45,P45)+IF(R45="(",-S45,S45)+IF(U45="(",-V45,V45)<0,"(","") -> ( | Y45: =ABS(IF(I45="(",-J45,J45)+IF(L45="(",-M45,M45)+IF(O45="(",-P45,P45)+IF(R45="(",-S45,S45)+IF(U45="(",-V45,V45)) -> 231 | Z45: =IF(X45="(",")","") -> )
F46: 3.2.1 | G46: убыток | H46: 3321 | J46: x | M46: x | P46: x | S46: x | U46: ( | W46: ) | X46: =IF(U46="(","(","") -> ( | Y46: =V46 -> 0 | Z46: )
F47: 3.2.2 | G47: переоценка имущества | H47: 3322 | J47: x | M47: x | O47: ( | Q47: ) | S47: x | U47: ( | W47: ) | X47: =IF(IF(O47="(",-P47,P47)+IF(U47="(",-V47,V47)<0,"(","") ->  | Y47: =ABS(IF(O47="(",-P47,P47)+IF(U47="(",-V47,V47)) -> 0
F48: 3.2.3 | G48: расходы, относящиеся непосредственно на уменьшение капитала | H48: 3323 | J48: x | M48: x | O48: ( | Q48: ) | S48: x | U48: ( | W48: ) | X48: =IF(IF(O48="(",-P48,P48)+IF(U48="(",-V48,V48)<0,"(","") ->  | Y48: =ABS(IF(O48="(",-P48,P48)+IF(U48="(",-V48,V48)) -> 0
F49: 3.2.4 | G49: уменьшение номинальной стоимости акций | H49: 3324 | I49: ( | K49: ) | N49: =IF(L49="(",")","") ->  | Q49: =IF(O49="(",")","") ->  | S49: x | W49: =IF(U49="(",")","") ->  | X49: =IF(IF(I49="(",-J49,J49)+IF(L49="(",-M49,M49)+IF(O49="(",-P49,P49)+IF(U49="(",-V49,V49)<0,"(","") ->  | Y49: =ABS(IF(I49="(",-J49,J49)+IF(L49="(",-M49,M49)+IF(O49="(",-P49,P49)+IF(U49="(",-V49,V49)) -> 0
F50: 3.2.5 | G50: уменьшения количества акций | H50: 3325 | I50: ( | K50: ) | N50: =IF(L50="(",")","") ->  | Q50: =IF(O50="(",")","") ->  | S50: x | W50: =IF(U50="(",")","") ->  | X50: =IF(IF(I50="(",-J50,J50)+IF(L50="(",-M50,M50)+IF(O50="(",-P50,P50)+IF(U50="(",-V50,V50)<0,"(","") ->  | Y50: =ABS(IF(I50="(",-J50,J50)+IF(L50="(",-M50,M50)+IF(O50="(",-P50,P50)+IF(U50="(",-V50,V50)) -> 0
F51: 3.2.6 | G51: реорганизация юридического лица | H51: 3326 | K51: =IF(I51="(",")","") ->  | N51: =IF(L51="(",")","") ->  | Q51: =IF(O51="(",")","") ->  | T51: =IF(R51="(",")","") ->  | W51: =IF(U51="(",")","") ->  | X51: =IF(IF(I51="(",-J51,J51)+IF(L51="(",-M51,M51)+IF(O51="(",-P51,P51)+IF(R51="(",-S51,S51)+IF(U51="(",-V51,V51)<0,"(","") ->  | Y51: =ABS(IF(I51="(",-J51,J51)+IF(L51="(",-M51,M51)+IF(O51="(",-P51,P51)+IF(R51="(",-S51,S51)+IF(U51="(",-V51,V51)) -> 0
F52: 3.2.7 | G52: дивиденды | H52: 3327 | J52: x | M52: x | P52: x | S52: x | U52: ( | V52: 231 | W52: ) | X52: =IF(U52="(","(","") -> ( | Y52: =V52 -> 231 | Z52: )
G53: Добавить запись | AA53: add_FORMA3_CAPITAL_range
F54: 3.3 | G54: Изменение добавочного капитала | H54: 3330 | J54: x | M54: x | Q54: =IF(O54="(",")","") ->  | T54: =IF(R54="(",")","") ->  | W54: =IF(U54="(",")","") ->  | Y54: x
F55: 3.4 | G55: Изменение резервного капитала | H55: 3340 | J55: x | M55: x | P55: x | T55: =IF(R55="(",")","") ->  | W55: =IF(U55="(",")","") ->  | Y55: x
F56: 3.5 | G56: ="Величина капитала на 31 декабря "&IF(List_01_reporting_period>0,List_01_reporting_period&" г. ","НЕ УКАЗАН")& " (отчётный год)" -> Величина капитала на 31 декабря 2017 г. (отчётный год) | H56: 3300 | J56: 40732 | K56: =IF(I56="(",")","") ->  | L56: ( | N56: ) | P56: 51002 | Q56: =IF(O56="(",")","") ->  | T56: =IF(R56="(",")","") ->  | V56: 6142 | W56: =IF(U56="(",")","") ->  | X56: =IF(IF(I56="(",-J56,J56)+IF(L56="(",-M56,M56)+IF(O56="(",-P56,P56)+IF(R56="(",-S56,S56)+IF(U56="(",-V56,V56)<0,"(","") ->  | Y56: =ABS(IF(I56="(",-J56,J56)+IF(L56="(",-M56,M56)+IF(O56="(",-P56,P56)+IF(R56="(",-S56,S56)+IF(U56="(",-V56,V56)) -> 97876 | Z56: =IF(X56="(",")","") -> 

Sheet Форма 3. Корректировки
E4: =Getcode() -> ELPASS.FORMS.BH | T4: =version -> Версия 1.0 от 01.10.2017
T6: Форма 0710023 с.3
E7: Отчет об изменениях капитала
E8: 2. Корректировки в связи с изменением учетной политики и исправлением ошибок
E11: № п/п | F11: Наименование статьи капитала | G11: Наименование показателя | H11: Код | I11: ="На 31 декабря " & IF(List_01_reporting_period="","года, предшествующего предыдущему",List_01_reporting_period-2 & " г.") -> На 31 декабря 2015 г. | L11: ="Изменения капитала за " & IF(List_01_reporting_period="","предыдущий год",List_01_reporting_period-1 & " г.") -> Изменения капитала за 2016 г. | R11: ="На 31 декабря " & IF(List_01_reporting_period="","предыдущего года",List_01_reporting_period-1 & " г.") -> На 31 декабря 2016 г.
L12: за счет чистой прибыли (убытка) | O12: за счет иных факторов
E13: 1 | F13: 2 | G13: 3 | H13: 4 | I13: 5 | L13: 6 | O13: 7 | R13: 8
E14: 1 | F14: Капитал - всего, в том числе: | G14: до корректировок | H14: 3400 | K14: =IF(I14="(",")","") ->  | N14: =IF(L14="(",")","") ->  | Q14: =IF(O14="(",")","") ->  | R14: =IF((IF(I14="(",-J14,J14)+IF(L14="(",-M14,M14)+IF(O14="(",-P14,P14))<0,"(","") ->  | S14: =ABS(IF(I14="(",-J14,J14)+IF(L14="(",-M14,M14)+IF(O14="(",-P14,P14)) -> 0 | T14: =IF(R14="(",")","") -> 
G15: корректировка в связи с:
G16: изменением учётной политики | H16: 3410 | N16: =IF(L16="(",")","") ->  | Q16: =IF(O16="(",")","") ->  | R16: =IF((IF(I16="(",-J16,J16)+IF(L16="(",-M16,M16)+IF(O16="(",-P16,P16))<0,"(","") ->  | S16: =ABS(IF(I16="(",-J16,J16)+IF(L16="(",-M16,M16)+IF(O16="(",-P16,P16)) -> 0 | T16: =IF(R16="(",")","") -> 
G17: исправлением ошибок | H17: 3420 | N17: =IF(L17="(",")","") ->  | Q17: =IF(O17="(",")","") ->  | R17: =IF((IF(I17="(",-J17,J17)+IF(L17="(",-M17,M17)+IF(O17="(",-P17,P17))<0,"(","") ->  | S17: =ABS(IF(I17="(",-J17,J17)+IF(L17="(",-M17,M17)+IF(O17="(",-P17,P17)) -> 0 | T17: =IF(R17="(",")","") -> 
G18: после корректировок | H18: 3500 | I18: =IF((IF(I14="(",-J14,J14)+(SUMIF(I16:I17,"",J16:J17)-SUMIF(I16:I17,"(",J16:J17)))<0,"(","") ->  | J18: =ABS(IF(I14="(",-J14,J14)+(SUMIF(I16:I17,"",J16:J17)-SUMIF(I16:I17,"(",J16:J17))) -> 0 | K18: =IF(I18="(",")","") ->  | L18: =IF((IF(L14="(",-M14,M14)+(SUMIF(L16:L17,"",M16:M17)-SUMIF(L16:L17,"(",M16:M17)))<0,"(","") ->  | M18: =ABS(IF(L14="(",-M14,M14)+(SUMIF(L16:L17,"",M16:M17)-SUMIF(L16:L17,"(",M16:M17))) -> 0 | N18: =IF(L18="(",")","") ->  | O18: =IF((IF(O14="(",-P14,P14)+(SUMIF(O16:O17,"",P16:P17)-SUMIF(O16:O17,"(",P16:P17)))<0,"(","") ->  | P18: =ABS(IF(O14="(",-P14,P14)+(SUMIF(O16:O17,"",P16:P17)-SUMIF(O16:O17,"(",P16:P17))) -> 0 | Q18: =IF(O18="(",")","") ->  | R18: =IF((IF(I18="(",-J18,J18)+IF(L18="(",-M18,M18)+IF(O18="(",-P18,P18))<0,"(","") ->  | S18: =ABS(IF(I18="(",-J18,J18)+IF(L18="(",-M18,M18)+IF(O18="(",-P18,P18)) -> 0 | T18: =IF(R18="(",")","") -> 
E19: 1.1 | F19: Нераспределенная прибыль (непокрытый убыток) | G19: до корректировок | H19: 3401 | N19: =IF(L19="(",")","") ->  | Q19: =IF(O19="(",")","") ->  | R19: =IF((IF(I19="(",-J19,J19)+IF(L19="(",-M19,M19)+IF(O19="(",-P19,P19))<0,"(","") ->  | S19: =ABS(IF(I19="(",-J19,J19)+IF(L19="(",-M19,M19)+IF(O19="(",-P19,P19)) -> 0 | T19: =IF(R19="(",")","") -> 
G20: корректировка в связи с:
G21: изменением учётной политики | H21: 3411 | N21: =IF(L21="(",")","") ->  | Q21: =IF(O21="(",")","") ->  | R21: =IF((IF(I21="(",-J21,J21)+IF(L21="(",-M21,M21)+IF(O21="(",-P21,P21))<0,"(","") ->  | S21: =ABS(IF(I21="(",-J21,J21)+IF(L21="(",-M21,M21)+IF(O21="(",-P21,P21)) -> 0 | T21: =IF(R21="(",")","") -> 
G22: исправлением ошибок | H22: 3421 | N22: =IF(L22="(",")","") ->  | Q22: =IF(O22="(",")","") ->  | R22: =IF((IF(I22="(",-J22,J22)+IF(L22="(",-M22,M22)+IF(O22="(",-P22,P22))<0,"(","") ->  | S22: =ABS(IF(I22="(",-J22,J22)+IF(L22="(",-M22,M22)+IF(O22="(",-P22,P22)) -> 0 | T22: =IF(R22="(",")","") -> 
G23: после корректировок | H23: 3501 | I23: =IF((IF(I19="(",-J19,J19)+(SUMIF(I21:I22,"",J21:J22)-SUMIF(I21:I22,"(",J21:J22)))<0,"(","") ->  | J23: =ABS(IF(I19="(",-J19,J19)+(SUMIF(I21:I22,"",J21:J22)-SUMIF(I21:I22,"(",J21:J22))) -> 0 | K23: =IF(I23="(",")","") ->  | L23: =IF((IF(L19="(",-M19,M19)+(SUMIF(L21:L22,"",M21:M22)-SUMIF(L21:L22,"(",M21:M22)))<0,"(","") ->  | M23: =ABS(IF(L19="(",-M19,M19)+(SUMIF(L21:L22,"",M21:M22)-SUMIF(L21:L22,"(",M21:M22))) -> 0 | N23: =IF(L23="(",")","") ->  | O23: =IF((IF(O19="(",-P19,P19)+(SUMIF(O21:O22,"",P21:P22)-SUMIF(O21:O22,"(",P21:P22)))<0,"(","") ->  | P23: =ABS(IF(O19="(",-P19,P19)+(SUMIF(O21:O22,"",P21:P22)-SUMIF(O21:O22,"(",P21:P22))) -> 0 | Q23: =IF(O23="(",")","") ->  | R23: =IF((IF(I23="(",-J23,J23)+IF(L23="(",-M23,M23)+IF(O23="(",-P23,P23))<0,"(","") ->  | S23: =ABS(IF(I23="(",-J23,J23)+IF(L23="(",-M23,M23)+IF(O23="(",-P23,P23)) -> 0 | T23: =IF(R23="(",")","") -> 
F24: Добавить запись | U24: add_FORMA3_CORRECT_range

Sheet Форма 3. Чистые активы
F4: =Getcode() -> ELPASS.FORMS.BH | Q4: =version -> Версия 1.0 от 01.10.2017
Q6: Форма 0710023 с.4
F7: Отчет об изменениях капитала
F8: 3. Чистые активы
F11: № п/п | G11: Наименование | H11: Код | I11: ="На 31 декабря " & IF(List_01_reporting_period="","отчётного года",List_01_reporting_period & " г.") -> На 31 декабря 2017 г. | L11: ="На 31 декабря " & IF(List_01_reporting_period="","предыдущего года",List_01_reporting_period-1 & " г.") -> На 31 декабря 2016 г. | O11: ="На 31 декабря " & IF(List_01_reporting_period="","года, предшествующего предыдущему",List_01_reporting_period-2 & " г.") -> На 31 декабря 2015 г.
F12: 1 | G12: 2 | H12: 3 | J12: 4 | M12: 5 | P12: 6
F13: 1 | G13: Чистые активы | H13: 3600 | J13: 97876 | K13: =IF(I13="(",")","") ->  | M13: 77569 | N13: =IF(L13="(",")","") ->  | P13: 67638 | Q13: =IF(O13="(",")","") -> 

Sheet Форма 4. Отчет о ДДС
E4: =Getcode() -> ELPASS.FORMS.BH | M4: =version -> Версия 1.0 от 01.10.2017
M6: Форма 0710004 с. 1-2
E7: Отчёт о движении денежных средств
E11: № п/п | F11: Наименование | G11: Код | H11: ="За "&IF(List_01_reporting_period="","отчётный период",List_01_reporting_period&" г.") -> За 2017 г. | K11: ="За "&IF(List_01_reporting_period="","период предыдущего года, аналогичный отчётному периоду",List_01_reporting_period-1&" г.") -> За 2016 г.
E13: 1 | F13: 2 | G13: 3 | H13: 4 | K13: 5
E14: 1 | F14: Денежные потоки от текущих операций
E15: 1.1 | F15: Поступления - всего, в том числе: | G15: 4110 | H15: =IF((SUMIF(H16:H19,"",I16:I19)-SUMIF(H16:H19,"(",I16:I19))<0,"(","") ->  | I15: =ABS(SUMIF(H16:H19,"",I16:I19)-SUMIF(H16:H19,"(",I16:I19)) -> 155157 | J15: =IF(H15="(",")","") ->  | K15: =IF((SUMIF(K16:K19,"",L16:L19)-SUMIF(K16:K19,"(",L16:L19))<0,"(","") ->  | L15: =ABS(SUMIF(K16:K19,"",L16:L19)-SUMIF(K16:K19,"(",L16:L19)) -> 177432 | M15: =IF(K15="(",")","") -> 
E16: 1.1.1 | F16: от продажи продукции, товаров, работ и услуг | G16: 4111 | I16: 131153 | J16: =IF(H16="(",")","") ->  | L16: 147569 | M16: =IF(K16="(",")","") -> 
E17: 1.1.2 | F17: арендных платежей, лицензионных платежей, роялти, комиссионных и иных аналогичных платежей | G17: 4112 | J17: =IF(H17="(",")","") ->  | M17: =IF(K17="(",")","") -> 
E18: 1.1.3 | F18: от перепродажи финансовых вложений | G18: 4113 | J18: =IF(H18="(",")","") ->  | M18: =IF(K18="(",")","") -> 
E19: 1.1.4 | F19: прочие поступления | G19: 4119 | I19: 24004 | J19: =IF(H19="(",")","") ->  | L19: 29863 | M19: =IF(K19="(",")","") -> 
E20: 1.2 | F20: Платежи - всего, в том числе: | G20: 4120 | H20: ( | I20: =SUM(I21:I25) -> 152514 | J20: ) | K20: ( | L20: =SUM(L21:L25) -> 172861 | M20: )
E21: 1.2.1 | F21: поставщикам (подрядчикам) за сырье, материалы, работы, услуги | G21: 4121 | H21: ( | I21: 50190 | J21: ) | K21: ( | L21: 61212 | M21: )
E22: 1.2.2 | F22: в связи с оплатой труда работников | G22: 4122 | H22: ( | I22: 62872 | J22: ) | K22: ( | L22: 61549 | M22: )
E23: 1.2.3 | F23: процентов по долговым обязательствам | G23: 4123 | H23: ( | J23: ) | K23: ( | M23: )
E24: 1.2.4 | F24: налога на прибыль организаций | G24: 4124 | H24: ( | I24: 1134 | J24: ) | K24: ( | M24: )
E25: 1.2.5 | F25: прочие платежи | G25: 4129 | H25: ( | I25: 38318 | J25: ) | K25: ( | L25: 50100 | M25: )
E26: 1.3 | F26: Сальдо денежных потоков от текущих операций | G26: 4100 | H26: =IF((IF(H15="(",-I15,I15)+IF(H20="(",-I20,I20))<0,"(","") ->  | I26: =ABS(IF(H15="(",-I15,I15)+IF(H20="(",-I20,I20)) -> 2643 | J26: =IF(H26="(",")","") ->  | K26: =IF((IF(K15="(",-L15,L15)+IF(K20="(",-L20,L20))<0,"(","") ->  | L26: =ABS(IF(K15="(",-L15,L15)+IF(K20="(",-L20,L20)) -> 4571 | M26: =IF(K26="(",")","") -> 
E27: 2 | F27: Денежные потоки от инвестиционных операций
E28: 2.1 | F28: Поступления - всего, в том числе: | G28: 4210 | H28: =IF((SUMIF(H29:H33,"",I29:I33)-SUMIF(H29:H33,"(",I29:I33))<0,"(","") ->  | I28: =ABS(SUMIF(H29:H33,"",I29:I33)-SUMIF(H29:H33,"(",I29:I33)) -> 0 | J28: =IF(H28="(",")","") ->  | K28: =IF((SUMIF(K29:K33,"",L29:L33)-SUMIF(K29:K33,"(",L29:L33))<0,"(","") ->  | L28: =ABS(SUMIF(K29:K33,"",L29:L33)-SUMIF(K29:K33,"(",L29:L33)) -> 8104 | M28: =IF(K28="(",")","") -> 
E29: 2.1.1 | F29: от продажи внеоборотных активов (кроме финансовых вложений) | G29: 4211
E30: 2.1.2 | F30: от продажи акций других организаций (долей участия) | G30: 4212
E31: 2.1.3 | F31: от возврата предоставленных займов, от продажи долговых ценных бумаг (прав требования денежных средств к другим лицам) | G31: 4213
E32: 2.1.4 | F32: дивидендов, процентов по долговым финансовым вложениям и аналогичных поступлений от долевого участия в других организациях | G32: 4214
E33: 2.1.5 | F33: прочие поступления | G33: 4219 | L33: 8104
E34: 2.2 | F34: Платежи - всего, в том числе: | G34: 4220 | H34: ( | I34: =SUM(I35:I39) -> 4350 | J34: ) | K34: ( | L34: =SUM(L35:L39) -> 9704 | M34: )
E35: 2.2.1 | F35: в связи с приобретением, созданием, модернизацией, реконструкцией и подготовкой к использованию внеоборотных активов | G35: 4221 | H35: ( | I35: 4350 | J35: ) | K35: ( | L35: 9704 | M35: )
E36: 2.2.2 | F36: в связи с приобретением акций других организаций (долей участия) | G36: 4222 | H36: ( | J36: ) | K36: ( | M36: )
E37: 2.2.3 | F37: в связи с приобретением долговых ценных бумаг (прав требования денежных средств к другим лицам), предоставление займов другим лицам | G37: 4223 | H37: ( | J37: ) | K37: ( | M37: )
E38: 2.2.4 | F38: процентов по долговым обязательствам, включаемым в стоимость инвестиционного актива | G38: 4224 | H38: ( | J38: ) | K38: ( | M38: )
E39: 2.2.5 | F39: прочие платежи | G39: 4229 | H39: ( | J39: ) | K39: ( | M39: )
E40: 2.3 | F40: Сальдо денежных потоков от инвестиционных операций | G40: 4200 | H40: =IF((IF(H28="(",-I28,I28)+IF(H34="(",-I34,I34))<0,"(","") -> ( | I40: =ABS(IF(H28="(",-I28,I28)+IF(H34="(",-I34,I34)) -> 4350 | J40: =IF(H40="(",")","") -> ) | K40: =IF((IF(K28="(",-L28,L28)+IF(K34="(",-L34,L34))<0,"(","") -> ( | L40: =ABS(IF(K28="(",-L28,L28)+IF(K34="(",-L34,L34)) -> 1600 | M40: =IF(K40="(",")","") -> )
E41: 3 | F41: Денежные потоки от финансовых операций
E42: 3.1 | F42: Поступления - всего, в том числе: | G42: 4310 | H42: =IF((SUMIF(H43:H47,"",I43:I47)-SUMIF(H43:H47,"(",I43:I47))<0,"(","") ->  | I42: =ABS(SUMIF(H43:H47,"",I43:I47)-SUMIF(H43:H47,"(",I43:I47)) -> 0 | J42: =IF(H42="(",")","") ->  | K42: =IF((SUMIF(K43:K47,"",L43:L47)-SUMIF(K43:K47,"(",L43:L47))<0,"(","") ->  | L42: =ABS(SUMIF(K43:K47,"",L43:L47)-SUMIF(K43:K47,"(",L43:L47)) -> 0 | M42: =IF(K42="(",")","") -> 
E43: 3.1.1 | F43: получение кредитов и займов | G43: 4311
E44: 3.1.2 | F44: денежных вкладов собственников (участников) | G44: 4312
E45: 3.1.3 | F45: от выпуска акций, увеличения долей участия | G45: 4313
E46: 3.1.4 | F46: от выпуска облигаций, векселей и других долговых ценных бумаг и др. | G46: 4314
E47: 3.1.5 | F47: прочие поступления | G47: 4319
E48: 3.2 | F48: Платежи - всего, в том числе: | G48: 4320 | H48: ( | I48: =SUM(I49:I52) -> 0 | J48: ) | K48: ( | L48: =SUM(L49:L52) -> 0 | M48: )
E49: 3.2.1 | F49: собственникам (участникам) в связи с выкупом у них акций (долей участия) организации или их выходом из состава участников | G49: 4321 | H49: ( | J49: ) | K49: ( | M49: )
E50: 3.2.2 | F50: на уплату дивидендов и иных платежей по распределению прибыли в пользу собственников (участников) | G50: 4322 | H50: ( | J50: ) | K50: ( | M50: )
E51: 3.2.3 | F51: в связи с погашением (выкупом) векселей и других долговых ценных бумаг, возврат кредитов и займов | G51: 4323 | H51: ( | J51: ) | K51: ( | M51: )
E52: 3.2.4 | F52: прочие платежи | G52: 4329 | H52: ( | J52: ) | K52: ( | M52: )
E53: 3.3 | F53: Сальдо денежных потоков от финансовых операций | G53: 4300 | H53: =IF((IF(H42="(",-I42,I42)+IF(H48="(",-I48,I48))<0,"(","") ->  | I53: =ABS(IF(H42="(",-I42,I42)+IF(H48="(",-I48,I48)) -> 0 | J53: =IF(H53="(",")","") ->  | K53: =IF((IF(K42="(",-L42,L42)+IF(K48="(",-L48,L48))<0,"(","") ->  | L53: =ABS(IF(K42="(",-L42,L42)+IF(K48="(",-L48,L48)) -> 0 | M53: =IF(K53="(",")","") -> 
E54: 4 | F54: Сальдо денежных потоков за отчетный период | G54: 4400 | H54: =IF((IF(H26="(",-I26,I26)+IF(H40="(",-I40,I40)+IF(H53="(",-I53,I53))<0,"(","") -> ( | I54: =ABS(IF(H26="(",-I26,I26)+IF(H40="(",-I40,I40)+IF(H53="(",-I53,I53)) -> 1707 | J54: =IF(H54="(",")","") -> ) | K54: =IF((IF(K26="(",-L26,L26)+IF(K40="(",-L40,L40)+IF(K53="(",-L53,L53))<0,"(","") ->  | L54: =ABS(IF(K26="(",-L26,L26)+IF(K40="(",-L40,L40)+IF(K53="(",-L53,L53)) -> 2971 | M54: =IF(K54="(",")","") -> 
E55: 5 | F55: Остаток денежных средств и денежных эквивалентов на начало отчетного периода | G55: 4450 | I55: 7769 | J55: =IF(H55="(",")","") ->  | L55: 4798 | M55: =IF(K55="(",")","") -> 
E56: 6 | F56: Остаток денежных средств и денежных эквивалентов на конец отчетного периода | G56: 4500 | H56: =IF((IF(H54="(",-I54,I54)+IF(H55="(",-I55,I55)+IF(H57="(",-I57,I57))<0,"(","") ->  | I56: =ABS(IF(H54="(",-I54,I54)+IF(H55="(",-I55,I55)+IF(H57="(",-I57,I57)) -> 6062 | J56: =IF(H56="(",")","") ->  | K56: =IF((IF(K54="(",-L54,L54)+IF(K55="(",-L55,L55)+IF(K57="(",-L57,L57))<0,"(","") ->  | L56: =ABS(IF(K54="(",-L54,L54)+IF(K55="(",-L55,L55)+IF(K57="(",-L57,L57)) -> 7769 | M56: =IF(K56="(",")","") -> 
E57: 7 | F57: Величина влияния изменений курса иностранной валюты по отношению к рублю | G57: 4490 | J57: =IF(H57="(",")","") ->  | M57: =IF(K57="(",")","") -> 

Sheet Форма4. Расшифровка показателей
E4: =Getcode() -> ELPASS.FORMS.BH | M4: =version -> Версия 1.0 от 01.10.2017
M6: Форма 0710004 с. 3
E7: Отчёт о движении денежных средств
E8: Расшифровка отдельных показателей
E11: № п/п | F11: Наименование показателя | G11: Код | H11: ="За "&IF(List_01_reporting_period="","отчётный период",List_01_reporting_period&" г.") -> За 2017 г. | K11: ="За "&IF(List_01_reporting_period="","период предыдущего года, аналогичный отчётному периоду",List_01_reporting_period-1&" г.") -> За 2016 г.
E12: 1 | F12: 2 | G12: 3 | H12: 4 | K12: 5
E13: 1 | F13: Прочие поступления от текущих операций (стр. 4119), в том числе: | H13: =IF('Форма 4. Отчет о ДДС'!H19="(","(","") ->  | I13: ='Форма 4. Отчет о ДДС'!I19 -> 24004 | J13: =IF(H13="(",")","") ->  | K13: =IF('Форма 4. Отчет о ДДС'!K19="(","(","") ->  | L13: ='Форма 4. Отчет о ДДС'!L19 -> 29863 | M13: =IF(K13="(",")","") -> 
E14: 1.1 | F14: прочие поступления | G14: 41191 | I14: 3660 | L14: 4547
E15: 1.2 | F15: субсидии из бюджета | G15: 41192 | I15: 20344 | L15: 25316
E16: 1.3 | G16: 41193
E17: 1.4 | G17: 41194
E18: 1.5 | G18: 41195
F19: Добавить строку | N19: add_FORMA2_R1_range
E20: 2 | F20: На прочие платежи от текущих операций (стр. 4129), в том числе: | H20: =IF('Форма 4. Отчет о ДДС'!H25="(","(","") -> ( | I20: ='Форма 4. Отчет о ДДС'!I25 -> 38318 | J20: =IF(H20="(",")","") -> ) | K20: =IF('Форма 4. Отчет о ДДС'!K25="(","(","") -> ( | L20: ='Форма 4. Отчет о ДДС'!L25 -> 50100 | M20: =IF(K20="(",")","") -> )
E21: 2.1 | F21: Расчеты по налогам и сборамЮвзносы во внебюджетные фонды | G21: 41291 | H21: ( | I21: 30499 | J21: ) | K21: ( | L21: 43408 | M21: )
E22: 2.2 | F22: Прочие выплаты и перечисления | G22: 41292 | H22: ( | I22: 8953 | J22: ) | K22: ( | L22: 6692 | M22: )
E23: 2.3 | G23: 41293 | H23: ( | J23: ) | K23: ( | M23: )
E24: 2.4 | G24: 41294 | H24: ( | J24: ) | K24: ( | M24: )
E25: 2.5 | G25: 41295 | H25: ( | J25: ) | K25: ( | M25: )
F26: Добавить строку | N26: add_FORMA2_R2_range
E27: 3 | F27: Прочие поступления от инвестиционных операций (стр. 4219), в том числе: | H27: =IF('Форма 4. Отчет о ДДС'!H33="(","(","") ->  | I27: ='Форма 4. Отчет о ДДС'!I33 -> 0 | J27: =IF(H27="(",")","") ->  | K27: =IF('Форма 4. Отчет о ДДС'!K33="(","(","") ->  | L27: ='Форма 4. Отчет о ДДС'!L33 -> 8104 | M27: =IF(K27="(",")","") -> 
E28: 3.1 | G28: 42191
E29: 3.2 | G29: 42192
E30: 3.3 | G30: 42193
E31: 3.4 | G31: 42194
E32: 3.5 | G32: 42195
F33: Добавить строку | N33: add_FORMA2_R1_range
E34: 4 | F34: На прочие платежи от инвестиционных операций (стр. 4229), в том числе: | H34: =IF('Форма 4. Отчет о ДДС'!H39="(","(","") -> ( | I34: ='Форма 4. Отчет о ДДС'!I39 -> 0 | J34: =IF(H34="(",")","") -> ) | K34: =IF('Форма 4. Отчет о ДДС'!K39="(","(","") -> ( | L34: ='Форма 4. Отчет о ДДС'!L39 -> 0 | M34: =IF(K34="(",")","") -> )
E35: 4.1 | G35: 42291 | H35: ( | J35: ) | K35: ( | M35: )
E36: 4.2 | G36: 42292 | H36: ( | J36: ) | K36: ( | M36: )
E37: 4.3 | G37: 42293 | H37: ( | J37: ) | K37: ( | M37: )
E38: 4.4 | G38: 42294 | H38: ( | J38: ) | K38: ( | M38: )
E39: 4.5 | G39: 42295 | H39: ( | J39: ) | K39: ( | M39: )
F40: Добавить строку | N40: add_FORMA2_R2_range
E41: 5 | F41: Другие поступления от финансовых операций (стр. 4319), в том числе: | H41: =IF('Форма 4. Отчет о ДДС'!H47="(","(","") ->  | I41: ='Форма 4. Отчет о ДДС'!I47 -> 0 | J41: =IF(H41="(",")","") ->  | K41: =IF('Форма 4. Отчет о ДДС'!K47="(","(","") ->  | L41: ='Форма 4. Отчет о ДДС'!L47 -> 0 | M41: =IF(K41="(",")","") -> 
E42: 5.1 | G42: 43191
E43: 5.2 | G43: 43192
E44: 5.3 | G44: 43193
E45: 5.4 | G45: 43194
E46: 5.5 | G46: 43195
F47: Добавить строку | N47: add_FORMA2_R1_range
E48: 6 | F48: На прочие платежи от финансовых операций (стр. 4329), в том числе: | H48: =IF('Форма 4. Отчет о ДДС'!H52="(","(","") -> ( | I48: ='Форма 4. Отчет о ДДС'!I52 -> 0 | J48: =IF(H48="(",")","") -> ) | K48: =IF('Форма 4. Отчет о ДДС'!K52="(","(","") -> ( | L48: ='Форма 4. Отчет о ДДС'!L52 -> 0 | M48: =IF(K48="(",")","") -> )
E49: 6.1 | G49: 43291 | H49: ( | J49: ) | K49: ( | M49: )
E50: 6.2 | G50: 43292 | H50: ( | J50: ) | K50: ( | M50: )
E51: 6.3 | G51: 43293 | H51: ( | J51: ) | K51: ( | M51: )
E52: 6.4 | G52: 43294 | H52: ( | J52: ) | K52: ( | M52: )
E53: 6.5 | G53: 43295 | H53: ( | J53: ) | K53: ( | M53: )
F54: Добавить строку | N54: add_FORMA2_R2_range

Sheet Форма 5. НА и НИОКР
E5: =Getcode() -> ELPASS.FORMS.BH | AO5: =version -> Версия 1.0 от 01.10.2017
E6: Поясненения к бухгалтерскому балансу и отчету о финансовых результатах
AO7: Форма 0710005 с. 1-3
E8: 1. Нематериальные активы и расходы на научно-исследовательские, опытно-конструкторские и технологические работы (НИОКР)
E10: 1.1. Наличие и движение нематериальных активов
E13: № п/п | F13: Наименование | G13: Период | H13: Код | I13: На начало года | O13: Изменения за период | AJ13: На конец периода
I14: первоначальная стоимость * | L14: накопленная амортизация и убытки от обесценения | O14: поступило | R14: выбыло | X14: начислено амортизации | AA14: убыток от обесценения | AD14: переоценка | AJ14: первоначальная стоимость * | AM14: накопленная амортизация и убытки от обесценения
R15: первоначальная стоимость * | U15: накопленная амортизация и убытки от обесценения | AD15: первоначальная стоимость * | AG15: накопленная амортизация и убытки от обесценения
E16: 1 | F16: 2 | G16: 3 | H16: 4 | J16: 5 | L16: 6 | P16: 7 | R16: 8 | V16: 9 | X16: 10 | AB16: 11 | AE16: 12 | AH16: 13 | AK16: 14 | AM16: 15
E17: 1.1 | F17: Нематериальные активы - всего, в том числе: | G17: ="за "&IF(List_01_reporting_period="","отчётный год",List_01_reporting_period&" год") -> за 2017 год | H17: 5100 | J17: =ABS(SUM(IF($AQ$19:$AQ$21="c",IF(I$19:I$21="(",-J$19:J$21,J$19:J$21)))) -> 0 | L17: ( | M17: =SUMIF($AQ$19:$AQ$21,$AQ17,M$19:M$21) -> 0 | N17: ) | O17: =IF((SUM(IF($AQ$19:$AQ$21="c",IF(O$19:O$21="(",-P$19:P$21,P$19:P$21))))<0,"(","") ->  | P17: =ABS(SUM(IF($AQ$19:$AQ$21="c",IF(O$19:O$21="(",-P$19:P$21,P$19:P$21)))) -> 0 | Q17: =IF(O17="(",")","") ->  | R17: ( | S17: =SUMIF($AQ$19:$AQ$21,$AQ17,S$19:S$21) -> 0 | T17: ) | U17: =IF((SUM(IF($AQ$19:$AQ$21="c",IF(U$19:U$21="(",-V$19:V$21,V$19:V$21))))<0,"(","") ->  | V17: =ABS(SUM(IF($AQ$19:$AQ$21="c",IF(U$19:U$21="(",-V$19:V$21,V$19:V$21)))) -> 0 | W17: =IF(U17="(",")","") ->  | X17: ( | Y17: =SUMIF($AQ$19:$AQ$21,$AQ17,Y$19:Y$21) -> 0 | Z17: ) | AA17: =IF((SUM(IF($AQ$19:$AQ$21="c",IF(AA$19:AA$21="(",-AB$19:AB$21,AB$19:AB$21))))<0,"(","") ->  | AB17: =ABS(SUM(IF($AQ$19:$AQ$21="c",IF(AA$19:AA$21="(",-AB$19:AB$21,AB$19:AB$21)))) -> 0 | AC17: =IF(AA17="(",")","") ->  | AD17: =IF((SUM(IF($AQ$19:$AQ$21="c",IF(AD$19:AD$21="(",-AE$19:AE$21,AE$19:AE$21))))<0,"(","") ->  | AE17: =ABS(SUM(IF($AQ$19:$AQ$21="c",IF(AD$19:AD$21="(",-AE$19:AE$21,AE$19:AE$21)))) -> 0 | AF17: =IF(AD17="(",")","") ->  | AG17: =IF((SUM(IF($AQ$19:$AQ$21="c",IF(AG$19:AG$21="(",-AH$19:AH$21,AH$19:AH$21))))<0,"(","") ->  | AH17: =ABS(SUM(IF($AQ$19:$AQ$21="c",IF(AG$19:AG$21="(",-AH$19:AH$21,AH$19:AH$21)))) -> 0 | AI17: =IF(AG17="(",")","") ->  | AJ17: =IF((SUM(IF($AQ$19:$AQ$21="c",IF(AJ$19:AJ$21="(",-AK$19:AK$21,AK$19:AK$21))))<0,"(","") ->  | AK17: =ABS(SUM(IF($AQ$19:$AQ$21="c",IF(AJ$19:AJ$21="(",-AK$19:AK$21,AK$19:AK$21)))) -> 0 | AL17: =IF(AJ17="(",")","") ->  | AM17: ( | AN17: =SUMIF($AQ$19:$AQ$21,$AQ17,AN$19:AN$21) -> 0 | AO17: ) | AQ17: c
G18: ="за "&IF(List_01_reporting_period="","предыдущий год",List_01_reporting_period-1&" год") -> за 2016 год | H18: 5110 | J18: =ABS(SUM(IF($AQ$19:$AQ$21="p",IF(I$19:I$21="(",-J$19:J$21,J$19:J$21)))) -> 0 | K18: =IF(I18="(",")","") ->  | L18: ( | M18: =SUMIF($AQ$19:$AQ$21,$AQ18,M$19:M$21) -> 0 | N18: ) | O18: =IF((SUM(IF($AQ$19:$AQ$21="p",IF(O$19:O$21="(",-P$19:P$21,P$19:P$21))))<0,"(","") ->  | P18: =ABS(SUM(IF($AQ$19:$AQ$21="p",IF(O$19:O$21="(",-P$19:P$21,P$19:P$21)))) -> 0 | Q18: =IF(O18="(",")","") ->  | R18: ( | S18: =SUMIF($AQ$19:$AQ$21,$AQ18,S$19:S$21) -> 0 | T18: ) | U18: =IF((SUM(IF($AQ$19:$AQ$21="p",IF(U$19:U$21="(",-V$19:V$21,V$19:V$21))))<0,"(","") ->  | V18: =ABS(SUM(IF($AQ$19:$AQ$21="p",IF(U$19:U$21="(",-V$19:V$21,V$19:V$21)))) -> 0 | W18: =IF(U18="(",")","") ->  | X18: ( | Y18: =SUMIF($AQ$19:$AQ$21,$AQ18,Y$19:Y$21) -> 0 | Z18: ) | AA18: =IF((SUM(IF($AQ$19:$AQ$21="p",IF(AA$19:AA$21="(",-AB$19:AB$21,AB$19:AB$21))))<0,"(","") ->  | AB18: =ABS(SUM(IF($AQ$19:$AQ$21="p",IF(AA$19:AA$21="(",-AB$19:AB$21,AB$19:AB$21)))) -> 0 | AC18: =IF(AA18="(",")","") ->  | AD18: =IF((SUM(IF($AQ$19:$AQ$21="p",IF(AD$19:AD$21="(",-AE$19:AE$21,AE$19:AE$21))))<0,"(","") ->  | AE18: =ABS(SUM(IF($AQ$19:$AQ$21="p",IF(AD$19:AD$21="(",-AE$19:AE$21,AE$19:AE$21)))) -> 0 | AF18: =IF(AD18="(",")","") ->  | AG18: =IF((SUM(IF($AQ$19:$AQ$21="p",IF(AG$19:AG$21="(",-AH$19:AH$21,AH$19:AH$21))))<0,"(","") ->  | AH18: =ABS(SUM(IF($AQ$19:$AQ$21="p",IF(AG$19:AG$21="(",-AH$19:AH$21,AH$19:AH$21)))) -> 0 | AI18: =IF(AG18="(",")","") ->  | AJ18: =IF((SUM(IF($AQ$19:$AQ$21="p",IF(AJ$19:AJ$21="(",-AK$19:AK$21,AK$19:AK$21))))<0,"(","") ->  | AK18: =ABS(SUM(IF($AQ$19:$AQ$21="p",IF(AJ$19:AJ$21="(",-AK$19:AK$21,AK$19:AK$21)))) -> 0 | AL18: =IF(AJ18="(",")","") ->  | AM18: ( | AN18: =SUMIF($AQ$19:$AQ$21,$AQ18,AN$19:AN$21) -> 0 | AO18: ) | AQ18: p
E19: 1.1.1 | F19: Нематериальные активы - всего, в том числе: | G19: ="за "&IF(List_01_reporting_period="","отчётный год",List_01_reporting_period&" год") -> за 2017 год | H19: 5110 | K19: =IF(I19="(",")","") ->  | L19: ( | N19: ) | Q19: =IF(O19="(",")","") ->  | R19: ( | T19: ) | W19: =IF(U19="(",")","") ->  | X19: ( | Z19: ) | AC19: =IF(AA19="(",")","") ->  | AF19: =IF(AD19="(",")","") ->  | AI19: =IF(AG19="(",")","") ->  | AL19: =IF(AJ19="(",")","") ->  | AM19: ( | AO19: ) | AQ19: c
G20: ="за "&IF(List_01_reporting_period="","предыдущий год",List_01_reporting_period-1&" год") -> за 2016 год | H20: 5110 | K20: =IF(I20="(",")","") ->  | L20: ( | N20: ) | Q20: =IF(O20="(",")","") ->  | R20: ( | T20: ) | W20: =IF(U20="(",")","") ->  | X20: ( | Z20: ) | AC20: =IF(AA20="(",")","") ->  | AF20: =IF(AD20="(",")","") ->  | AI20: =IF(AG20="(",")","") ->  | AL20: =IF(AJ20="(",")","") ->  | AM20: ( | AO20: ) | AQ20: p
F21: Добавить вид нематериальных активов | AP21: add_FORMA5_STR1_1_1_range
E25: 1.2. Первоначальная стоимость нематериальных активов, созданных самой организацией
E29: № п/п | F29: Наименование | H29: Код | I29: ="На 31 декабря "&IF(List_01_reporting_period = "","отчётную дату отчётного года",List_01_reporting_period& " г.") -> На 31 декабря 2017 г. | L29: ="На 31 декабря "&IF(List_01_reporting_period = "","предыдущего года",List_01_reporting_period-1& " г.") -> На 31 декабря 2016 г. | O29: ="На 31 декабря "&IF(List_01_reporting_period = "","года, предшествующего предыдущему",List_01_reporting_period-2& " г.") -> На 31 декабря 2015 г.
E30: 1 | F30: 2 | H30: 3 | J30: 4 | L30: 5 | P30: 6
E31: 1.2 | F31: Всего, в том числе: | H31: 5120 | J31: =ABS(SUMIF(I32:I33,"",J32:J33)-SUMIF(I32:I33,"(",J32:J33)) -> 0 | K31: =IF(I31="(",")","") ->  | M31: =ABS(SUMIF(L32:L33,"",M32:M33)-SUMIF(L32:L33,"(",M32:M33)) -> 0 | N31: =IF(L31="(",")","") ->  | P31: =ABS(SUMIF(O32:O33,"",P32:P33)-SUMIF(O32:O33,"(",P32:P33)) -> 0 | Q31: =IF(O31="(",")","") -> 
E32: 1.2.1 | F32: Всего, в том числе: | H32: 5120 | K32: =IF(I32="(",")","") ->  | N32: =IF(L32="(",")","") ->  | Q32: =IF(O32="(",")","") -> 
F33: Добавить вид нематериальных активов | AP33: add_FORMA5_STR1_1_2_range
E36: 1.3. Нематериальные активы с полностью погашенной стоимостью
E39: № п/п | F39: Наименование | H39: Код | I39: ="На 31 декабря "&IF(List_01_reporting_period = "","отчётную дату отчётного года",List_01_reporting_period& " г.") -> На 31 декабря 2017 г. | L39: ="На 31 декабря "&IF(List_01_reporting_period = "","предыдущего года",List_01_reporting_period-1& " г.") -> На 31 декабря 2016 г. | O39: ="На 31 декабря "&IF(List_01_reporting_period = "","года, предшествующего предыдущему",List_01_reporting_period-2& " г.") -> На 31 декабря 2015 г.
E40: 1 | F40: 2 | H40: 3 | J40: 4 | L40: 5 | P40: 6
E41: 1.3 | F41: Всего, в том числе: | H41: 5130 | J41: =ABS(SUMIF(I42:I43,"",J42:J43)-SUMIF(I42:I43,"(",J42:J43)) -> 0 | K41: =IF(I41="(",")","") ->  | M41: =ABS(SUMIF(L42:L43,"",M42:M43)-SUMIF(L42:L43,"(",M42:M43)) -> 0 | N41: =IF(L41="(",")","") ->  | P41: =ABS(SUMIF(O42:O43,"",P42:P43)-SUMIF(O42:O43,"(",P42:P43)) -> 0 | Q41: =IF(O41="(",")","") -> 
E42: 1.3.1 | F42: Всего, в том числе: | H42: 5130 | K42: =IF(I42="(",")","") ->  | N42: =IF(L42="(",")","") ->  | Q42: =IF(O42="(",")","") -> 
F43: Добавить вид нематериальных активов | AP43: add_FORMA5_STR1_1_2_range
E46: 1.4. Наличие и движение результатов НИОКР
E49: № п/п | F49: Наименование | G49: Период | H49: Код | I49: На начало года | O49: Изменения за период | AA49: На конец периода
I50: первоначальная стоимость * | L50: часть стоимости, списанной на расходы | O50: поступило | R50: выбыло | X50: часть стоимости, списанная на расходы за период | AA50: первоначальная стоимость * | AD50: часть стоимости, списанная на расходы
R51: первоначальная стоимость | U51: часть стоимости, списанной на расходы
E52: 1 | F52: 2 | G52: 3 | H52: 4 | J52: 5 | L52: 6 | P52: 7 | R52: 8 | V52: 9 | X52: 10 | AB52: 11 | AD52: 12
E53: 1.4 | F53: НИОКР - всего, в том числе: | G53: ="за "&IF(List_01_reporting_period="","отчётный год",List_01_reporting_period&" год") -> за 2017 год | H53: 5140 | J53: =ABS(SUM(IF($AH$55:$AH$57="c",IF(I$55:I$57="(",-J$55:J$57,J$55:J$57)))) -> 0 | K53: =IF(I53="(",")","") ->  | L53: ( | M53: =SUMIF($AH$55:$AH$57,$AH53,M$55:M$57) -> 0 | N53: ) | P53: =ABS(SUM(IF($AH$55:$AH$57="c",IF(O$55:O$57="(",-P$55:P$57,P$55:P$57)))) -> 0 | Q53: =IF(O53="(",")","") ->  | R53: ( | S53: =SUMIF($AH$55:$AH$57,$AH53,S$55:S$57) -> 0 | T53: ) | V53: =ABS(SUM(IF($AH$55:$AH$57="c",IF(U$55:U$57="(",-V$55:V$57,V$55:V$57)))) -> 0 | W53: =IF(U53="(",")","") ->  | X53: ( | Y53: =SUMIF($AH$55:$AH$57,$AH53,Y$55:Y$57) -> 0 | Z53: ) | AB53: =ABS(SUM(IF($AH$55:$AH$57="c",IF(AA$55:AA$57="(",-AB$55:AB$57,AB$55:AB$57)))) -> 0 | AD53: ( | AE53: =SUMIF($AH$55:$AH$57,$AH53,AE$55:AE$57) -> 0 | AF53: ) | AH53: c
G54: ="за "&IF(List_01_reporting_period="","предыдущий год",List_01_reporting_period-1&" год") -> за 2016 год | H54: 5150 | J54: =ABS(SUM(IF($AH$55:$AH$57="p",IF(I$55:I$57="(",-J$55:J$57,J$55:J$57)))) -> 0 | K54: =IF(I54="(",")","") ->  | L54: ( | M54: =SUMIF($AH$55:$AH$57,$AH54,M$55:M$57) -> 0 | N54: ) | P54: =ABS(SUM(IF($AH$55:$AH$57="p",IF(O$55:O$57="(",-P$55:P$57,P$55:P$57)))) -> 0 | Q54: =IF(O54="(",")","") ->  | R54: ( | S54: =SUMIF($AH$55:$AH$57,$AH54,S$55:S$57) -> 0 | T54: ) | V54: =ABS(SUM(IF($AH$55:$AH$57="p",IF(U$55:U$57="(",-V$55:V$57,V$55:V$57)))) -> 0 | W54: =IF(U54="(",")","") ->  | X54: ( | Y54: =SUMIF($AH$55:$AH$57,$AH54,Y$55:Y$57) -> 0 | Z54: ) | AB54: =ABS(SUM(IF($AH$55:$AH$57="p",IF(AA$55:AA$57="(",-AB$55:AB$57,AB$55:AB$57)))) -> 0 | AD54: ( | AE54: =SUMIF($AH$55:$AH$57,$AH54,AE$55:AE$57) -> 0 | AF54: ) | AH54: p
E55: 1.4.1 | F55: НИОКР - всего, в том числе: | G55: ="за "&IF(List_01_reporting_period="","отчётный год",List_01_reporting_period&" год") -> за 2017 год | H55: 5140 | K55: =IF(I55="(",")","") ->  | L55: ( | N55: ) | Q55: =IF(O55="(",")","") ->  | R55: ( | T55: ) | X55: ( | Z55: ) | AD55: ( | AF55: ) | AH55: c
G56: ="за "&IF(List_01_reporting_period="","предыдущий год",List_01_reporting_period-1&" год") -> за 2016 год | H56: 5150 | K56: =IF(I56="(",")","") ->  | L56: ( | N56: ) | Q56: =IF(O56="(",")","") ->  | R56: ( | T56: ) | X56: ( | Z56: ) | AD56: ( | AF56: ) | AH56: p
F57: Добавить объект | AP57: add_FORMA5_STR1_1_4_range
E60: 1.5. Незаконченные и неоформленные НИОКР и незаконченные операции по приобретению нематериальных активов
E63: № п/п | F63: Наименование | G63: Период | H63: Код | I63: На начало года | L63: Изменения за период | U63: На конец периода
L64: затраты за период | O64: списано затрат как не давших положительного результата | R64: принято к учету в качестве нематериальных активов или НИОКР
E65: 1 | F65: 2 | G65: 3 | H65: 4 | J65: 5 | M65: 6 | O65: 7 | R65: 8 | V65: 9
E66: 1.5.1 | F66: Затраты по незаконченным исследованиям и разработкам - всего, в том числе: | G66: ="за "&IF(List_01_reporting_period="","отчётный год",List_01_reporting_period&" год") -> за 2017 год | H66: 5160 | J66: =ABS(SUM(IF($Y$68:$Y$70="c",IF(I$68:I$70="(",-J$68:J$70,J$68:J$70)))) -> 0 | K66: =IF(I66="(",")","") ->  | M66: =ABS(SUM(IF($Y$68:$Y$70="c",IF(L$68:L$70="(",-M$68:M$70,M$68:M$70)))) -> 0 | N66: =IF(L66="(",")","") ->  | O66: ( | P66: =SUMIF($Y$68:$Y$70,$Y66,P$68:P$70) -> 0 | Q66: ) | R66: ( | S66: =SUMIF($Y$68:$Y$70,$Y66,S$68:S$70) -> 0 | T66: ) | V66: =ABS(SUM(IF($Y$68:$Y$70="c",IF(U$68:U$70="(",-V$68:V$70,V$68:V$70)))) -> 0 | W66: =IF(U66="(",")","") ->  | Y66: c
G67: ="за "&IF(List_01_reporting_period="","предыдущий год",List_01_reporting_period-1&" год") -> за 2016 год | H67: 5170 | J67: =ABS(SUM(IF($Y$68:$Y$70="p",IF(I$68:I$70="(",-J$68:J$70,J$68:J$70)))) -> 0 | K67: =IF(I67="(",")","") ->  | M67: =ABS(SUM(IF($Y$68:$Y$70="p",IF(L$68:L$70="(",-M$68:M$70,M$68:M$70)))) -> 0 | N67: =IF(L67="(",")","") ->  | O67: ( | P67: =SUMIF($Y$68:$Y$70,$Y67,P$68:P$70) -> 0 | Q67: ) | R67: ( | S67: =SUMIF($Y$68:$Y$70,$Y67,S$68:S$70) -> 0 | T67: ) | V67: =ABS(SUM(IF($Y$68:$Y$70="p",IF(U$68:U$70="(",-V$68:V$70,V$68:V$70)))) -> 0 | W67: =IF(U67="(",")","") ->  | Y67: p
E68: 1.5.1.1 | F68: Затраты по незаконченным исследованиям и разработкам - всего, в том числе: | G68: ="за "&IF(List_01_reporting_period="","отчётный год",List_01_reporting_period&" год") -> за 2017 год | H68: 5160 | K68: =IF(I68="(",")","") ->  | N68: =IF(L68="(",")","") ->  | O68: ( | Q68: ) | R68: ( | T68: ) | W68: =IF(U68="(",")","") ->  | Y68: c
G69: ="за "&IF(List_01_reporting_period="","предыдущий год",List_01_reporting_period-1&" год") -> за 2016 год | H69: 5170 | K69: =IF(I69="(",")","") ->  | N69: =IF(L69="(",")","") ->  | O69: ( | Q69: ) | R69: ( | T69: ) | W69: =IF(U69="(",")","") ->  | Y69: p
F70: Добавить объект | AP70: add_FORMA5_STR1_1_5_range
E71: 1.5.2 | F71: Незаконченные операции по приобретению нематериальных активов - всего, в том числе: | G71: ="за "&IF(List_01_reporting_period="","отчётный год",List_01_reporting_period&" год") -> за 2017 год | H71: 5180 | J71: =ABS(SUM(IF($Y$73:$Y$75="c",IF(I$73:I$75="(",-J$73:J$75,J$73:J$75)))) -> 0 | K71: =IF(I71="(",")","") ->  | M71: =ABS(SUM(IF($Y$73:$Y$75="c",IF(L$73:L$75="(",-M$73:M$75,M$73:M$75)))) -> 0 | N71: =IF(L71="(",")","") ->  | O71: ( | P71: =SUMIF($Y$73:$Y$75,$Y71,P$73:P$75) -> 0 | Q71: ) | R71: ( | S71: =SUMIF($Y$73:$Y$75,$Y71,S$73:S$75) -> 0 | T71: ) | V71: =ABS(SUM(IF($Y$73:$Y$75="c",IF(U$73:U$75="(",-V$73:V$75,V$73:V$75)))) -> 0 | W71: =IF(U71="(",")","") ->  | Y71: c
G72: ="за "&IF(List_01_reporting_period="","предыдущий год",List_01_reporting_period-1&" год") -> за 2016 год | H72: 5190 | J72: =ABS(SUM(IF($Y$73:$Y$75="p",IF(I$73:I$75="(",-J$73:J$75,J$73:J$75)))) -> 0 | K72: =IF(I72="(",")","") ->  | M72: =ABS(SUM(IF($Y$73:$Y$75="p",IF(L$73:L$75="(",-M$73:M$75,M$73:M$75)))) -> 0 | N72: =IF(L72="(",")","") ->  | O72: ( | P72: =SUMIF($Y$73:$Y$75,$Y72,P$73:P$75) -> 0 | Q72: ) | R72: ( | S72: =SUMIF($Y$73:$Y$75,$Y72,S$73:S$75) -> 0 | T72: ) | V72: =ABS(SUM(IF($Y$73:$Y$75="p",IF(U$73:U$75="(",-V$73:V$75,V$73:V$75)))) -> 0 | W72: =IF(U72="(",")","") ->  | Y72: p
E73: 1.5.2.1 | F73: Незаконченные операции по приобретению нематериальных активов - всего, в том числе: | G73: ="за "&IF(List_01_reporting_period="","отчётный год",List_01_reporting_period&" год") -> за 2017 год | H73: 5180 | K73: =IF(I73="(",")","") ->  | L73: ( | N73: =IF(L73="(",")","") -> ) | O73: ( | Q73: ) | R73: ( | T73: ) | W73: =IF(U73="(",")","") ->  | Y73: c
G74: ="за "&IF(List_01_reporting_period="","предыдущий год",List_01_reporting_period-1&" год") -> за 2016 год | H74: 5190 | K74: =IF(I74="(",")","") ->  | L74: ( | N74: =IF(L74="(",")","") -> ) | O74: ( | Q74: ) | R74: ( | T74: ) | W74: =IF(U74="(",")","") ->  | Y74: p
F75: Добавить объект | AP75: add_FORMA5_STR1_1_5_range
E77: * | F77: В случае переоценки в графе "Первоначальная стоимость" приводится текущая рыночная стоимость или текущая (восстановительная) стоимость.

Sheet Форма 5. Основные средства
AL1: =version -> Версия 1.0 от 01.10.2017
AL2: =version -> Версия 1.0 от 01.10.2017
AL3: =version -> Версия 1.0 от 01.10.2017
AL4: =version -> Версия 1.0 от 01.10.2017
E5: =Getcode() -> ELPASS.FORMS.BH | AL5: =version -> Версия 1.0 от 01.10.2017
AL7: Форма 0710005 с. 4-6
E8: 2. Основные средства
E10: 2.1. Наличие и движение основных средств
E13: № п/п | F13: Наименование | G13: Период | H13: Код | I13: На начало года | O13: Изменения за период | AG13: На конец периода
I14: первоначальная стоимость * | L14: накопленная амортизация ** | O14: поступило | R14: выбыло объектов | X14: начислено амортизации ** | AA14: переоценка | AG14: первоначальная стоимость * | AJ14: накопленная амортизация **
R15: первоначальная стоимость * | U15: накопленная амортизация ** | AA15: первоначальная стоимость * | AD15: накопленная амортизация **
E16: 1 | F16: 2 | G16: 3 | H16: 4 | J16: 5 | L16: 6 | P16: 7 | R16: 8 | V16: 9 | X16: 10 | AB16: 11 | AE16: 12 | AH16: 13 | AJ16: 14
E17: 2.1.1 | F17: Основные средства (без учета доходных вложений в материальные ценности) - всего, в том числе: | G17: ="за "&IF(List_01_reporting_period="","отчётный год",List_01_reporting_period&" год") -> за 2017 год | H17: 5200 | I17: =IF((SUM(IF($AN$19:$AN$31="c",IF(I$19:I$31="(",-J$19:J$31,J$19:J$31))))<0,"(","") ->  | J17: =ABS(SUM(IF($AN$19:$AN$31="c",IF(I$19:I$31="(",-J$19:J$31,J$19:J$31)))) -> 178354 | K17: =IF(I17="(",")","") ->  | L17: ( | M17: =SUMIF($AN$19:$AN$31,$AN17,M$19:M$31) -> 114977 | N17: ) | O17: =IF((SUM(IF($AN$19:$AN$31="c",IF(O$19:O$31="(",-P$19:P$31,P$19:P$31))))<0,"(","") ->  | P17: =ABS(SUM(IF($AN$19:$AN$31="c",IF(O$19:O$31="(",-P$19:P$31,P$19:P$31)))) -> 24663 | Q17: =IF(O17="(",")","") ->  | R17: ( | S17: =SUMIF($AN$19:$AN$31,$AN17,S$19:S$31) -> 187 | T17: ) | U17: =IF((SUM(IF($AN$19:$AN$31="c",IF(U$19:U$31="(",-V$19:V$31,V$19:V$31))))<0,"(","") ->  | V17: =ABS(SUM(IF($AN$19:$AN$31="c",IF(U$19:U$31="(",-V$19:V$31,V$19:V$31)))) -> 187 | W17: =IF(U17="(",")","") ->  | X17: ( | Y17: =SUMIF($AN$19:$AN$31,$AN17,Y$19:Y$31) -> 7965 | Z17: ) | AA17: =IF((SUM(IF($AN$19:$AN$31="c",IF(AA$19:AA$31="(",-AB$19:AB$31,AB$19:AB$31))))<0,"(","") ->  | AB17: =ABS(SUM(IF($AN$19:$AN$31="c",IF(AA$19:AA$31="(",-AB$19:AB$31,AB$19:AB$31)))) -> 0 | AC17: =IF(AA17="(",")","") ->  | AD17: =IF((SUM(IF($AN$19:$AN$31="c",IF(AD$19:AD$31="(",-AE$19:AE$31,AE$19:AE$31))))<0,"(","") ->  | AE17: =ABS(SUM(IF($AN$19:$AN$31="c",IF(AD$19:AD$31="(",-AE$19:AE$31,AE$19:AE$31)))) -> 0 | AF17: =IF(AD17="(",")","") ->  | AG17: =IF((SUM(IF($AN$19:$AN$31="c",IF(AG$19:AG$31="(",-AH$19:AH$31,AH$19:AH$31))))<0,"(","") ->  | AH17: =ABS(SUM(IF($AN$19:$AN$31="c",IF(AG$19:AG$31="(",-AH$19:AH$31,AH$19:AH$31)))) -> 202830 | AI17: =IF(AG17="(",")","") ->  | AJ17: ( | AK17: =SUMIF($AN$19:$AN$31,$AN17,AK$19:AK$31) -> 122755 | AL17: ) | AN17: c
G18: ="за "&IF(List_01_reporting_period="","предыдущий год",List_01_reporting_period-1&" год") -> за 2016 год | H18: 5210 | I18: =IF((SUM(IF($AN$19:$AN$31="p",IF(I$19:I$31="(",-J$19:J$31,J$19:J$31))))<0,"(","") ->  | J18: =ABS(SUM(IF($AN$19:$AN$31="p",IF(I$19:I$31="(",-J$19:J$31,J$19:J$31)))) -> 166207 | L18: ( | M18: =SUMIF($AN$19:$AN$31,$AN18,M$19:M$31) -> 110625 | N18: ) | O18: =IF((SUM(IF($AN$19:$AN$31="p",IF(O$19:O$31="(",-P$19:P$31,P$19:P$31))))<0,"(","") ->  | P18: =ABS(SUM(IF($AN$19:$AN$31="p",IF(O$19:O$31="(",-P$19:P$31,P$19:P$31)))) -> 14284 | R18: ( | S18: =SUMIF($AN$19:$AN$31,$AN18,S$19:S$31) -> 2137 | T18: ) | U18: =IF((SUM(IF($AN$19:$AN$31="p",IF(U$19:U$31="(",-V$19:V$31,V$19:V$31))))<0,"(","") ->  | V18: =ABS(SUM(IF($AN$19:$AN$31="p",IF(U$19:U$31="(",-V$19:V$31,V$19:V$31)))) -> 2137 | X18: ( | Y18: =SUMIF($AN$19:$AN$31,$AN18,Y$19:Y$31) -> 6489 | Z18: ) | AA18: =IF((SUM(IF($AN$19:$AN$31="p",IF(AA$19:AA$31="(",-AB$19:AB$31,AB$19:AB$31))))<0,"(","") ->  | AB18: =ABS(SUM(IF($AN$19:$AN$31="p",IF(AA$19:AA$31="(",-AB$19:AB$31,AB$19:AB$31)))) -> 0 | AD18: =IF((SUM(IF($AN$19:$AN$31="p",IF(AD$19:AD$31="(",-AE$19:AE$31,AE$19:AE$31))))<0,"(","") ->  | AE18: =ABS(SUM(IF($AN$19:$AN$31="p",IF(AD$19:AD$31="(",-AE$19:AE$31,AE$19:AE$31)))) -> 0 | AG18: =IF((SUM(IF($AN$19:$AN$31="p",IF(AG$19:AG$31="(",-AH$19:AH$31,AH$19:AH$31))))<0,"(","") ->  | AH18: =ABS(SUM(IF($AN$19:$AN$31="p",IF(AG$19:AG$31="(",-AH$19:AH$31,AH$19:AH$31)))) -> 178354 | AJ18: ( | AK18: =SUMIF($AN$19:$AN$31,$AN18,AK$19:AK$31) -> 114977 | AL18: ) | AN18: p
E19: 2.1.1.1 | F19: Основные средства (без учета доходных вложений в материальные ценности) - всего, в том числе: | G19: ="за "&IF(List_01_reporting_period="","отчётный год",List_01_reporting_period&" год") -> за 2017 год | H19: 5200 | J19: 0 | L19: ( | M19: 0 | N19: ) | P19: 0 | R19: ( | S19: 0 | T19: ) | V19: 0 | X19: ( | Y19: 0 | Z19: ) | AH19: 0 | AJ19: ( | AK19: 0 | AL19: ) | AN19: c
G20: ="за "&IF(List_01_reporting_period="","предыдущий год",List_01_reporting_period-1&" год") -> за 2016 год | H20: 5210 | J20: 0 | L20: ( | M20: 0 | N20: ) | P20: 0 | R20: ( | S20: 0 | T20: ) | V20: 0 | X20: ( | Y20: 0 | Z20: ) | AH20: 0 | AJ20: ( | AK20: 0 | AL20: ) | AN20: p
D21: ы | E21: 2.1.1.2 | F21: здания | G21: ="за "&IF(List_01_reporting_period="","отчётный год",List_01_reporting_period&" год") -> за 2017 год | H21: 18842 | J21: 18842 | L21: ( | M21: 9409 | N21: ) | P21: 20313 | R21: ( | T21: ) | X21: ( | Y21: 532 | Z21: ) | AH21: 39155 | AJ21: ( | AK21: 9941 | AL21: ) | AN21: c
G22: ="за "&IF(List_01_reporting_period="","предыдущий год",List_01_reporting_period-1&" год") -> за 2016 год | H22: 18842 | J22: 18842 | L22: ( | M22: 8946 | N22: ) | P22: 0 | R22: ( | T22: ) | X22: ( | Y22: 463 | Z22: ) | AH22: 18842 | AJ22: ( | AK22: 9409 | AL22: ) | AN22: p
D23: ы | E23: 2.1.1.3 | F23: Сооружения | G23: ="за "&IF(List_01_reporting_period="","отчётный год",List_01_reporting_period&" год") -> за 2017 год | J23: 115700 | K23: =IF(I23="(",")","") ->  | L23: ( | M23: 79695 | N23: ) | P23: 1996 | Q23: =IF(O23="(",")","") ->  | R23: ( | T23: ) | W23: =IF(U23="(",")","") ->  | X23: ( | Y23: 2524 | Z23: ) | AC23: =IF(AA23="(",")","") ->  | AF23: =IF(AD23="(",")","") ->  | AH23: 117696 | AI23: =IF(AG23="(",")","") ->  | AJ23: ( | AK23: 82219 | AL23: ) | AN23: c
G24: ="за "&IF(List_01_reporting_period="","предыдущий год",List_01_reporting_period-1&" год") -> за 2016 год | J24: 110660 | L24: ( | M24: 78328 | N24: ) | P24: 6060 | R24: ( | S24: 1020 | T24: ) | V24: 1020 | X24: ( | Y24: 2387 | Z24: ) | AH24: 115700 | AJ24: ( | AK24: 79695 | AL24: ) | AN24: p
D25: ы | E25: 2.1.1.4 | F25: Машины и оборудование | G25: ="за "&IF(List_01_reporting_period="","отчётный год",List_01_reporting_period&" год") -> за 2017 год | J25: 31677 | L25: ( | M25: 17511 | N25: ) | P25: 2354 | R25: ( | S25: 140 | T25: ) | V25: 140 | X25: ( | Y25: 4102 | Z25: ) | AH25: 33891 | AJ25: ( | AK25: 21473 | AL25: ) | AN25: c
G26: ="за "&IF(List_01_reporting_period="","предыдущий год",List_01_reporting_period-1&" год") -> за 2016 год | J26: 24483 | L26: ( | M26: 15711 | N26: ) | P26: 8224 | R26: ( | S26: 1030 | T26: ) | V26: 1030 | X26: ( | Y26: 2830 | Z26: ) | AH26: 31677 | AJ26: ( | AK26: 17511 | AL26: ) | AN26: p
D27: ы | E27: 2.1.1.5 | F27: Произв. и хоз. Инвентарь | G27: ="за "&IF(List_01_reporting_period="","отчётный год",List_01_reporting_period&" год") -> за 2017 год | J27: 308 | L27: ( | M27: 308 | N27: ) | R27: ( | S27: 47 | T27: ) | V27: 47 | X27: ( | Z27: ) | AH27: 261 | AJ27: ( | AK27: 261 | AL27: ) | AN27: c
G28: ="за "&IF(List_01_reporting_period="","предыдущий год",List_01_reporting_period-1&" год") -> за 2016 год | J28: 395 | L28: ( | M28: 395 | N28: ) | R28: ( | S28: 87 | T28: ) | V28: 87 | X28: ( | Z28: ) | AH28: 308 | AJ28: ( | AK28: 308 | AL28: ) | AN28: p
D29: ы | E29: 2.1.1.6 | F29: Транспортные средства | G29: ="за "&IF(List_01_reporting_period="","отчётный год",List_01_reporting_period&" год") -> за 2017 год | J29: 11827 | L29: ( | M29: 8054 | N29: ) | R29: ( | T29: ) | X29: ( | Y29: 807 | Z29: ) | AH29: 11827 | AJ29: ( | AK29: 8861 | AL29: ) | AN29: c
G30: ="за "&IF(List_01_reporting_period="","предыдущий год",List_01_reporting_period-1&" год") -> за 2016 год | J30: 11827 | L30: ( | M30: 7245 | N30: ) | R30: ( | T30: ) | X30: ( | Y30: 809 | Z30: ) | AH30: 11827 | AJ30: ( | AK30: 8054 | AL30: ) | AN30: p
F31: Добавить группу основных средств | AM31: add_FORMA5_STR4_2_1_range
E32: 2.1.2 | F32: Учтено в составе доходных вложений в материальные ценности - всего, в том числе: | G32: ="за "&IF(List_01_reporting_period="","отчётный год",List_01_reporting_period&" год") -> за 2017 год | H32: 5220 | I32: =IF((SUM(IF($AN$34:$AN$36="c",IF(I$34:I$36="(",-J$34:J$36,J$34:J$36))))<0,"(","") ->  | J32: =ABS(SUM(IF($AN$34:$AN$36="c",IF(I$34:I$36="(",-J$34:J$36,J$34:J$36)))) -> 0 | K32: =IF(I32="(",")","") ->  | L32: ( | M32: =SUMIF($AN$34:$AN$36,$AN32,M$34:M$36) -> 0 | N32: ) | O32: =IF((SUM(IF($AN$34:$AN$36="c",IF(O$34:O$36="(",-P$34:P$36,P$34:P$36))))<0,"(","") ->  | P32: =ABS(SUM(IF($AN$34:$AN$36="c",IF(O$34:O$36="(",-P$34:P$36,P$34:P$36)))) -> 0 | Q32: =IF(O32="(",")","") ->  | R32: ( | S32: =SUMIF($AN$34:$AN$36,$AN32,S$34:S$36) -> 0 | T32: ) | U32: =IF((SUM(IF($AN$34:$AN$36="c",IF(U$34:U$36="(",-V$34:V$36,V$34:V$36))))<0,"(","") ->  | V32: =ABS(SUM(IF($AN$34:$AN$36="c",IF(U$34:U$36="(",-V$34:V$36,V$34:V$36)))) -> 0 | W32: =IF(U32="(",")","") ->  | X32: ( | Y32: =SUMIF($AN$34:$AN$36,$AN32,Y$34:Y$36) -> 0 | Z32: ) | AA32: =IF((SUM(IF($AN$34:$AN$36="c",IF(AA$34:AA$36="(",-AB$34:AB$36,AB$34:AB$36))))<0,"(","") ->  | AB32: =ABS(SUM(IF($AN$34:$AN$36="c",IF(AA$34:AA$36="(",-AB$34:AB$36,AB$34:AB$36)))) -> 0 | AC32: =IF(AA32="(",")","") ->  | AD32: =IF((SUM(IF($AN$34:$AN$36="c",IF(AD$34:AD$36="(",-AE$34:AE$36,AE$34:AE$36))))<0,"(","") ->  | AE32: =ABS(SUM(IF($AN$34:$AN$36="c",IF(AD$34:AD$36="(",-AE$34:AE$36,AE$34:AE$36)))) -> 0 | AF32: =IF(AD32="(",")","") ->  | AG32: =IF((SUM(IF($AN$34:$AN$36="c",IF(AG$34:AG$36="(",-AH$34:AH$36,AH$34:AH$36))))<0,"(","") ->  | AH32: =ABS(SUM(IF($AN$34:$AN$36="c",IF(AG$34:AG$36="(",-AH$34:AH$36,AH$34:AH$36)))) -> 0 | AI32: =IF(AG32="(",")","") ->  | AJ32: ( | AK32: =SUMIF($AN$34:$AN$36,$AN32,AK$34:AK$36) -> 0 | AL32: ) | AN32: c
G33: ="за "&IF(List_01_reporting_period="","предыдущий год",List_01_reporting_period-1&" год") -> за 2016 год | H33: 5230 | I33: =IF((SUM(IF($AN$34:$AN$36="p",IF(I$34:I$36="(",-J$34:J$36,J$34:J$36))))<0,"(","") ->  | J33: =ABS(SUM(IF($AN$34:$AN$36="p",IF(I$34:I$36="(",-J$34:J$36,J$34:J$36)))) -> 0 | K33: =IF(I33="(",")","") ->  | L33: ( | M33: =SUMIF($AN$34:$AN$36,$AN33,M$34:M$36) -> 0 | N33: ) | O33: =IF((SUM(IF($AN$34:$AN$36="p",IF(O$34:O$36="(",-P$34:P$36,P$34:P$36))))<0,"(","") ->  | P33: =ABS(SUM(IF($AN$34:$AN$36="p",IF(O$34:O$36="(",-P$34:P$36,P$34:P$36)))) -> 0 | Q33: =IF(O33="(",")","") ->  | R33: ( | S33: =SUMIF($AN$34:$AN$36,$AN33,S$34:S$36) -> 0 | T33: ) | U33: =IF((SUM(IF($AN$34:$AN$36="p",IF(U$34:U$36="(",-V$34:V$36,V$34:V$36))))<0,"(","") ->  | V33: =ABS(SUM(IF($AN$34:$AN$36="p",IF(U$34:U$36="(",-V$34:V$36,V$34:V$36)))) -> 0 | W33: =IF(U33="(",")","") ->  | X33: ( | Y33: =SUMIF($AN$34:$AN$36,$AN33,Y$34:Y$36) -> 0 | Z33: ) | AA33: =IF((SUM(IF($AN$34:$AN$36="p",IF(AA$34:AA$36="(",-AB$34:AB$36,AB$34:AB$36))))<0,"(","") ->  | AB33: =ABS(SUM(IF($AN$34:$AN$36="p",IF(AA$34:AA$36="(",-AB$34:AB$36,AB$34:AB$36)))) -> 0 | AC33: =IF(AA33="(",")","") ->  | AD33: =IF((SUM(IF($AN$34:$AN$36="p",IF(AD$34:AD$36="(",-AE$34:AE$36,AE$34:AE$36))))<0,"(","") ->  | AE33: =ABS(SUM(IF($AN$34:$AN$36="p",IF(AD$34:AD$36="(",-AE$34:AE$36,AE$34:AE$36)))) -> 0 | AF33: =IF(AD33="(",")","") ->  | AG33: =IF((SUM(IF($AN$34:$AN$36="p",IF(AG$34:AG$36="(",-AH$34:AH$36,AH$34:AH$36))))<0,"(","") ->  | AH33: =ABS(SUM(IF($AN$34:$AN$36="p",IF(AG$34:AG$36="(",-AH$34:AH$36,AH$34:AH$36)))) -> 0 | AI33: =IF(AG33="(",")","") ->  | AJ33: ( | AK33: =SUMIF($AN$34:$AN$36,$AN33,AK$34:AK$36) -> 0 | AL33: ) | AN33: p
E34: 2.1.2.1 | F34: Учтено в составе доходных вложений в материальные ценности - всего, в том числе: | G34: ="за "&IF(List_01_reporting_period="","отчётный год",List_01_reporting_period&" год") -> за 2017 год | H34: 5220 | K34: =IF(I34="(",")","") ->  | L34: ( | N34: ) | Q34: =IF(O34="(",")","") ->  | R34: ( | T34: ) | W34: =IF(U34="(",")","") ->  | X34: ( | Z34: ) | AC34: =IF(AA34="(",")","") ->  | AF34: =IF(AD34="(",")","") ->  | AI34: =IF(AG34="(",")","") ->  | AJ34: ( | AL34: ) | AN34: c
G35: ="за "&IF(List_01_reporting_period="","предыдущий год",List_01_reporting_period-1&" год") -> за 2016 год | H35: 5230 | K35: =IF(I35="(",")","") ->  | L35: ( | N35: ) | Q35: =IF(O35="(",")","") ->  | R35: ( | T35: ) | W35: =IF(U35="(",")","") ->  | X35: ( | Z35: ) | AC35: =IF(AA35="(",")","") ->  | AF35: =IF(AD35="(",")","") ->  | AI35: =IF(AG35="(",")","") ->  | AJ35: ( | AL35: ) | AN35: p
F36: Добавить группу объектов | AM36: add_FORMA5_STR4_2_1_range
E38: * | F38: В случае переоценки в графе "Первоначальная стоимость" приводится текущая рыночная стоимость или текущая (восстановительная) стоимость.
E39: ** | F39: Некоммерческая организация графы "Накопленная амортизация" и "Начисленная амортизация" именует соответственно "Накопленный износ" и "Начисленный износ"
E42: 2.2. Незавершенные капитальные вложения
E45: № п/п | F45: Наименование | G45: Период | H45: Код | I45: На начало года | L45: Изменения за период | U45: На конец периода
L46: затраты за период | O46: списано | R46: принято к учету в качестве основных средств или увеличена стоимость
E47: 1 | F47: 2 | G47: 3 | H47: 4 | J47: 5 | L47: 6 | P47: 7 | R47: 8 | V47: 9
E48: 2.2 | F48: Незавершенное строительство и незаконченные операции по приобретению, модернизации и т.п. основных средств - всего, в том числе: | G48: ="за "&IF(List_01_reporting_period="","отчётный год",List_01_reporting_period&" год") -> за 2017 год | H48: 5240 | I48: =IF((SUM(IF($Y$50:$Y$54="c",IF(I$50:I$54="(",-J$50:J$54,J$50:J$54))))<0,"(","") ->  | J48: =ABS(SUM(IF($Y$50:$Y$54="c",IF(I$50:I$54="(",-J$50:J$54,J$50:J$54)))) -> 0 | K48: =IF(I48="(",")","") ->  | L48: =IF((SUM(IF($Y$50:$Y$54="c",IF(L$50:L$54="(",-M$50:M$54,M$50:M$54))))<0,"(","") ->  | M48: =ABS(SUM(IF($Y$50:$Y$54="c",IF(L$50:L$54="(",-M$50:M$54,M$50:M$54)))) -> 0 | N48: =IF(L48="(",")","") ->  | O48: ( | P48: =SUMIF($Y$50:$Y$54,$Y48,P$50:P$54) -> 0 | Q48: ) | R48: ( | S48: =SUMIF($Y$50:$Y$54,$Y48,S$50:S$54) -> 0 | T48: ) | U48: =IF((SUM(IF($Y$50:$Y$54="c",IF(U$50:U$54="(",-V$50:V$54,V$50:V$54))))<0,"(","") ->  | V48: =ABS(SUM(IF($Y$50:$Y$54="c",IF(U$50:U$54="(",-V$50:V$54,V$50:V$54)))) -> 0 | W48: =IF(U48="(",")","") ->  | Y48: c
G49: ="за "&IF(List_01_reporting_period="","предыдущий год",List_01_reporting_period-1&" год") -> за 2016 год | H49: 5250 | I49: =IF((SUM(IF($Y$50:$Y$54="p",IF(I$50:I$54="(",-J$50:J$54,J$50:J$54))))<0,"(","") ->  | J49: =ABS(SUM(IF($Y$50:$Y$54="p",IF(I$50:I$54="(",-J$50:J$54,J$50:J$54)))) -> 0 | L49: =IF((SUM(IF($Y$50:$Y$54="p",IF(L$50:L$54="(",-M$50:M$54,M$50:M$54))))<0,"(","") ->  | M49: =ABS(SUM(IF($Y$50:$Y$54="p",IF(L$50:L$54="(",-M$50:M$54,M$50:M$54)))) -> 0 | O49: ( | P49: =SUMIF($Y$50:$Y$54,$Y49,P$50:P$54) -> 0 | Q49: ) | R49: ( | S49: =SUMIF($Y$50:$Y$54,$Y49,S$50:S$54) -> 0 | T49: ) | U49: =IF((SUM(IF($Y$50:$Y$54="p",IF(U$50:U$54="(",-V$50:V$54,V$50:V$54))))<0,"(","") ->  | V49: =ABS(SUM(IF($Y$50:$Y$54="p",IF(U$50:U$54="(",-V$50:V$54,V$50:V$54)))) -> 0
E50: 2.2.1 | F50: Незавершенное строительство и незаконченные операции по приобретению, модернизации и т.п. основных средств - всего, в том числе: | G50: ="за "&IF(List_01_reporting_period="","отчётный год",List_01_reporting_period&" год") -> за 2017 год | H50: 5240 | J50: 160 | M50: 24569 | O50: ( | Q50: ) | R50: ( | S50: 24663 | T50: ) | V50: 66
G51: ="за "&IF(List_01_reporting_period="","предыдущий год",List_01_reporting_period-1&" год") -> за 2016 год | H51: 5250 | J51: 160 | M51: 14284 | O51: ( | Q51: ) | R51: ( | S51: 14284 | T51: ) | V51: 160
D52: ы | E52: 2.2.2 | F52: Расходы будущих периодов | G52: ="за "&IF(List_01_reporting_period="","отчётный год",List_01_reporting_period&" год") -> за 2017 год | J52: 742 | M52: 77 | O52: ( | P52: 156 | Q52: ) | R52: ( | T52: ) | V52: 742
G53: ="за "&IF(List_01_reporting_period="","предыдущий год",List_01_reporting_period-1&" год") -> за 2016 год | J53: 866 | M53: 93 | O53: ( | P53: 217 | Q53: ) | R53: ( | S53: 24663 | T53: ) | V53: 729
F54: Добавить группу объектов | AM54: add_FORMA5_STR4_2_2_range
E57: 2.3. Изменение стоимости основных средств в результате достройки, дооборудования, реконструкции и частичной ликвидации
E60: № п/п | F60: Наименование | H60: Код | I60: ="За "&IF(List_01_reporting_period="","отчётный год",List_01_reporting_period&" год") -> За 2017 год | L60: ="За "&IF(List_01_reporting_period="","предыдущий год",List_01_reporting_period-1&" год") -> За 2016 год
E61: 1 | F61: 2 | H61: 3 | J61: 4 | L61: 5
E62: 2.3.1 | F62: Увеличение стоимости объектов основных средств в результате достройки, дооборудования, реконструкции - всего, в том числе: | H62: 5260 | I62: =IF((SUMIF(I63:I67,"",J63:J67)-SUMIF(I63:I67,"(",J63:J67))<0,"(","") ->  | J62: =ABS(SUMIF(I63:I67,"",J63:J67)-SUMIF(I63:I67,"(",J63:J67)) -> 24663 | K62: =IF(I62="(",")","") ->  | L62: =IF((SUMIF(L63:L67,"",M63:M67)-SUMIF(L63:L67,"(",M63:M67))<0,"(","") ->  | M62: =ABS(SUMIF(L63:L67,"",M63:M67)-SUMIF(L63:L67,"(",M63:M67)) -> 0 | N62: =IF(L62="(",")","") -> 
E63: 2.3.1.1 | F63: Увеличение стоимости объектов основных средств в результате достройки, дооборудования, реконструкции - всего, в том числе: | H63: 5260 | J63: 0 | K63: =IF(I63="(",")","") ->  | N63: =IF(L63="(",")","") -> 
D64: ы | E64: 2.3.1.2 | F64: Здания | J64: 20313 | K64: =IF(I64="(",")","") ->  | N64: =IF(L64="(",")","") -> 
D65: ы | E65: 2.3.1.3 | F65: Сооружения | J65: 4163 | K65: =IF(I65="(",")","") ->  | N65: =IF(L65="(",")","") -> 
D66: ы | E66: 2.3.1.4 | F66: Машины и оборудование | J66: 187 | K66: =IF(I66="(",")","") ->  | N66: =IF(L66="(",")","") -> 
F67: Добавить объект основных средств | AM67: add_FORMA5_STR4_2_3_range
E68: 2.3.2 | F68: Уменьшение стоимости объектов основных средств в результате частичной ликвидации - всего, в том числе: | H68: 5270 | I68: ( | J68: =SUM(J69:J70) -> 0 | K68: ) | L68: ( | M68: =SUM(M69:M70) -> 0 | N68: )
E69: 2.3.2.1 | F69: Уменьшение стоимости объектов основных средств в результате частичной ликвидации - всего, в том числе: | H69: 5270 | I69: ( | K69: ) | L69: ( | N69: )
F70: Добавить объект основных средств | AM70: add_FORMA5_STR4_2_3_1_range
E73: 2.4. Иное использование основных средств
E76: № п/п | F76: Наименование | H76: Код | I76: ="На 31 декабря "&IF(List_01_reporting_period = "","отчётную дату отчётного года",List_01_reporting_period& " г.") -> На 31 декабря 2017 г. | L76: ="На 31 декабря "&IF(List_01_reporting_period = "","предыдущего года",List_01_reporting_period-1& " г.") -> На 31 декабря 2016 г. | O76: ="На 31 декабря "&IF(List_01_reporting_period = "","года, предшествующего предыдущему",List_01_reporting_period-2& " г.") -> На 31 декабря 2015 г.
E77: 1 | F77: 2 | H77: 3 | J77: 4 | L77: 5 | P77: 6
E78: 2.4.1 | F78: Переданные в аренду основные средства, числящиеся на балансе | H78: 5280 | K78: =IF(I78="(",")","") ->  | N78: =IF(L78="(",")","") ->  | Q78: =IF(O78="(",")","") -> 
E79: 2.4.2 | F79: Переданные в аренду основные средства, числящиеся за балансом | H79: 5281
E80: 2.4.3 | F80: Полученные в аренду основные средства, числящиеся на балансе | H80: 5282
E81: 2.4.4 | F81: Полученные в аренду основные средства, числящиеся за балансом | H81: 5283 | J81: 94 | M81: 94 | P81: 94
E82: 2.4.5 | F82: Объекты недвижимости, принятые в эксплуатацию и фактически используемые, находящиеся в процессе государственной регистрации | H82: 5284
E83: 2.4.6 | F83: Основные средства, переведенные на консервацию | H83: 5285
E84: 2.4.7 | F84: Иное использование основных средств (залог и др.) | H84: 5286 | I84: =IF((SUMIF(I85:I86,"",J85:J86)-SUMIF(I85:I86,"(",J85:J86))<0,"(","") ->  | J84: =ABS(SUMIF(I85:I86,"",J85:J86)-SUMIF(I85:I86,"(",J85:J86)) -> 0 | L84: =IF((SUMIF(L85:L86,"",M85:M86)-SUMIF(L85:L86,"(",M85:M86))<0,"(","") ->  | M84: =ABS(SUMIF(L85:L86,"",M85:M86)-SUMIF(L85:L86,"(",M85:M86)) -> 0 | O84: =IF((SUMIF(O85:O86,"",P85:P86)-SUMIF(O85:O86,"(",P85:P86))<0,"(","") ->  | P84: =ABS(SUMIF(O85:O86,"",P85:P86)-SUMIF(O85:O86,"(",P85:P86)) -> 0
E85: 2.4.7.1 | F85: Иное использование основных средств (залог и др.)
F86: Добавить объект основных средств | AM86: add_FORMA5_STR4_2_4_range

Sheet Форма 5. Фин.вложения и запасы
E6: =Getcode() -> ELPASS.FORMS.BH | AI6: =version -> Версия 1.0 от 01.10.2017
AI8: Форма 0710005 с. 7-9
E9: 3. Финансовые вложения
E11: 3.1. Наличие и движение финансовых вложений
E14: № п/п | F14: Наименование | G14: Период | H14: Код | I14: На начало года | O14: Изменения за период | AD14: На конец периода
I15: первоначальная стоимость | L15: накопленная корректировка * | O15: поступило | R15: выбыло (погашено) | X15: начисление процентов (включая доведение первоначальной стоимости до номинальной) | AA15: текущей рыночной стоимости (убытков от обесценения) | AD15: первоначальная стоимость | AG15: накопленная корректировка *
R16: первоначальная стоимость | U16: накопленная корректировка *
E19: 1 | F19: 2 | G19: 3 | H19: 4 | J19: 5 | M19: 6 | P19: 7 | R19: 8 | V19: 9 | Y19: 10 | AB19: 11 | AE19: 12 | AH19: 13
E20: 3.1.1 | F20: Долгосрочные - всего, в том числе: | G20: ="за "&IF(List_01_reporting_period="","отчётный год",List_01_reporting_period&" год") -> за 2017 год | H20: 5301 | I20: =IF((SUM(IF($AK$22:$AK$24="c",IF(I$22:I$24="(",-J$22:J$24,J$22:J$24))))<0,"(","") ->  | J20: =ABS(SUM(IF($AK$22:$AK$24="c",IF(I$22:I$24="(",-J$22:J$24,J$22:J$24)))) -> 0 | K20: =IF(I20="(",")","") ->  | L20: =IF((SUM(IF($AK$22:$AK$24="c",IF(L$22:L$24="(",-M$22:M$24,M$22:M$24))))<0,"(","") ->  | M20: =ABS(SUM(IF($AK$22:$AK$24="c",IF(L$22:L$24="(",-M$22:M$24,M$22:M$24)))) -> 0 | N20: =IF(L20="(",")","") ->  | O20: =IF((SUM(IF($AK$22:$AK$24="c",IF(O$22:O$24="(",-P$22:P$24,P$22:P$24))))<0,"(","") ->  | P20: =ABS(SUM(IF($AK$22:$AK$24="c",IF(O$22:O$24="(",-P$22:P$24,P$22:P$24)))) -> 0 | Q20: =IF(O20="(",")","") ->  | R20: ( | S20: =SUMIF($AK$22:$AK$24,$AK20,S$22:S$24) -> 0 | T20: ) | U20: =IF((SUM(IF($AK$22:$AK$24="c",IF(U$22:U$24="(",-V$22:V$24,V$22:V$24))))<0,"(","") ->  | V20: =ABS(SUM(IF($AK$22:$AK$24="c",IF(U$22:U$24="(",-V$22:V$24,V$22:V$24)))) -> 0 | W20: =IF(U20="(",")","") ->  | X20: =IF((SUM(IF($AK$22:$AK$24="c",IF(X$22:X$24="(",-Y$22:Y$24,Y$22:Y$24))))<0,"(","") ->  | Y20: =ABS(SUM(IF($AK$22:$AK$24="c",IF(X$22:X$24="(",-Y$22:Y$24,Y$22:Y$24)))) -> 0 | Z20: =IF(X20="(",")","") ->  | AA20: =IF((SUM(IF($AK$22:$AK$24="c",IF(AA$22:AA$24="(",-AB$22:AB$24,AB$22:AB$24))))<0,"(","") ->  | AB20: =ABS(SUM(IF($AK$22:$AK$24="c",IF(AA$22:AA$24="(",-AB$22:AB$24,AB$22:AB$24)))) -> 0 | AC20: =IF(AA20="(",")","") ->  | AD20: =IF((SUM(IF($AK$22:$AK$24="c",IF(AD$22:AD$24="(",-AE$22:AE$24,AE$22:AE$24))))<0,"(","") ->  | AE20: =ABS(SUM(IF($AK$22:$AK$24="c",IF(AD$22:AD$24="(",-AE$22:AE$24,AE$22:AE$24)))) -> 0 | AF20: =IF(AD20="(",")","") ->  | AG20: =IF((SUM(IF($AK$22:$AK$24="c",IF(AG$22:AG$24="(",-AH$22:AH$24,AH$22:AH$24))))<0,"(","") ->  | AH20: =ABS(SUM(IF($AK$22:$AK$24="c",IF(AG$22:AG$24="(",-AH$22:AH$24,AH$22:AH$24)))) -> 0 | AI20: =IF(AG20="(",")","") ->  | AK20: c
G21: ="за "&IF(List_01_reporting_period="","предыдущий год",List_01_reporting_period-1&" год") -> за 2016 год | H21: 5311 | I21: =IF((SUM(IF($AK$22:$AK$24="p",IF(I$22:I$24="(",-J$22:J$24,J$22:J$24))))<0,"(","") ->  | J21: =ABS(SUM(IF($AK$22:$AK$24="p",IF(I$22:I$24="(",-J$22:J$24,J$22:J$24)))) -> 0 | K21: =IF(I21="(",")","") ->  | L21: =IF((SUM(IF($AK$22:$AK$24="p",IF(L$22:L$24="(",-M$22:M$24,M$22:M$24))))<0,"(","") ->  | M21: =ABS(SUM(IF($AK$22:$AK$24="p",IF(L$22:L$24="(",-M$22:M$24,M$22:M$24)))) -> 0 | N21: =IF(L21="(",")","") ->  | O21: =IF((SUM(IF($AK$22:$AK$24="p",IF(O$22:O$24="(",-P$22:P$24,P$22:P$24))))<0,"(","") ->  | P21: =ABS(SUM(IF($AK$22:$AK$24="p",IF(O$22:O$24="(",-P$22:P$24,P$22:P$24)))) -> 0 | Q21: =IF(O21="(",")","") ->  | R21: ( | S21: =SUMIF($AK$22:$AK$24,$AK21,S$22:S$24) -> 0 | T21: ) | U21: =IF((SUM(IF($AK$22:$AK$24="p",IF(U$22:U$24="(",-V$22:V$24,V$22:V$24))))<0,"(","") ->  | V21: =ABS(SUM(IF($AK$22:$AK$24="p",IF(U$22:U$24="(",-V$22:V$24,V$22:V$24)))) -> 0 | W21: =IF(U21="(",")","") ->  | X21: =IF((SUM(IF($AK$22:$AK$24="p",IF(X$22:X$24="(",-Y$22:Y$24,Y$22:Y$24))))<0,"(","") ->  | Y21: =ABS(SUM(IF($AK$22:$AK$24="p",IF(X$22:X$24="(",-Y$22:Y$24,Y$22:Y$24)))) -> 0 | Z21: =IF(X21="(",")","") ->  | AA21: =IF((SUM(IF($AK$22:$AK$24="p",IF(AA$22:AA$24="(",-AB$22:AB$24,AB$22:AB$24))))<0,"(","") ->  | AB21: =ABS(SUM(IF($AK$22:$AK$24="p",IF(AA$22:AA$24="(",-AB$22:AB$24,AB$22:AB$24)))) -> 0 | AC21: =IF(AA21="(",")","") ->  | AD21: =IF((SUM(IF($AK$22:$AK$24="p",IF(AD$22:AD$24="(",-AE$22:AE$24,AE$22:AE$24))))<0,"(","") ->  | AE21: =ABS(SUM(IF($AK$22:$AK$24="p",IF(AD$22:AD$24="(",-AE$22:AE$24,AE$22:AE$24)))) -> 0 | AF21: =IF(AD21="(",")","") ->  | AG21: =IF((SUM(IF($AK$22:$AK$24="p",IF(AG$22:AG$24="(",-AH$22:AH$24,AH$22:AH$24))))<0,"(","") ->  | AH21: =ABS(SUM(IF($AK$22:$AK$24="p",IF(AG$22:AG$24="(",-AH$22:AH$24,AH$22:AH$24)))) -> 0 | AI21: =IF(AG21="(",")","") ->  | AK21: p
E22: 3.1.1.1 | F22: Долгосрочные - всего, в том числе: | G22: ="за "&IF(List_01_reporting_period="","отчётный год",List_01_reporting_period&" год") -> за 2017 год | H22: 5301 | J22: 0 | K22: =IF(I22="(",")","") ->  | N22: =IF(L22="(",")","") ->  | P22: 0 | Q22: =IF(O22="(",")","") ->  | R22: ( | S22: 0 | T22: ) | W22: =IF(U22="(",")","") ->  | Z22: =IF(X22="(",")","") ->  | AC22: =IF(AA22="(",")","") ->  | AE22: 0 | AF22: =IF(AD22="(",")","") ->  | AI22: =IF(AG22="(",")","") ->  | AK22: c
G23: ="за "&IF(List_01_reporting_period="","предыдущий год",List_01_reporting_period-1&" год") -> за 2016 год | H23: 5311 | J23: 0 | K23: =IF(I23="(",")","") ->  | N23: =IF(L23="(",")","") ->  | P23: 0 | Q23: =IF(O23="(",")","") ->  | R23: ( | S23: 0 | T23: ) | W23: =IF(U23="(",")","") ->  | Z23: =IF(X23="(",")","") ->  | AC23: =IF(AA23="(",")","") ->  | AE23: 0 | AF23: =IF(AD23="(",")","") ->  | AI23: =IF(AG23="(",")","") ->  | AK23: p
F24: Добавить группу/вид | AJ24: add_FORMA5_STR7_3_1_range
E25: 3.1.2 | F25: Краткосрочные - всего, в том числе: | G25: ="за "&IF(List_01_reporting_period="","отчётный год",List_01_reporting_period&" год") -> за 2017 год | H25: 5305 | I25: =IF((SUM(IF($AK$27:$AK$29="c",IF(I$27:I$29="(",-J$27:J$29,J$27:J$29))))<0,"(","") ->  | J25: =ABS(SUM(IF($AK$27:$AK$29="c",IF(I$27:I$29="(",-J$27:J$29,J$27:J$29)))) -> 0 | K25: =IF(I25="(",")","") ->  | L25: =IF((SUM(IF($AK$27:$AK$29="c",IF(L$27:L$29="(",-M$27:M$29,M$27:M$29))))<0,"(","") ->  | M25: =ABS(SUM(IF($AK$27:$AK$29="c",IF(L$27:L$29="(",-M$27:M$29,M$27:M$29)))) -> 0 | N25: =IF(L25="(",")","") ->  | O25: =IF((SUM(IF($AK$27:$AK$29="c",IF(O$27:O$29="(",-P$27:P$29,P$27:P$29))))<0,"(","") ->  | P25: =ABS(SUM(IF($AK$27:$AK$29="c",IF(O$27:O$29="(",-P$27:P$29,P$27:P$29)))) -> 0 | Q25: =IF(O25="(",")","") ->  | R25: ( | S25: =SUMIF($AK$27:$AK$29,$AK25,S$27:S$29) -> 0 | T25: ) | U25: =IF((SUM(IF($AK$27:$AK$29="c",IF(U$27:U$29="(",-V$27:V$29,V$27:V$29))))<0,"(","") ->  | V25: =ABS(SUM(IF($AK$27:$AK$29="c",IF(U$27:U$29="(",-V$27:V$29,V$27:V$29)))) -> 0 | W25: =IF(U25="(",")","") ->  | X25: =IF((SUM(IF($AK$27:$AK$29="c",IF(X$27:X$29="(",-Y$27:Y$29,Y$27:Y$29))))<0,"(","") ->  | Y25: =ABS(SUM(IF($AK$27:$AK$29="c",IF(X$27:X$29="(",-Y$27:Y$29,Y$27:Y$29)))) -> 0 | Z25: =IF(X25="(",")","") ->  | AA25: =IF((SUM(IF($AK$27:$AK$29="c",IF(AA$27:AA$29="(",-AB$27:AB$29,AB$27:AB$29))))<0,"(","") ->  | AB25: =ABS(SUM(IF($AK$27:$AK$29="c",IF(AA$27:AA$29="(",-AB$27:AB$29,AB$27:AB$29)))) -> 0 | AC25: =IF(AA25="(",")","") ->  | AD25: =IF((SUM(IF($AK$27:$AK$29="c",IF(AD$27:AD$29="(",-AE$27:AE$29,AE$27:AE$29))))<0,"(","") ->  | AE25: =ABS(SUM(IF($AK$27:$AK$29="c",IF(AD$27:AD$29="(",-AE$27:AE$29,AE$27:AE$29)))) -> 0 | AF25: =IF(AD25="(",")","") ->  | AG25: =IF((SUM(IF($AK$27:$AK$29="c",IF(AG$27:AG$29="(",-AH$27:AH$29,AH$27:AH$29))))<0,"(","") ->  | AH25: =ABS(SUM(IF($AK$27:$AK$29="c",IF(AG$27:AG$29="(",-AH$27:AH$29,AH$27:AH$29)))) -> 0 | AI25: =IF(AG25="(",")","") ->  | AK25: c
G26: ="за "&IF(List_01_reporting_period="","предыдущий год",List_01_reporting_period-1&" год") -> за 2016 год | H26: 5315 | I26: =IF((SUM(IF($AK$27:$AK$29="p",IF(I$27:I$29="(",-J$27:J$29,J$27:J$29))))<0,"(","") ->  | J26: =ABS(SUM(IF($AK$27:$AK$29="p",IF(I$27:I$29="(",-J$27:J$29,J$27:J$29)))) -> 0 | K26: =IF(I26="(",")","") ->  | L26: =IF((SUM(IF($AK$27:$AK$29="p",IF(L$27:L$29="(",-M$27:M$29,M$27:M$29))))<0,"(","") ->  | M26: =ABS(SUM(IF($AK$27:$AK$29="p",IF(L$27:L$29="(",-M$27:M$29,M$27:M$29)))) -> 0 | N26: =IF(L26="(",")","") ->  | O26: =IF((SUM(IF($AK$27:$AK$29="p",IF(O$27:O$29="(",-P$27:P$29,P$27:P$29))))<0,"(","") ->  | P26: =ABS(SUM(IF($AK$27:$AK$29="p",IF(O$27:O$29="(",-P$27:P$29,P$27:P$29)))) -> 0 | Q26: =IF(O26="(",")","") ->  | R26: ( | S26: =SUMIF($AK$27:$AK$29,$AK26,S$27:S$29) -> 0 | T26: ) | U26: =IF((SUM(IF($AK$27:$AK$29="p",IF(U$27:U$29="(",-V$27:V$29,V$27:V$29))))<0,"(","") ->  | V26: =ABS(SUM(IF($AK$27:$AK$29="p",IF(U$27:U$29="(",-V$27:V$29,V$27:V$29)))) -> 0 | W26: =IF(U26="(",")","") ->  | X26: =IF((SUM(IF($AK$27:$AK$29="p",IF(X$27:X$29="(",-Y$27:Y$29,Y$27:Y$29))))<0,"(","") ->  | Y26: =ABS(SUM(IF($AK$27:$AK$29="p",IF(X$27:X$29="(",-Y$27:Y$29,Y$27:Y$29)))) -> 0 | Z26: =IF(X26="(",")","") ->  | AA26: =IF((SUM(IF($AK$27:$AK$29="p",IF(AA$27:AA$29="(",-AB$27:AB$29,AB$27:AB$29))))<0,"(","") ->  | AB26: =ABS(SUM(IF($AK$27:$AK$29="p",IF(AA$27:AA$29="(",-AB$27:AB$29,AB$27:AB$29)))) -> 0 | AC26: =IF(AA26="(",")","") ->  | AD26: =IF((SUM(IF($AK$27:$AK$29="p",IF(AD$27:AD$29="(",-AE$27:AE$29,AE$27:AE$29))))<0,"(","") ->  | AE26: =ABS(SUM(IF($AK$27:$AK$29="p",IF(AD$27:AD$29="(",-AE$27:AE$29,AE$27:AE$29)))) -> 0 | AF26: =IF(AD26="(",")","") ->  | AG26: =IF((SUM(IF($AK$27:$AK$29="p",IF(AG$27:AG$29="(",-AH$27:AH$29,AH$27:AH$29))))<0,"(","") ->  | AH26: =ABS(SUM(IF($AK$27:$AK$29="p",IF(AG$27:AG$29="(",-AH$27:AH$29,AH$27:AH$29)))) -> 0 | AI26: =IF(AG26="(",")","") ->  | AK26: p
E27: 3.1.2.1 | F27: Краткосрочные - всего, в том числе: | G27: ="за "&IF(List_01_reporting_period="","отчётный год",List_01_reporting_period&" год") -> за 2017 год | H27: 5305 | K27: =IF(I27="(",")","") ->  | N27: =IF(L27="(",")","") ->  | Q27: =IF(O27="(",")","") ->  | R27: ( | T27: ) | W27: =IF(U27="(",")","") ->  | Z27: =IF(X27="(",")","") ->  | AC27: =IF(AA27="(",")","") ->  | AF27: =IF(AD27="(",")","") ->  | AI27: =IF(AG27="(",")","") ->  | AK27: c
G28: ="за "&IF(List_01_reporting_period="","предыдущий год",List_01_reporting_period-1&" год") -> за 2016 год | H28: 5315 | K28: =IF(I28="(",")","") ->  | N28: =IF(L28="(",")","") ->  | Q28: =IF(O28="(",")","") ->  | R28: ( | T28: ) | W28: =IF(U28="(",")","") ->  | Z28: =IF(X28="(",")","") ->  | AC28: =IF(AA28="(",")","") ->  | AF28: =IF(AD28="(",")","") ->  | AI28: =IF(AG28="(",")","") ->  | AK28: p
F29: Добавить группу/вид | AJ29: add_FORMA5_STR7_3_1_range
E30: 3.1.3 | F30: Финансовых вложений - итого | G30: ="за "&IF(List_01_reporting_period="","отчётный год",List_01_reporting_period&" год") -> за 2017 год | H30: 5300 | I30: =IF((IF(I20="(",-J20,J20)+IF(I25="(",-J25,J25))<0,"(","") ->  | J30: =ABS(IF(I20="(",-J20,J20)+IF(I25="(",-J25,J25)) -> 0 | K30: =IF(I30="(",")","") ->  | L30: =IF((IF(L20="(",-M20,M20)+IF(L25="(",-M25,M25))<0,"(","") ->  | M30: =ABS(IF(L20="(",-M20,M20)+IF(L25="(",-M25,M25)) -> 0 | N30: =IF(L30="(",")","") ->  | O30: =IF((IF(O20="(",-P20,P20)+IF(O25="(",-P25,P25))<0,"(","") ->  | P30: =ABS(IF(O20="(",-P20,P20)+IF(O25="(",-P25,P25)) -> 0 | Q30: =IF(O30="(",")","") ->  | R30: ( | S30: =S20+S25 -> 0 | T30: ) | U30: =IF((IF(U20="(",-V20,V20)+IF(U25="(",-V25,V25))<0,"(","") ->  | V30: =ABS(IF(U20="(",-V20,V20)+IF(U25="(",-V25,V25)) -> 0 | W30: =IF(U30="(",")","") ->  | X30: =IF((IF(X20="(",-Y20,Y20)+IF(X25="(",-Y25,Y25))<0,"(","") ->  | Y30: =ABS(IF(X20="(",-Y20,Y20)+IF(X25="(",-Y25,Y25)) -> 0 | Z30: =IF(X30="(",")","") ->  | AA30: =IF((IF(AA20="(",-AB20,AB20)+IF(AA25="(",-AB25,AB25))<0,"(","") ->  | AB30: =ABS(IF(AA20="(",-AB20,AB20)+IF(AA25="(",-AB25,AB25)) -> 0 | AC30: =IF(AA30="(",")","") ->  | AD30: =IF((IF(AD20="(",-AE20,AE20)+IF(AD25="(",-AE25,AE25))<0,"(","") ->  | AE30: =ABS(IF(AD20="(",-AE20,AE20)+IF(AD25="(",-AE25,AE25)) -> 0 | AF30: =IF(AD30="(",")","") ->  | AG30: =IF((IF(AG20="(",-AH20,AH20)+IF(AG25="(",-AH25,AH25))<0,"(","") ->  | AH30: =ABS(IF(AG20="(",-AH20,AH20)+IF(AG25="(",-AH25,AH25)) -> 0 | AI30: =IF(AG30="(",")","") ->  | AK30: c
G31: ="за "&IF(List_01_reporting_period="","предыдущий год",List_01_reporting_period-1&" год") -> за 2016 год | H31: 5310 | I31: =IF((IF(I21="(",-J21,J21)+IF(I26="(",-J26,J26))<0,"(","") ->  | J31: =ABS(IF(I21="(",-J21,J21)+IF(I26="(",-J26,J26)) -> 0 | K31: =IF(I31="(",")","") ->  | L31: =IF((IF(L21="(",-M21,M21)+IF(L26="(",-M26,M26))<0,"(","") ->  | M31: =ABS(IF(L21="(",-M21,M21)+IF(L26="(",-M26,M26)) -> 0 | N31: =IF(L31="(",")","") ->  | O31: =IF((IF(O21="(",-P21,P21)+IF(O26="(",-P26,P26))<0,"(","") ->  | P31: =ABS(IF(O21="(",-P21,P21)+IF(O26="(",-P26,P26)) -> 0 | Q31: =IF(O31="(",")","") ->  | R31: ( | S31: =S21+S26 -> 0 | T31: ) | U31: =IF((IF(U21="(",-V21,V21)+IF(U26="(",-V26,V26))<0,"(","") ->  | V31: =ABS(IF(U21="(",-V21,V21)+IF(U26="(",-V26,V26)) -> 0 | W31: =IF(U31="(",")","") ->  | X31: =IF((IF(X21="(",-Y21,Y21)+IF(X26="(",-Y26,Y26))<0,"(","") ->  | Y31: =ABS(IF(X21="(",-Y21,Y21)+IF(X26="(",-Y26,Y26)) -> 0 | Z31: =IF(X31="(",")","") ->  | AA31: =IF((IF(AA21="(",-AB21,AB21)+IF(AA26="(",-AB26,AB26))<0,"(","") ->  | AB31: =ABS(IF(AA21="(",-AB21,AB21)+IF(AA26="(",-AB26,AB26)) -> 0 | AC31: =IF(AA31="(",")","") ->  | AD31: =IF((IF(AD21="(",-AE21,AE21)+IF(AD26="(",-AE26,AE26))<0,"(","") ->  | AE31: =ABS(IF(AD21="(",-AE21,AE21)+IF(AD26="(",-AE26,AE26)) -> 0 | AF31: =IF(AD31="(",")","") ->  | AG31: =IF((IF(AG21="(",-AH21,AH21)+IF(AG26="(",-AH26,AH26))<0,"(","") ->  | AH31: =ABS(IF(AG21="(",-AH21,AH21)+IF(AG26="(",-AH26,AH26)) -> 0 | AI31: =IF(AG31="(",")","") ->  | AK31: p
E33: * | F33: Накопленная корректировка определяется как:
F34: - разница между первоначальной и текущей рыночной стоимостью - по финансовым вложениям, по которым можно определить текущую рыночную стоимость;
F35: - начисленная в течение срока обращения разница между первоначальной стоимостью и номинальной стоимостью - по долговым ценным бумагам, по которым не определяется текущая рыночная стоимость;
F36: - величина резерва под обесценение финансовых вложений, созданного на предыдущую отчетную дату, - по финансовым вложениям, по которым не определяется текущая рыночная стоимость;
E39: 3.2. Иное использование финансовых вложений
E42: № п/п | F42: Наименование | H42: Код | I42: ="На 31 декабря "&IF(List_01_reporting_period = "","отчётную дату отчётного года",List_01_reporting_period& " г.") -> На 31 декабря 2017 г. | L42: ="На 31 декабря "&IF(List_01_reporting_period = "","предыдущего года",List_01_reporting_period-1& " г.") -> На 31 декабря 2016 г. | O42: ="На 31 декабря "&IF(List_01_reporting_period = "","года, предшествующего предыдущему",List_01_reporting_period-2& " г.") -> На 31 декабря 2015 г.
E43: 1 | F43: 2 | H43: 3 | J43: 4 | L43: 5 | P43: 6
E44: 3.2.1 | F44: Финансовые вложения, находящиеся в залоге - всего, в том числе: | H44: 5320 | I44: =IF((SUMIF(I45:I46,"",J45:J46)-SUMIF(I45:I46,"(",J45:J46))<0,"(","") ->  | J44: =ABS(SUMIF(I45:I46,"",J45:J46)-SUMIF(I45:I46,"(",J45:J46)) -> 0 | K44: =IF(I44="(",")","") ->  | L44: =IF((SUMIF(L45:L46,"",M45:M46)-SUMIF(L45:L46,"(",M45:M46))<0,"(","") ->  | M44: =ABS(SUMIF(L45:L46,"",M45:M46)-SUMIF(L45:L46,"(",M45:M46)) -> 0 | N44: =IF(L44="(",")","") ->  | O44: =IF((SUMIF(O45:O46,"",P45:P46)-SUMIF(O45:O46,"(",P45:P46))<0,"(","") ->  | P44: =ABS(SUMIF(O45:O46,"",P45:P46)-SUMIF(O45:O46,"(",P45:P46)) -> 0 | Q44: =IF(O44="(",")","") -> 
E45: 3.2.1.1 | F45: финансовые вложения в залоге | H45: 5320 | K45: =IF(I45="(",")","") ->  | N45: =IF(L45="(",")","") ->  | Q45: =IF(O45="(",")","") -> 
F46: Добавить группу/вид | AJ46: add_FORMA5_STR7_3_2_range
E47: 3.2.2 | F47: Финансовые вложения, переданные третьим лицам (кроме продажи) - всего, в том числе: | H47: 5325 | I47: =IF((SUMIF(I48:I49,"",J48:J49)-SUMIF(I48:I49,"(",J48:J49))<0,"(","") ->  | J47: =ABS(SUMIF(I48:I49,"",J48:J49)-SUMIF(I48:I49,"(",J48:J49)) -> 0 | K47: =IF(I47="(",")","") ->  | L47: =IF((SUMIF(L48:L49,"",M48:M49)-SUMIF(L48:L49,"(",M48:M49))<0,"(","") ->  | M47: =ABS(SUMIF(L48:L49,"",M48:M49)-SUMIF(L48:L49,"(",M48:M49)) -> 0 | N47: =IF(L47="(",")","") ->  | O47: =IF((SUMIF(O48:O49,"",P48:P49)-SUMIF(O48:O49,"(",P48:P49))<0,"(","") ->  | P47: =ABS(SUMIF(O48:O49,"",P48:P49)-SUMIF(O48:O49,"(",P48:P49)) -> 0 | Q47: =IF(O47="(",")","") -> 
E48: 3.2.2.1 | F48: финансовые вложения переданные третьим лицам | H48: 5325 | K48: =IF(I48="(",")","") ->  | N48: =IF(L48="(",")","") ->  | Q48: =IF(O48="(",")","") -> 
F49: Добавить группу/вид | AJ49: add_FORMA5_STR7_3_2_range
E50: 3.2.3 | F50: Иное использование финансовых вложений | H50: 5329 | K50: =IF(I50="(",")","") ->  | N50: =IF(L50="(",")","") ->  | Q50: =IF(O50="(",")","") -> 
E53: 4. Запасы
E55: 4.1. Наличие и движение запасов
E58: № п/п | F58: Наименование | G58: Период | H58: Код | I58: На начало года | O58: Изменения за период | AD58: На конец периода
I59: себестоимость | L59: величина резерва под снижение стоимости | O59: поступления и затраты | R59: выбыло | X59: убытков от снижения стоимости | AA59: оборот запасов между их группами (видами) | AD59: себестоимость | AG59: величина резерва под снижение стоимости
R60: себестоимость | U60: резерв под снижение стоимости
E61: 1 | F61: 2 | G61: 3 | H61: 4 | J61: 5 | L61: 6 | P61: 7 | R61: 8 | V61: 9 | X61: 10 | AB61: 11 | AE61: 12 | AG61: 13
E62: 4.1 | F62: Запасы - всего, в том числе: | G62: ="за "&IF(List_01_reporting_period="","отчётный год",List_01_reporting_period&" год") -> за 2017 год | H62: 5400 | I62: =IF((SUM(IF($AK$64:$AK$70="c",IF(I$64:I$70="(",-J$64:J$70,J$64:J$70))))<0,"(","") ->  | J62: =ABS(SUM(IF($AK$64:$AK$70="c",IF(I$64:I$70="(",-J$64:J$70,J$64:J$70)))) -> 6394 | K62: =IF(I62="(",")","") ->  | L62: ( | M62: =SUMIF($AK$64:$AK$70,$AK62,M$64:M$70) -> 0 | N62: ) | O62: =IF((SUM(IF($AK$64:$AK$70="c",IF(O$64:O$70="(",-P$64:P$70,P$64:P$70))))<0,"(","") ->  | P62: =ABS(SUM(IF($AK$64:$AK$70="c",IF(O$64:O$70="(",-P$64:P$70,P$64:P$70)))) -> 21888 | Q62: =IF(O62="(",")","") ->  | R62: ( | S62: =SUMIF($AK$64:$AK$70,$AK62,S$64:S$70) -> 21970 | T62: ) | U62: =IF((SUM(IF($AK$64:$AK$70="c",IF(U$64:U$70="(",-V$64:V$70,V$64:V$70))))<0,"(","") ->  | V62: =ABS(SUM(IF($AK$64:$AK$70="c",IF(U$64:U$70="(",-V$64:V$70,V$64:V$70)))) -> 0 | W62: =IF(U62="(",")","") ->  | X62: =IF((SUM(IF($AK$64:$AK$70="c",IF(X$64:X$70="(",-Y$64:Y$70,Y$64:Y$70))))<0,"(","") ->  | Y62: =ABS(SUM(IF($AK$64:$AK$70="c",IF(X$64:X$70="(",-Y$64:Y$70,Y$64:Y$70)))) -> 0 | Z62: =IF(X62="(",")","") ->  | AB62: x | AD62: =IF((SUM(IF($AK$64:$AK$70="c",IF(AD$64:AD$70="(",-AE$64:AE$70,AE$64:AE$70))))<0,"(","") ->  | AE62: =ABS(SUM(IF($AK$64:$AK$70="c",IF(AD$64:AD$70="(",-AE$64:AE$70,AE$64:AE$70)))) -> 6312 | AF62: =IF(AD62="(",")","") ->  | AG62: ( | AH62: =SUMIF($AK$64:$AK$70,$AK62,AH$64:AH$70) -> 0 | AI62: ) | AK62: c
G63: ="за "&IF(List_01_reporting_period="","предыдущий год",List_01_reporting_period-1&" год") -> за 2016 год | H63: 5420 | I63: =IF((SUM(IF($AK$64:$AK$70="p",IF(I$64:I$70="(",-J$64:J$70,J$64:J$70))))<0,"(","") ->  | J63: =ABS(SUM(IF($AK$64:$AK$70="p",IF(I$64:I$70="(",-J$64:J$70,J$64:J$70)))) -> 4787 | L63: ( | M63: =SUMIF($AK$64:$AK$70,$AK63,M$64:M$70) -> 0 | N63: ) | O63: =IF((SUM(IF($AK$64:$AK$70="p",IF(O$64:O$70="(",-P$64:P$70,P$64:P$70))))<0,"(","") ->  | P63: =ABS(SUM(IF($AK$64:$AK$70="p",IF(O$64:O$70="(",-P$64:P$70,P$64:P$70)))) -> 27573 | R63: ( | S63: =SUMIF($AK$64:$AK$70,$AK63,S$64:S$70) -> 25966 | T63: ) | U63: =IF((SUM(IF($AK$64:$AK$70="p",IF(U$64:U$70="(",-V$64:V$70,V$64:V$70))))<0,"(","") ->  | V63: =ABS(SUM(IF($AK$64:$AK$70="p",IF(U$64:U$70="(",-V$64:V$70,V$64:V$70)))) -> 0 | X63: =IF((SUM(IF($AK$64:$AK$70="p",IF(X$64:X$70="(",-Y$64:Y$70,Y$64:Y$70))))<0,"(","") ->  | Y63: =ABS(SUM(IF($AK$64:$AK$70="p",IF(X$64:X$70="(",-Y$64:Y$70,Y$64:Y$70)))) -> 0 | AB63: x | AD63: =IF((SUM(IF($AK$64:$AK$70="p",IF(AD$64:AD$70="(",-AE$64:AE$70,AE$64:AE$70))))<0,"(","") ->  | AE63: =ABS(SUM(IF($AK$64:$AK$70="p",IF(AD$64:AD$70="(",-AE$64:AE$70,AE$64:AE$70)))) -> 6394 | AG63: ( | AH63: =SUMIF($AK$64:$AK$70,$AK63,AH$64:AH$70) -> 0 | AI63: ) | AK63: p
E64: 4.1.1 | F64: Запасы - всего, в том числе: | G64: ="за "&IF(List_01_reporting_period="","отчётный год",List_01_reporting_period&" год") -> за 2017 год | H64: 5400 | J64: 0 | L64: ( | N64: ) | P64: 0 | R64: ( | S64: 0 | T64: ) | AC64: =IF(AA64="(",")","") ->  | AE64: 0 | AG64: ( | AI64: ) | AK64: c
G65: ="за "&IF(List_01_reporting_period="","предыдущий год",List_01_reporting_period-1&" год") -> за 2016 год | H65: 5420 | J65: 0 | L65: ( | N65: ) | P65: 0 | R65: ( | S65: 0 | T65: ) | AE65: 0 | AG65: ( | AI65: ) | AK65: p
D66: ы | E66: 4.1.2 | F66: материалы | G66: ="за "&IF(List_01_reporting_period="","отчётный год",List_01_reporting_period&" год") -> за 2017 год | J66: 6147 | L66: ( | N66: ) | P66: 21888 | R66: ( | S66: 21970 | T66: ) | AA66: ( | AB66: 82 | AC66: ) | AE66: 6065 | AG66: ( | AI66: ) | AK66: c
G67: ="за "&IF(List_01_reporting_period="","предыдущий год",List_01_reporting_period-1&" год") -> за 2016 год | J67: 4534 | L67: ( | N67: ) | P67: 27569 | R67: ( | S67: 25956 | T67: ) | AB67: 1613 | AE67: 6147 | AG67: ( | AI67: ) | AK67: p
D68: ы | E68: 4.1.3 | F68: товары | G68: ="за "&IF(List_01_reporting_period="","отчётный год",List_01_reporting_period&" год") -> за 2017 год | J68: 247 | L68: ( | N68: ) | R68: ( | T68: ) | AE68: 247 | AG68: ( | AI68: ) | AK68: c
G69: ="за "&IF(List_01_reporting_period="","предыдущий год",List_01_reporting_period-1&" год") -> за 2016 год | J69: 253 | L69: ( | N69: ) | P69: 4 | R69: ( | S69: 10 | T69: ) | AA69: ( | AB69: 6 | AC69: ) | AE69: 247 | AG69: ( | AI69: ) | AK69: p
F70: Добавить группу/вид | AJ70: add_FORMA5_STR7_4_1_range
E73: 4.2. Запасы в залоге
E76: № п/п | F76: Наименование | H76: Код | I76: ="На 31 декабря "&IF(List_01_reporting_period = "","отчётную дату отчётного года",List_01_reporting_period& " г.") -> На 31 декабря 2017 г. | L76: ="На 31 декабря "&IF(List_01_reporting_period = "","предыдущего года",List_01_reporting_period-1& " г.") -> На 31 декабря 2016 г. | O76: ="На 31 декабря "&IF(List_01_reporting_period = "","года, предшествующего предыдущему",List_01_reporting_period-2& " г.") -> На 31 декабря 2015 г.
E77: 1 | F77: 2 | H77: 3 | J77: 4 | L77: 5 | P77: 6
E78: 4.2.1 | F78: Запасы, не оплаченные на отчетную дату - всего, в том числе: | H78: 5440 | I78: =IF((SUMIF(I79:I80,"",J79:J80)-SUMIF(I79:I80,"(",J79:J80))<0,"(","") ->  | J78: =ABS(SUMIF(I79:I80,"",J79:J80)-SUMIF(I79:I80,"(",J79:J80)) -> 0 | K78: =IF(I78="(",")","") ->  | L78: =IF((SUMIF(L79:L80,"",M79:M80)-SUMIF(L79:L80,"(",M79:M80))<0,"(","") ->  | M78: =ABS(SUMIF(L79:L80,"",M79:M80)-SUMIF(L79:L80,"(",M79:M80)) -> 0 | N78: =IF(L78="(",")","") ->  | O78: =IF((SUMIF(O79:O80,"",P79:P80)-SUMIF(O79:O80,"(",P79:P80))<0,"(","") ->  | P78: =ABS(SUMIF(O79:O80,"",P79:P80)-SUMIF(O79:O80,"(",P79:P80)) -> 0 | Q78: =IF(O78="(",")","") -> 
E79: 4.2.1.1 | F79: запасы не оплаченные | H79: 5440 | K79: =IF(I79="(",")","") ->  | N79: =IF(L79="(",")","") ->  | Q79: =IF(O79="(",")","") -> 
F80: Добавить группу/вид | AJ80: add_FORMA5_STR7_3_2_range
E81: 4.2.2 | F81: Запасы, находящиеся в залоге по договору - всего, в том числе: | H81: 5445 | I81: =IF((SUMIF(I82:I83,"",J82:J83)-SUMIF(I82:I83,"(",J82:J83))<0,"(","") ->  | J81: =ABS(SUMIF(I82:I83,"",J82:J83)-SUMIF(I82:I83,"(",J82:J83)) -> 0 | K81: =IF(I81="(",")","") ->  | L81: =IF((SUMIF(L82:L83,"",M82:M83)-SUMIF(L82:L83,"(",M82:M83))<0,"(","") ->  | M81: =ABS(SUMIF(L82:L83,"",M82:M83)-SUMIF(L82:L83,"(",M82:M83)) -> 0 | N81: =IF(L81="(",")","") ->  | O81: =IF((SUMIF(O82:O83,"",P82:P83)-SUMIF(O82:O83,"(",P82:P83))<0,"(","") ->  | P81: =ABS(SUMIF(O82:O83,"",P82:P83)-SUMIF(O82:O83,"(",P82:P83)) -> 0 | Q81: =IF(O81="(",")","") -> 
E82: 4.2.2.1 | F82: запасы в залоге | H82: 5445 | K82: =IF(I82="(",")","") ->  | N82: =IF(L82="(",")","") ->  | Q82: =IF(O82="(",")","") -> 
F83: Добавить группу/вид | AJ83: add_FORMA5_STR7_3_2_range

Sheet Форма 5. ДиКЗ и запасы
E5: =Getcode() -> ELPASS.FORMS.BH | AL5: =version -> Версия 1.0 от 01.10.2017
AL7: Форма 0710005 с. 10-12
E8: 5. Дебиторская и кредиторская задолженность
E10: 5.1. Наличие и движение дебиторской задолженности
E13: № п/п | F13: Наименование | G13: Период | H13: Код | I13: На начало года | O13: Изменения за период | AG13: На конец периода
I14: учтенная по условиям договора | L14: величина резерва по сомнительным долгам | O14: поступление | U14: выбыло | AD14: перевод из долго- в краткосрочную и из кратко- в долгосрочную задолженности | AG14: учтенная по условиям договора | AJ14: величина резерва по сомнительным долгам
O15: в результате хозяйственных операций (сумма долга по сделке операции) * | R15: причитающиеся проценты, штрафы и иные начисления * | U15: погашение | X15: списание на финансовый результат * | AA15: восстановление резерва
E18: 1 | F18: 2 | G18: 3 | H18: 4 | J18: 5 | L18: 6 | P18: 7 | S18: 8 | U18: 9 | Y18: 10 | AB18: 11 | AD18: 12 | AH18: 13 | AJ18: 14
E19: 5.1.1 | F19: Долгосрочная дебиторская задолженность - всего, в том числе: | G19: ="за "&IF(List_01_reporting_period="","отчётный год",List_01_reporting_period&" год") -> за 2017 год | H19: 5501 | I19: =IF((SUM(IF($AN$21:$AN$23="c",IF(I$21:I$23="(",-J$21:J$23,J$21:J$23))))<0,"(","") ->  | J19: =ABS(SUM(IF($AN$21:$AN$23="c",IF(I$21:I$23="(",-J$21:J$23,J$21:J$23)))) -> 0 | K19: =IF(I19="(",")","") ->  | L19: ( | M19: =SUMIF($AN$21:$AN$23,$AN19,M$21:M$23) -> 0 | N19: ) | O19: =IF((SUM(IF($AN$21:$AN$23="c",IF(O$21:O$23="(",-P$21:P$23,P$21:P$23))))<0,"(","") ->  | P19: =ABS(SUM(IF($AN$21:$AN$23="c",IF(O$21:O$23="(",-P$21:P$23,P$21:P$23)))) -> 1296 | Q19: =IF(O19="(",")","") ->  | R19: =IF((SUM(IF($AN$21:$AN$23="c",IF(R$21:R$23="(",-S$21:S$23,S$21:S$23))))<0,"(","") ->  | S19: =ABS(SUM(IF($AN$21:$AN$23="c",IF(R$21:R$23="(",-S$21:S$23,S$21:S$23)))) -> 0 | T19: =IF(R19="(",")","") ->  | U19: ( | V19: =SUMIF($AN$21:$AN$23,$AN19,V$21:V$23) -> 0 | W19: ) | X19: ( | Y19: =SUMIF($AN$21:$AN$23,$AN19,Y$21:Y$23) -> 0 | Z19: ) | AA19: =IF((SUM(IF($AN$21:$AN$23="c",IF(AA$21:AA$23="(",-AB$21:AB$23,AB$21:AB$23))))<0,"(","") ->  | AB19: =ABS(SUM(IF($AN$21:$AN$23="c",IF(AA$21:AA$23="(",-AB$21:AB$23,AB$21:AB$23)))) -> 0 | AC19: =IF(AA19="(",")","") ->  | AD19: ( | AE19: =SUMIF($AN$21:$AN$23,$AN19,AE$21:AE$23) -> 0 | AF19: ) | AG19: =IF((SUM(IF($AN$21:$AN$23="c",IF(AG$21:AG$23="(",-AH$21:AH$23,AH$21:AH$23))))<0,"(","") ->  | AH19: =ABS(SUM(IF($AN$21:$AN$23="c",IF(AG$21:AG$23="(",-AH$21:AH$23,AH$21:AH$23)))) -> 1296 | AI19: =IF(AG19="(",")","") ->  | AJ19: ( | AK19: =SUMIF($AN$21:$AN$23,$AN19,AK$21:AK$23) -> 1296 | AL19: ) | AN19: c
G20: ="за "&IF(List_01_reporting_period="","предыдущий год",List_01_reporting_period-1&" год") -> за 2016 год | H20: 5521 | I20: =IF((SUM(IF($AN$21:$AN$23="p",IF(I$21:I$23="(",-J$21:J$23,J$21:J$23))))<0,"(","") ->  | J20: =ABS(SUM(IF($AN$21:$AN$23="p",IF(I$21:I$23="(",-J$21:J$23,J$21:J$23)))) -> 0 | K20: =IF(I20="(",")","") ->  | L20: ( | M20: =SUMIF($AN$21:$AN$23,$AN20,M$21:M$23) -> 0 | N20: ) | O20: =IF((SUM(IF($AN$21:$AN$23="p",IF(O$21:O$23="(",-P$21:P$23,P$21:P$23))))<0,"(","") ->  | P20: =ABS(SUM(IF($AN$21:$AN$23="p",IF(O$21:O$23="(",-P$21:P$23,P$21:P$23)))) -> 0 | Q20: =IF(O20="(",")","") ->  | R20: =IF((SUM(IF($AN$21:$AN$23="p",IF(R$21:R$23="(",-S$21:S$23,S$21:S$23))))<0,"(","") ->  | S20: =ABS(SUM(IF($AN$21:$AN$23="p",IF(R$21:R$23="(",-S$21:S$23,S$21:S$23)))) -> 0 | T20: =IF(R20="(",")","") ->  | U20: ( | V20: =SUMIF($AN$21:$AN$23,$AN20,V$21:V$23) -> 0 | W20: ) | X20: ( | Y20: =SUMIF($AN$21:$AN$23,$AN20,Y$21:Y$23) -> 0 | Z20: ) | AA20: =IF((SUM(IF($AN$21:$AN$23="p",IF(AA$21:AA$23="(",-AB$21:AB$23,AB$21:AB$23))))<0,"(","") ->  | AB20: =ABS(SUM(IF($AN$21:$AN$23="p",IF(AA$21:AA$23="(",-AB$21:AB$23,AB$21:AB$23)))) -> 0 | AC20: =IF(AA20="(",")","") ->  | AD20: ( | AE20: =SUMIF($AN$21:$AN$23,$AN20,AE$21:AE$23) -> 0 | AF20: ) | AG20: =IF((SUM(IF($AN$21:$AN$23="p",IF(AG$21:AG$23="(",-AH$21:AH$23,AH$21:AH$23))))<0,"(","") ->  | AH20: =ABS(SUM(IF($AN$21:$AN$23="p",IF(AG$21:AG$23="(",-AH$21:AH$23,AH$21:AH$23)))) -> 0 | AI20: =IF(AG20="(",")","") ->  | AJ20: ( | AK20: =SUMIF($AN$21:$AN$23,$AN20,AK$21:AK$23) -> 0 | AL20: ) | AN20: p
E21: 5.1.1.1 | F21: Долгосрочная дебиторская задолженность - всего, в том числе: | G21: ="за "&IF(List_01_reporting_period="","отчётный год",List_01_reporting_period&" год") -> за 2017 год | H21: 5501 | J21: 0 | K21: =IF(I21="(",")","") ->  | L21: ( | N21: ) | P21: 1296 | Q21: =IF(O21="(",")","") ->  | T21: =IF(R21="(",")","") ->  | U21: ( | W21: ) | X21: ( | Z21: ) | AC21: =IF(AA21="(",")","") ->  | AD21: ( | AF21: ) | AH21: 1296 | AI21: =IF(AG21="(",")","") ->  | AJ21: ( | AK21: 1296 | AL21: ) | AN21: c
G22: ="за "&IF(List_01_reporting_period="","предыдущий год",List_01_reporting_period-1&" год") -> за 2016 год | H22: 5521 | K22: =IF(I22="(",")","") ->  | L22: ( | N22: ) | Q22: =IF(O22="(",")","") ->  | T22: =IF(R22="(",")","") ->  | U22: ( | W22: ) | X22: ( | Z22: ) | AC22: =IF(AA22="(",")","") ->  | AD22: ( | AF22: ) | AH22: 0 | AI22: =IF(AG22="(",")","") ->  | AJ22: ( | AK22: 0 | AL22: ) | AN22: p
F23: Добавить вид | AM23: add_FORMA5_STR12_5_1_1_range
E24: 5.1.2 | F24: Краткосрочная дебиторская задолженность - всего, в том числе: | G24: ="за "&IF(List_01_reporting_period="","отчётный год",List_01_reporting_period&" год") -> за 2017 год | H24: 5510 | I24: =IF((SUM(IF($AN$26:$AN$34="c",IF(I$26:I$34="(",-J$26:J$34,J$26:J$34))))<0,"(","") ->  | J24: =ABS(SUM(IF($AN$26:$AN$34="c",IF(I$26:I$34="(",-J$26:J$34,J$26:J$34)))) -> 18837 | K24: =IF(I24="(",")","") ->  | L24: ( | M24: =SUMIF($AN$26:$AN$34,$AN24,M$26:M$34) -> 0 | N24: ) | O24: =IF((SUM(IF($AN$26:$AN$34="c",IF(O$26:O$34="(",-P$26:P$34,P$26:P$34))))<0,"(","") ->  | P24: =ABS(SUM(IF($AN$26:$AN$34="c",IF(O$26:O$34="(",-P$26:P$34,P$26:P$34)))) -> 169938 | Q24: =IF(O24="(",")","") ->  | R24: =IF((SUM(IF($AN$26:$AN$34="c",IF(R$26:R$34="(",-S$26:S$34,S$26:S$34))))<0,"(","") ->  | S24: =ABS(SUM(IF($AN$26:$AN$34="c",IF(R$26:R$34="(",-S$26:S$34,S$26:S$34)))) -> 0 | T24: =IF(R24="(",")","") ->  | U24: ( | V24: =SUMIF($AN$26:$AN$34,$AN24,V$26:V$34) -> 160938 | W24: ) | X24: ( | Y24: =SUMIF($AN$26:$AN$34,$AN24,Y$26:Y$34) -> 1328 | Z24: ) | AA24: =IF((SUM(IF($AN$26:$AN$34="c",IF(AA$26:AA$34="(",-AB$26:AB$34,AB$26:AB$34))))<0,"(","") ->  | AB24: =ABS(SUM(IF($AN$26:$AN$34="c",IF(AA$26:AA$34="(",-AB$26:AB$34,AB$26:AB$34)))) -> 0 | AC24: =IF(AA24="(",")","") ->  | AD24: =IF((SUM(IF($AN$26:$AN$34="c",IF(AD$26:AD$34="(",-AE$26:AE$34,AE$26:AE$34))))<0,"(","") ->  | AE24: =ABS(SUM(IF($AN$26:$AN$34="c",IF(AD$26:AD$34="(",-AE$26:AE$34,AE$26:AE$34)))) -> 0 | AF24: =IF(AD24="(",")","") ->  | AG24: =IF((SUM(IF($AN$26:$AN$34="c",IF(AG$26:AG$34="(",-AH$26:AH$34,AH$26:AH$34))))<0,"(","") ->  | AH24: =ABS(SUM(IF($AN$26:$AN$34="c",IF(AG$26:AG$34="(",-AH$26:AH$34,AH$26:AH$34)))) -> 26509 | AI24: =IF(AG24="(",")","") ->  | AJ24: ( | AK24: =SUMIF($AN$26:$AN$34,$AN24,AK$26:AK$34) -> 0 | AL24: ) | AN24: c
G25: ="за "&IF(List_01_reporting_period="","предыдущий год",List_01_reporting_period-1&" год") -> за 2016 год | H25: 5530 | I25: =IF((SUM(IF($AN$26:$AN$34="p",IF(I$26:I$34="(",-J$26:J$34,J$26:J$34))))<0,"(","") ->  | J25: =ABS(SUM(IF($AN$26:$AN$34="p",IF(I$26:I$34="(",-J$26:J$34,J$26:J$34)))) -> 14955 | L25: ( | M25: =SUMIF($AN$26:$AN$34,$AN25,M$26:M$34) -> 0 | N25: ) | O25: =IF((SUM(IF($AN$26:$AN$34="p",IF(O$26:O$34="(",-P$26:P$34,P$26:P$34))))<0,"(","") ->  | P25: =ABS(SUM(IF($AN$26:$AN$34="p",IF(O$26:O$34="(",-P$26:P$34,P$26:P$34)))) -> 185062 | R25: =IF((SUM(IF($AN$26:$AN$34="p",IF(R$26:R$34="(",-S$26:S$34,S$26:S$34))))<0,"(","") ->  | S25: =ABS(SUM(IF($AN$26:$AN$34="p",IF(R$26:R$34="(",-S$26:S$34,S$26:S$34)))) -> 0 | U25: ( | V25: =SUMIF($AN$26:$AN$34,$AN25,V$26:V$34) -> 181102 | W25: ) | X25: ( | Y25: =SUMIF($AN$26:$AN$34,$AN25,Y$26:Y$34) -> 78 | Z25: ) | AA25: =IF((SUM(IF($AN$26:$AN$34="p",IF(AA$26:AA$34="(",-AB$26:AB$34,AB$26:AB$34))))<0,"(","") ->  | AB25: =ABS(SUM(IF($AN$26:$AN$34="p",IF(AA$26:AA$34="(",-AB$26:AB$34,AB$26:AB$34)))) -> 0 | AD25: =IF((SUM(IF($AN$26:$AN$34="p",IF(AD$26:AD$34="(",-AE$26:AE$34,AE$26:AE$34))))<0,"(","") ->  | AE25: =ABS(SUM(IF($AN$26:$AN$34="p",IF(AD$26:AD$34="(",-AE$26:AE$34,AE$26:AE$34)))) -> 0 | AG25: =IF((SUM(IF($AN$26:$AN$34="p",IF(AG$26:AG$34="(",-AH$26:AH$34,AH$26:AH$34))))<0,"(","") ->  | AH25: =ABS(SUM(IF($AN$26:$AN$34="p",IF(AG$26:AG$34="(",-AH$26:AH$34,AH$26:AH$34)))) -> 18837 | AJ25: ( | AK25: =SUMIF($AN$26:$AN$34,$AN25,AK$26:AK$34) -> 0 | AL25: ) | AN25: p
E26: 5.1.2.1 | F26: Краткосрочная дебиторская задолженность - всего, в том числе: | G26: ="за "&IF(List_01_reporting_period="","отчётный год",List_01_reporting_period&" год") -> за 2017 год | H26: 5510 | L26: ( | N26: ) | U26: ( | W26: ) | X26: ( | Z26: ) | AJ26: ( | AL26: ) | AN26: c
G27: ="за "&IF(List_01_reporting_period="","предыдущий год",List_01_reporting_period-1&" год") -> за 2016 год | H27: 5530 | L27: ( | N27: ) | U27: ( | W27: ) | X27: ( | Z27: ) | AJ27: ( | AL27: ) | AN27: p
D28: ы | E28: 5.1.2.2 | F28: Покупатели и заказчики | G28: ="за "&IF(List_01_reporting_period="","отчётный год",List_01_reporting_period&" год") -> за 2017 год | J28: 17881 | L28: ( | N28: ) | P28: 159356 | U28: ( | V28: 150820 | W28: ) | X28: ( | Y28: 1328 | Z28: ) | AH28: 25089 | AJ28: ( | AL28: ) | AN28: c
G29: ="за "&IF(List_01_reporting_period="","предыдущий год",List_01_reporting_period-1&" год") -> за 2016 год | J29: 13962 | L29: ( | N29: ) | P29: 176355 | U29: ( | V29: 172358 | W29: ) | X29: ( | Y29: 78 | Z29: ) | AH29: 17881 | AJ29: ( | AL29: ) | AN29: p
D30: ы | E30: 5.1.2.3 | F30: Расчеты по авансам выданным | G30: ="за "&IF(List_01_reporting_period="","отчётный год",List_01_reporting_period&" год") -> за 2017 год | J30: 804 | L30: ( | N30: ) | P30: 6487 | U30: ( | V30: 6900 | W30: ) | X30: ( | Z30: ) | AH30: 391 | AJ30: ( | AL30: ) | AN30: c
G31: ="за "&IF(List_01_reporting_period="","предыдущий год",List_01_reporting_period-1&" год") -> за 2016 год | J31: 832 | L31: ( | N31: ) | P31: 6066 | U31: ( | V31: 6094 | W31: ) | X31: ( | Z31: ) | AH31: 804 | AJ31: ( | AL31: ) | AN31: p
D32: ы | E32: 5.1.2.4 | F32: Прочие дебиторы | G32: ="за "&IF(List_01_reporting_period="","отчётный год",List_01_reporting_period&" год") -> за 2017 год | J32: 152 | L32: ( | N32: ) | P32: 4095 | U32: ( | V32: 3218 | W32: ) | X32: ( | Z32: ) | AH32: 1029 | AJ32: ( | AL32: ) | AN32: c
G33: ="за "&IF(List_01_reporting_period="","предыдущий год",List_01_reporting_period-1&" год") -> за 2016 год | J33: 161 | L33: ( | N33: ) | P33: 2641 | U33: ( | V33: 2650 | W33: ) | X33: ( | Z33: ) | AH33: 152 | AJ33: ( | AL33: ) | AN33: p
F34: Добавить вид | AM34: add_FORMA5_STR12_5_1_2_range
E35: 5.1.3 | F35: Итого | G35: ="за "&IF(List_01_reporting_period="","отчётный год",List_01_reporting_period&" год") -> за 2017 год | H35: 5500 | I35: =IF((IF(I19="(",-J19,J19)+IF(I24="(",-J24,J24))<0,"(","") ->  | J35: =ABS(IF(I19="(",-J19,J19)+IF(I24="(",-J24,J24)) -> 18837 | K35: =IF(I35="(",")","") ->  | L35: ( | M35: =M19+M24 -> 0 | N35: ) | O35: =IF((IF(O19="(",-P19,P19)+IF(O24="(",-P24,P24))<0,"(","") ->  | P35: =ABS(IF(O19="(",-P19,P19)+IF(O24="(",-P24,P24)) -> 171234 | Q35: =IF(O35="(",")","") ->  | R35: =IF((IF(R19="(",-S19,S19)+IF(R24="(",-S24,S24))<0,"(","") ->  | S35: =ABS(IF(R19="(",-S19,S19)+IF(R24="(",-S24,S24)) -> 0 | T35: =IF(R35="(",")","") ->  | U35: ( | V35: =V19+V24 -> 160938 | W35: ) | X35: ( | Y35: =Y19+Y24 -> 1328 | Z35: ) | AA35: =IF((IF(AA19="(",-AB19,AB19)+IF(AA24="(",-AB24,AB24))<0,"(","") ->  | AB35: =ABS(IF(AA19="(",-AB19,AB19)+IF(AA24="(",-AB24,AB24)) -> 0 | AC35: =IF(AA35="(",")","") ->  | AE35: x | AG35: =IF((IF(AG19="(",-AH19,AH19)+IF(AG24="(",-AH24,AH24))<0,"(","") ->  | AH35: =ABS(IF(AG19="(",-AH19,AH19)+IF(AG24="(",-AH24,AH24)) -> 27805 | AI35: =IF(AG35="(",")","") ->  | AJ35: ( | AK35: =AK19+AK24 -> 1296 | AL35: ) | AN35: c
G36: ="за "&IF(List_01_reporting_period="","предыдущий год",List_01_reporting_period-1&" год") -> за 2016 год | H36: 5520 | I36: =IF((IF(I20="(",-J20,J20)+IF(I25="(",-J25,J25))<0,"(","") ->  | J36: =ABS(IF(I20="(",-J20,J20)+IF(I25="(",-J25,J25)) -> 14955 | K36: =IF(I36="(",")","") ->  | L36: ( | M36: =M20+M25 -> 0 | N36: ) | O36: =IF((IF(O20="(",-P20,P20)+IF(O25="(",-P25,P25))<0,"(","") ->  | P36: =ABS(IF(O20="(",-P20,P20)+IF(O25="(",-P25,P25)) -> 185062 | Q36: =IF(O36="(",")","") ->  | R36: =IF((IF(R20="(",-S20,S20)+IF(R25="(",-S25,S25))<0,"(","") ->  | S36: =ABS(IF(R20="(",-S20,S20)+IF(R25="(",-S25,S25)) -> 0 | T36: =IF(R36="(",")","") ->  | U36: ( | V36: =V20+V25 -> 181102 | W36: ) | X36: ( | Y36: =Y20+Y25 -> 78 | Z36: ) | AA36: =IF((IF(AA20="(",-AB20,AB20)+IF(AA25="(",-AB25,AB25))<0,"(","") ->  | AB36: =ABS(IF(AA20="(",-AB20,AB20)+IF(AA25="(",-AB25,AB25)) -> 0 | AC36: =IF(AA36="(",")","") ->  | AE36: x | AG36: =IF((IF(AG20="(",-AH20,AH20)+IF(AG25="(",-AH25,AH25))<0,"(","") ->  | AH36: =ABS(IF(AG20="(",-AH20,AH20)+IF(AG25="(",-AH25,AH25)) -> 18837 | AI36: =IF(AG36="(",")","") ->  | AJ36: ( | AK36: =AK20+AK25 -> 0 | AL36: ) | AN36: p
E38: * | F38: Данные раскрываются за минусом дебиторской задолженности, поступившей и погашенной (списанной) в одном отчетном периоде.
E41: 5.2. Просроченная дебиторская задолженность
E44: № п/п | F44: Наименование | H44: Код | I44: ="На 31 декабря "&IF(List_01_reporting_period = "","отчётную дату отчётного года",List_01_reporting_period& " г.") -> На 31 декабря 2017 г. | O44: ="На 31 декабря "&IF(List_01_reporting_period = "","предыдущего года",List_01_reporting_period-1& " г.") -> На 31 декабря 2016 г. | U44: ="На 31 декабря "&IF(List_01_reporting_period = "","года, предшествующего предыдущему",List_01_reporting_period-2& " г.") -> На 31 декабря 2015 г.
I45: учтенная по условиям договора | L45: балансовая стоимость | O45: учтенная по условиям договора | R45: балансовая стоимость | U45: учтенная по условиям договора | X45: балансовая стоимость
E46: 1 | F46: 2 | H46: 3 | J46: 4 | M46: 5 | O46: 6 | S46: 7 | V46: 8 | Y46: 9
E47: 5.2 | F47: Всего, в том числе: | H47: 5540 | I47: =IF((SUMIF(I48:I49,"",J48:J49)-SUMIF(I48:I49,"(",J48:J49))<0,"(","") ->  | J47: =ABS(SUMIF(I48:I49,"",J48:J49)-SUMIF(I48:I49,"(",J48:J49)) -> 1296 | K47: =IF(I47="(",")","") ->  | L47: =IF((SUMIF(L48:L49,"",M48:M49)-SUMIF(L48:L49,"(",M48:M49))<0,"(","") ->  | M47: =ABS(SUMIF(L48:L49,"",M48:M49)-SUMIF(L48:L49,"(",M48:M49)) -> 1296 | N47: =IF(L47="(",")","") ->  | O47: =IF((SUMIF(O48:O49,"",P48:P49)-SUMIF(O48:O49,"(",P48:P49))<0,"(","") ->  | P47: =ABS(SUMIF(O48:O49,"",P48:P49)-SUMIF(O48:O49,"(",P48:P49)) -> 0 | Q47: =IF(O47="(",")","") ->  | R47: =IF((SUMIF(R48:R49,"",S48:S49)-SUMIF(R48:R49,"(",S48:S49))<0,"(","") ->  | S47: =ABS(SUMIF(R48:R49,"",S48:S49)-SUMIF(R48:R49,"(",S48:S49)) -> 0 | T47: =IF(R47="(",")","") ->  | U47: =IF((SUMIF(U48:U49,"",V48:V49)-SUMIF(U48:U49,"(",V48:V49))<0,"(","") ->  | V47: =ABS(SUMIF(U48:U49,"",V48:V49)-SUMIF(U48:U49,"(",V48:V49)) -> 0 | W47: =IF(U47="(",")","") ->  | X47: =IF((SUMIF(X48:X49,"",Y48:Y49)-SUMIF(X48:X49,"(",Y48:Y49))<0,"(","") ->  | Y47: =ABS(SUMIF(X48:X49,"",Y48:Y49)-SUMIF(X48:X49,"(",Y48:Y49)) -> 0 | Z47: =IF(X47="(",")","") -> 
E48: 5.2.1 | F48: Всего, в том числе: | H48: 5540 | J48: 1296 | K48: =IF(I48="(",")","") ->  | M48: 1296 | N48: =IF(L48="(",")","") ->  | Q48: =IF(O48="(",")","") ->  | T48: =IF(R48="(",")","") ->  | W48: =IF(U48="(",")","") ->  | Z48: =IF(X48="(",")","") -> 
F49: Добавить вид | AM49: add_FORMA5_STR12_5_2_range
E52: 5.3. Наличие и движение кредиторской задолженности
E55: № п/п | F55: Наименование | G55: Период | H55: Код | I55: Остаток на начало года | L55: Изменения за период | AA55: Остаток на конец периода
L56: поступление | R56: выбыло | X56: перевод из долго- в краткосрочную и из кратко- в долгосрочную задолженности
L57: в результате хозяйственных операций (сумма долга по сделке, операции) * | O57: причитающиеся проценты, штрафы и иные начисления * | R57: погашение | U57: списание на финансовый результат *
E60: 1 | F60: 2 | G60: 3 | H60: 4 | J60: 5 | M60: 6 | P60: 7 | R60: 8 | V60: 9 | Y60: 10 | AB60: 11
E61: 5.3.1 | F61: Долгосрочная кредиторская задолженность - всего, в том числе: | G61: ="за "&IF(List_01_reporting_period="","отчётный год",List_01_reporting_period&" год") -> за 2017 год | H61: 5551 | I61: =IF((SUM(IF($AE$63:$AE$65="c",IF(I$63:I$65="(",-J$63:J$65,J$63:J$65))))<0,"(","") ->  | J61: =ABS(SUM(IF($AE$63:$AE$65="c",IF(I$63:I$65="(",-J$63:J$65,J$63:J$65)))) -> 0 | K61: =IF(I61="(",")","") ->  | L61: =IF((SUM(IF($AE$63:$AE$65="c",IF(L$63:L$65="(",-M$63:M$65,M$63:M$65))))<0,"(","") ->  | M61: =ABS(SUM(IF($AE$63:$AE$65="c",IF(L$63:L$65="(",-M$63:M$65,M$63:M$65)))) -> 0 | N61: =IF(L61="(",")","") ->  | O61: =IF((SUM(IF($AE$63:$AE$65="c",IF(O$63:O$65="(",-P$63:P$65,P$63:P$65))))<0,"(","") ->  | P61: =ABS(SUM(IF($AE$63:$AE$65="c",IF(O$63:O$65="(",-P$63:P$65,P$63:P$65)))) -> 0 | Q61: =IF(O61="(",")","") ->  | R61: ( | S61: =SUMIF($AE$63:$AE$65,$AE61,S$63:S$65) -> 0 | T61: ) | U61: ( | V61: =SUMIF($AE$63:$AE$65,$AE61,V$63:V$65) -> 0 | W61: ) | X61: ( | Y61: =SUMIF($AE$63:$AE$65,$AE61,Y$63:Y$65) -> 0 | Z61: ) | AA61: =IF((SUM(IF($AE$63:$AE$65="c",IF(AA$63:AA$65="(",-AB$63:AB$65,AB$63:AB$65))))<0,"(","") ->  | AB61: =ABS(SUM(IF($AE$63:$AE$65="c",IF(AA$63:AA$65="(",-AB$63:AB$65,AB$63:AB$65)))) -> 0 | AC61: =IF(AA61="(",")","") ->  | AE61: c
G62: ="за "&IF(List_01_reporting_period="","предыдущий год",List_01_reporting_period-1&" год") -> за 2016 год | H62: 5571 | I62: =IF((SUM(IF($AE$63:$AE$65="p",IF(I$63:I$65="(",-J$63:J$65,J$63:J$65))))<0,"(","") ->  | J62: =ABS(SUM(IF($AE$63:$AE$65="p",IF(I$63:I$65="(",-J$63:J$65,J$63:J$65)))) -> 0 | K62: =IF(I62="(",")","") ->  | L62: =IF((SUM(IF($AE$63:$AE$65="p",IF(L$63:L$65="(",-M$63:M$65,M$63:M$65))))<0,"(","") ->  | M62: =ABS(SUM(IF($AE$63:$AE$65="p",IF(L$63:L$65="(",-M$63:M$65,M$63:M$65)))) -> 0 | N62: =IF(L62="(",")","") ->  | O62: =IF((SUM(IF($AE$63:$AE$65="p",IF(O$63:O$65="(",-P$63:P$65,P$63:P$65))))<0,"(","") ->  | P62: =ABS(SUM(IF($AE$63:$AE$65="p",IF(O$63:O$65="(",-P$63:P$65,P$63:P$65)))) -> 0 | Q62: =IF(O62="(",")","") ->  | R62: ( | S62: =SUMIF($AE$63:$AE$65,$AE62,S$63:S$65) -> 0 | T62: ) | U62: ( | V62: =SUMIF($AE$63:$AE$65,$AE62,V$63:V$65) -> 0 | W62: ) | X62: ( | Y62: =SUMIF($AE$63:$AE$65,$AE62,Y$63:Y$65) -> 0 | Z62: ) | AA62: =IF((SUM(IF($AE$63:$AE$65="p",IF(AA$63:AA$65="(",-AB$63:AB$65,AB$63:AB$65))))<0,"(","") ->  | AB62: =ABS(SUM(IF($AE$63:$AE$65="p",IF(AA$63:AA$65="(",-AB$63:AB$65,AB$63:AB$65)))) -> 0 | AC62: =IF(AA62="(",")","") ->  | AE62: p
E63: 5.3.1.1 | F63: Долгосрочная кредиторская задолженность - всего, в том числе: | G63: ="за "&IF(List_01_reporting_period="","отчётный год",List_01_reporting_period&" год") -> за 2017 год | H63: 5551 | J63: 0 | K63: =IF(I63="(",")","") ->  | M63: 0 | N63: =IF(L63="(",")","") ->  | Q63: =IF(O63="(",")","") ->  | R63: ( | S63: 0 | T63: ) | U63: ( | V63: 0 | W63: ) | X63: ( | Z63: ) | AB63: 0 | AC63: =IF(AA63="(",")","") ->  | AE63: c
G64: ="за "&IF(List_01_reporting_period="","предыдущий год",List_01_reporting_period-1&" год") -> за 2016 год | H64: 5571 | J64: 0 | K64: =IF(I64="(",")","") ->  | M64: 0 | N64: =IF(L64="(",")","") ->  | Q64: =IF(O64="(",")","") ->  | R64: ( | S64: 0 | T64: ) | U64: ( | W64: ) | X64: ( | Z64: ) | AB64: 0 | AC64: =IF(AA64="(",")","") ->  | AE64: p
F65: Добавить вид | AM65: add_FORMA5_STR12_5_3_1_range
E66: 5.3.2 | F66: Краткосрочная кредиторская задолженность - всего, в том числе: | G66: ="за "&IF(List_01_reporting_period="","отчётный год",List_01_reporting_period&" год") -> за 2017 год | H66: 5560 | I66: =IF((SUM(IF($AE$68:$AE$76="c",IF(I$68:I$76="(",-J$68:J$76,J$68:J$76))))<0,"(","") ->  | J66: =ABS(SUM(IF($AE$68:$AE$76="c",IF(I$68:I$76="(",-J$68:J$76,J$68:J$76)))) -> 11382 | K66: =IF(I66="(",")","") ->  | L66: =IF((SUM(IF($AE$68:$AE$76="c",IF(L$68:L$76="(",-M$68:M$76,M$68:M$76))))<0,"(","") ->  | M66: =ABS(SUM(IF($AE$68:$AE$76="c",IF(L$68:L$76="(",-M$68:M$76,M$68:M$76)))) -> 180330 | N66: =IF(L66="(",")","") ->  | O66: =IF((SUM(IF($AE$68:$AE$76="c",IF(O$68:O$76="(",-P$68:P$76,P$68:P$76))))<0,"(","") ->  | P66: =ABS(SUM(IF($AE$68:$AE$76="c",IF(O$68:O$76="(",-P$68:P$76,P$68:P$76)))) -> 0 | Q66: =IF(O66="(",")","") ->  | R66: ( | S66: =SUMIF($AE$68:$AE$76,$AE66,S$68:S$76) -> 176365 | T66: ) | U66: ( | V66: =SUMIF($AE$68:$AE$76,$AE66,V$68:V$76) -> 11 | W66: ) | X66: =IF((SUM(IF($AE$68:$AE$76="c",IF(X$68:X$76="(",-Y$68:Y$76,Y$68:Y$76))))<0,"(","") ->  | Y66: =ABS(SUM(IF($AE$68:$AE$76="c",IF(X$68:X$76="(",-Y$68:Y$76,Y$68:Y$76)))) -> 0 | Z66: =IF(X66="(",")","") ->  | AA66: =IF((SUM(IF($AE$68:$AE$76="c",IF(AA$68:AA$76="(",-AB$68:AB$76,AB$68:AB$76))))<0,"(","") ->  | AB66: =ABS(SUM(IF($AE$68:$AE$76="c",IF(AA$68:AA$76="(",-AB$68:AB$76,AB$68:AB$76)))) -> 15336 | AC66: =IF(AA66="(",")","") ->  | AE66: c
G67: ="за "&IF(List_01_reporting_period="","предыдущий год",List_01_reporting_period-1&" год") -> за 2016 год | H67: 5580 | I67: =IF((SUM(IF($AE$68:$AE$76="p",IF(I$68:I$76="(",-J$68:J$76,J$68:J$76))))<0,"(","") ->  | J67: =ABS(SUM(IF($AE$68:$AE$76="p",IF(I$68:I$76="(",-J$68:J$76,J$68:J$76)))) -> 11036 | L67: =IF((SUM(IF($AE$68:$AE$76="p",IF(L$68:L$76="(",-M$68:M$76,M$68:M$76))))<0,"(","") ->  | M67: =ABS(SUM(IF($AE$68:$AE$76="p",IF(L$68:L$76="(",-M$68:M$76,M$68:M$76)))) -> 216494 | O67: =IF((SUM(IF($AE$68:$AE$76="p",IF(O$68:O$76="(",-P$68:P$76,P$68:P$76))))<0,"(","") ->  | P67: =ABS(SUM(IF($AE$68:$AE$76="p",IF(O$68:O$76="(",-P$68:P$76,P$68:P$76)))) -> 0 | R67: ( | S67: =SUMIF($AE$68:$AE$76,$AE67,S$68:S$76) -> 216148 | T67: ) | U67: ( | V67: =SUMIF($AE$68:$AE$76,$AE67,V$68:V$76) -> 0 | W67: ) | X67: =IF((SUM(IF($AE$68:$AE$76="p",IF(X$68:X$76="(",-Y$68:Y$76,Y$68:Y$76))))<0,"(","") ->  | Y67: =ABS(SUM(IF($AE$68:$AE$76="p",IF(X$68:X$76="(",-Y$68:Y$76,Y$68:Y$76)))) -> 0 | AA67: =IF((SUM(IF($AE$68:$AE$76="p",IF(AA$68:AA$76="(",-AB$68:AB$76,AB$68:AB$76))))<0,"(","") ->  | AB67: =ABS(SUM(IF($AE$68:$AE$76="p",IF(AA$68:AA$76="(",-AB$68:AB$76,AB$68:AB$76)))) -> 11382 | AE67: p
E68: 5.3.2.1 | F68: Краткосрочная кредиторская задолженность - всего, в том числе: | G68: ="за "&IF(List_01_reporting_period="","отчётный год",List_01_reporting_period&" год") -> за 2017 год | H68: 5560 | R68: ( | T68: ) | U68: ( | W68: ) | AE68: c
G69: ="за "&IF(List_01_reporting_period="","предыдущий год",List_01_reporting_period-1&" год") -> за 2016 год | H69: 5580 | R69: ( | T69: ) | U69: ( | W69: ) | AE69: p
D70: ы | E70: 5.3.2.2 | F70: Поставщики и подрядчики | G70: ="за "&IF(List_01_reporting_period="","отчётный год",List_01_reporting_period&" год") -> за 2017 год | J70: 1537 | M70: 37560 | R70: ( | S70: 35855 | T70: ) | U70: ( | W70: ) | AB70: 3242 | AE70: c
G71: ="за "&IF(List_01_reporting_period="","предыдущий год",List_01_reporting_period-1&" год") -> за 2016 год | J71: 2042 | M71: 85345 | R71: ( | S71: 85850 | T71: ) | U71: ( | W71: ) | AB71: 1537 | AE71: p
D72: ы | E72: 5.3.2.3 | F72: Авансы полченные | G72: ="за "&IF(List_01_reporting_period="","отчётный год",List_01_reporting_period&" год") -> за 2017 год | J72: 81 | K72: =IF(I72="(",")","") ->  | M72: 77 | N72: =IF(L72="(",")","") ->  | Q72: =IF(O72="(",")","") ->  | R72: ( | S72: 78 | T72: ) | U72: ( | V72: 11 | W72: ) | Z72: =IF(X72="(",")","") ->  | AB72: 69 | AC72: =IF(AA72="(",")","") ->  | AE72: c
G73: ="за "&IF(List_01_reporting_period="","предыдущий год",List_01_reporting_period-1&" год") -> за 2016 год | J73: 157 | K73: =IF(I73="(",")","") ->  | M73: 119 | N73: =IF(L73="(",")","") ->  | Q73: =IF(O73="(",")","") ->  | R73: ( | S73: 195 | T73: ) | U73: ( | W73: ) | Z73: =IF(X73="(",")","") ->  | AB73: 81 | AC73: =IF(AA73="(",")","") ->  | AE73: p
D74: ы | E74: 5.3.2.4 | F74: Прочие кредиторы | G74: ="за "&IF(List_01_reporting_period="","отчётный год",List_01_reporting_period&" год") -> за 2017 год | J74: 9764 | K74: =IF(I74="(",")","") ->  | M74: 142693 | N74: =IF(L74="(",")","") ->  | Q74: =IF(O74="(",")","") ->  | R74: ( | S74: 140432 | T74: ) | U74: ( | W74: ) | Z74: =IF(X74="(",")","") ->  | AB74: 12025 | AC74: =IF(AA74="(",")","") ->  | AE74: c
G75: ="за "&IF(List_01_reporting_period="","предыдущий год",List_01_reporting_period-1&" год") -> за 2016 год | J75: 8837 | K75: =IF(I75="(",")","") ->  | M75: 131030 | N75: =IF(L75="(",")","") ->  | Q75: =IF(O75="(",")","") ->  | R75: ( | S75: 130103 | T75: ) | U75: ( | W75: ) | Z75: =IF(X75="(",")","") ->  | AB75: 9764 | AC75: =IF(AA75="(",")","") ->  | AE75: p
F76: Добавить вид | AM76: add_FORMA5_STR12_5_3_2_range
E77: 5.3.3 | F77: Итого | G77: ="за "&IF(List_01_reporting_period="","отчётный год",List_01_reporting_period&" год") -> за 2017 год | H77: 5550 | I77: =IF((IF(I61="(",-J61,J61)+IF(I66="(",-J66,J66))<0,"(","") ->  | J77: =ABS(IF(I61="(",-J61,J61)+IF(I66="(",-J66,J66)) -> 11382 | K77: =IF(I77="(",")","") ->  | L77: =IF((IF(L61="(",-M61,M61)+IF(L66="(",-M66,M66))<0,"(","") ->  | M77: =ABS(IF(L61="(",-M61,M61)+IF(L66="(",-M66,M66)) -> 180330 | N77: =IF(L77="(",")","") ->  | O77: =IF((IF(O61="(",-P61,P61)+IF(O66="(",-P66,P66))<0,"(","") ->  | P77: =ABS(IF(O61="(",-P61,P61)+IF(O66="(",-P66,P66)) -> 0 | Q77: =IF(O77="(",")","") ->  | R77: ( | S77: =S61+S66 -> 176365 | T77: ) | U77: ( | V77: =V61+V66 -> 11 | W77: ) | Y77: x | AA77: =IF((IF(AA61="(",-AB61,AB61)+IF(AA66="(",-AB66,AB66))<0,"(","") ->  | AB77: =ABS(IF(AA61="(",-AB61,AB61)+IF(AA66="(",-AB66,AB66)) -> 15336 | AC77: =IF(AA77="(",")","") ->  | AE77: c
G78: ="за "&IF(List_01_reporting_period="","предыдущий год",List_01_reporting_period-1&" год") -> за 2016 год | H78: 5570 | I78: =IF((IF(I62="(",-J62,J62)+IF(I67="(",-J67,J67))<0,"(","") ->  | J78: =ABS(IF(I62="(",-J62,J62)+IF(I67="(",-J67,J67)) -> 11036 | K78: =IF(I78="(",")","") ->  | L78: =IF((IF(L62="(",-M62,M62)+IF(L67="(",-M67,M67))<0,"(","") ->  | M78: =ABS(IF(L62="(",-M62,M62)+IF(L67="(",-M67,M67)) -> 216494 | N78: =IF(L78="(",")","") ->  | O78: =IF((IF(O62="(",-P62,P62)+IF(O67="(",-P67,P67))<0,"(","") ->  | P78: =ABS(IF(O62="(",-P62,P62)+IF(O67="(",-P67,P67)) -> 0 | Q78: =IF(O78="(",")","") ->  | R78: ( | S78: =S62+S67 -> 216148 | T78: ) | U78: ( | V78: =V62+V67 -> 0 | W78: ) | Y78: x | AA78: =IF((IF(AA62="(",-AB62,AB62)+IF(AA67="(",-AB67,AB67))<0,"(","") ->  | AB78: =ABS(IF(AA62="(",-AB62,AB62)+IF(AA67="(",-AB67,AB67)) -> 11382 | AC78: =IF(AA78="(",")","") ->  | AE78: p
E80: * | F80: Данные раскрываются за минусом кредиторской задолженности, поступившей и погашенной (списанной) в одном отчетном периоде.
E83: 5.4. Просроченная кредиторская задолженность
E86: № п/п | F86: Наименование | H86: Код | I86: ="На 31 декабря "&IF(List_01_reporting_period = "","отчётную дату отчётного года",List_01_reporting_period& " г.") -> На 31 декабря 2017 г. | L86: ="На 31 декабря "&IF(List_01_reporting_period = "","предыдущего года",List_01_reporting_period-1& " г.") -> На 31 декабря 2016 г. | O86: ="На 31 декабря "&IF(List_01_reporting_period = "","года, предшествующего предыдущему",List_01_reporting_period-2& " г.") -> На 31 декабря 2015 г.
E87: 1 | F87: 2 | H87: 3 | J87: 4 | L87: 5 | P87: 6
E88: 5.4 | F88: Всего, в том числе: | H88: 5590 | I88: =IF((SUMIF(I89:I90,"",J89:J90)-SUMIF(I89:I90,"(",J89:J90))<0,"(","") ->  | J88: =ABS(SUMIF(I89:I90,"",J89:J90)-SUMIF(I89:I90,"(",J89:J90)) -> 0 | K88: =IF(I88="(",")","") ->  | L88: =IF((SUMIF(L89:L90,"",M89:M90)-SUMIF(L89:L90,"(",M89:M90))<0,"(","") ->  | M88: =ABS(SUMIF(L89:L90,"",M89:M90)-SUMIF(L89:L90,"(",M89:M90)) -> 0 | N88: =IF(L88="(",")","") ->  | O88: =IF((SUMIF(O89:O90,"",P89:P90)-SUMIF(O89:O90,"(",P89:P90))<0,"(","") ->  | P88: =ABS(SUMIF(O89:O90,"",P89:P90)-SUMIF(O89:O90,"(",P89:P90)) -> 0 | Q88: =IF(O88="(",")","") -> 
E89: 5.4.1 | F89: Всего, в том числе: | H89: 5590 | K89: =IF(I89="(",")","") ->  | N89: =IF(L89="(",")","") ->  | Q89: =IF(O89="(",")","") -> 
F90: Добавить вид | AM90: add_FORMA5_STR12_5_4_range
E93: 6. Затраты на производство
E96: № п/п | F96: Наименование | H96: Код | I96: ="За "&IF(List_01_reporting_period = "","отчётный год",List_01_reporting_period& " г.") -> За 2017 г. | L96: ="За "&IF(List_01_reporting_period = "","предыдущий год",List_01_reporting_period-1& " г.") -> За 2016 г.
E97: 1 | F97: 2 | H97: 3 | J97: 4 | L97: 5
E98: 6.1 | F98: Материальные затраты | H98: 5610 | J98: 38097 | K98: =IF(I98="(",")","") ->  | M98: 38764 | N98: =IF(L98="(",")","") -> 
E99: 6.2 | F99: Расходы на оплату труда | H99: 5620 | J99: 72088 | M99: 67795
E100: 6.3 | F100: Отчисления на социальные нужды | H100: 5630 | J100: 22545 | M100: 20817
E101: 6.4 | F101: Амортизация | H101: 5640 | J101: 7964 | M101: 6489
E102: 6.5 | F102: Прочие затраты | H102: 5650 | J102: 12504 | M102: 15488
E103: 6.6 | F103: Итого по элементам затрат | H103: 5660 | I103: =IF((SUMIF(I98:I102,"",J98:J102)-SUMIF(I98:I102,"(",J98:J102))<0,"(","") ->  | J103: =ABS(SUMIF(I98:I102,"",J98:J102)-SUMIF(I98:I102,"(",J98:J102)) -> 153198 | L103: =IF((SUMIF(L98:L102,"",M98:M102)-SUMIF(L98:L102,"(",M98:M102))<0,"(","") ->  | M103: =ABS(SUMIF(L98:L102,"",M98:M102)-SUMIF(L98:L102,"(",M98:M102)) -> 149353
E104: 6.7 | F104: Изменение остатков (прирост, уменьшение):
E105: 6.7.1 | F105: незавершенного производства | H105: 5670/ 5680 | K105: =IF(I105="(",")","") ->  | N105: =IF(L105="(",")","") -> 
E106: 6.7.2 | F106: готовой продукции | H106: 5670/ 5680 | K106: =IF(I106="(",")","") ->  | N106: =IF(L106="(",")","") -> 
F107: Добавить вид | AM107: add_FORMA5_STR12_6_range
E108: 6.8 | F108: Итого расходы по обычным видам деятельности | H108: 5600 | I108: =IF((IF(I103="(",-J103,J103)+SUMIF(I105:I107,"",J105:J107)-SUMIF(I105:I107,"(",J105:J107))<0,"(","") ->  | J108: =ABS(IF(I103="(",-J103,J103)+SUMIF(I105:I107,"",J105:J107)-SUMIF(I105:I107,"(",J105:J107)) -> 153198 | K108: =IF(I108="(",")","") ->  | L108: =IF((IF(L103="(",-M103,M103)+SUMIF(L105:L107,"",M105:M107)-SUMIF(L105:L107,"(",M105:M107))<0,"(","") ->  | M108: =ABS(IF(L103="(",-M103,M103)+SUMIF(L105:L107,"",M105:M107)-SUMIF(L105:L107,"(",M105:M107)) -> 149353 | N108: =IF(L108="(",")","") -> 

Sheet Форма 5. Обязательства
F5: =Getcode() -> ELPASS.FORMS.BH | W5: =version -> Версия 1.0 от 01.10.2017
W7: Форма 0710005 с. 13
F8: 7. Оценочные обязательства
F11: № п/п | G11: Наименование | H11: Код | I11: ="Остаток на начало"&IF(List_01_reporting_period="",""," "&List_01_reporting_period)&" года" -> Остаток на начало 2017 года | L11: Признано | O11: Погашено | R11: Списано как избыточная сумма | U11: ="Остаток на конец"&IF(List_01_reporting_period=""," периода"," "&List_01_reporting_period&" года") -> Остаток на конец 2017 года
F12: 1 | G12: 2 | H12: 3 | J12: 4 | M12: 5 | O12: 6 | S12: 7 | V12: 8
F13: 7 | G13: Оценочные обязательства - всего, в том числе: | H13: 5700 | I13: =IF((SUMIF(I14:I15,"",J14:J15)-SUMIF(I14:I15,"(",J14:J15))<0,"(","") ->  | J13: =ABS(SUMIF(I14:I15,"",J14:J15)-SUMIF(I14:I15,"(",J14:J15)) -> 0 | K13: =IF(I13="(",")","") ->  | L13: =IF((SUMIF(L14:L15,"",M14:M15)-SUMIF(L14:L15,"(",M14:M15))<0,"(","") ->  | M13: =ABS(SUMIF(L14:L15,"",M14:M15)-SUMIF(L14:L15,"(",M14:M15)) -> 0 | N13: =IF(L13="(",")","") ->  | O13: ( | P13: =SUM(P14:P15) -> 0 | Q13: ) | R13: ( | S13: =SUM(S14:S15) -> 0 | T13: ) | U13: =IF((SUMIF(U14:U15,"",V14:V15)-SUMIF(U14:U15,"(",V14:V15))<0,"(","") ->  | V13: =ABS(SUMIF(U14:U15,"",V14:V15)-SUMIF(U14:U15,"(",V14:V15)) -> 0 | W13: =IF(U13="(",")","") ->  | Y13: c
F14: 7.1 | G14: Оценочные обязательства - всего, в том числе: | H14: 5700 | K14: =IF(I14="(",")","") ->  | N14: =IF(L14="(",")","") ->  | O14: ( | Q14: ) | R14: ( | T14: ) | W14: =IF(U14="(",")","") ->  | Y14: c
G15: Добавить вид обязательства | X15: add_FORMA5_STR13_7_range
F18: 8. Обеспечения обязательств
F21: № п/п | G21: Наименование | H21: Код | I21: ="На 31 декабря "&IF(List_01_reporting_period = "","отчётную дату отчётного года",List_01_reporting_period& " г.") -> На 31 декабря 2017 г. | L21: ="На 31 декабря "&IF(List_01_reporting_period = "","предыдущего года",List_01_reporting_period-1& " г.") -> На 31 декабря 2016 г. | O21: ="На 31 декабря "&IF(List_01_reporting_period = "","года, предшествующего предыдущему",List_01_reporting_period-2& " г.") -> На 31 декабря 2015 г.
F22: 1 | G22: 2 | H22: 3 | J22: 4 | L22: 5 | P22: 6
F23: 8.1 | G23: Полученные - всего, в том числе: | H23: 5800 | I23: =IF((SUMIF(I24:I25,"",J24:J25)-SUMIF(I24:I25,"(",J24:J25))<0,"(","") ->  | J23: =ABS(SUMIF(I24:I25,"",J24:J25)-SUMIF(I24:I25,"(",J24:J25)) -> 0 | K23: =IF(I23="(",")","") ->  | L23: =IF((SUMIF(L24:L25,"",M24:M25)-SUMIF(L24:L25,"(",M24:M25))<0,"(","") ->  | M23: =ABS(SUMIF(L24:L25,"",M24:M25)-SUMIF(L24:L25,"(",M24:M25)) -> 0 | N23: =IF(L23="(",")","") ->  | O23: =IF((SUMIF(O24:O25,"",P24:P25)-SUMIF(O24:O25,"(",P24:P25))<0,"(","") ->  | P23: =ABS(SUMIF(O24:O25,"",P24:P25)-SUMIF(O24:O25,"(",P24:P25)) -> 0 | Q23: =IF(O23="(",")","") -> 
F24: 8.1.1 | G24: Полученные - всего, в том числе: | H24: 5800 | K24: =IF(I24="(",")","") ->  | N24: =IF(L24="(",")","") ->  | Q24: =IF(O24="(",")","") -> 
G25: Добавить вид | X25: add_FORMA5_STR13_8_range
F26: 8.2 | G26: Выданные - всего, в том числе: | H26: 5810 | I26: =IF((SUMIF(I27:I28,"",J27:J28)-SUMIF(I27:I28,"(",J27:J28))<0,"(","") ->  | J26: =ABS(SUMIF(I27:I28,"",J27:J28)-SUMIF(I27:I28,"(",J27:J28)) -> 0 | K26: =IF(I26="(",")","") ->  | L26: =IF((SUMIF(L27:L28,"",M27:M28)-SUMIF(L27:L28,"(",M27:M28))<0,"(","") ->  | M26: =ABS(SUMIF(L27:L28,"",M27:M28)-SUMIF(L27:L28,"(",M27:M28)) -> 0 | N26: =IF(L26="(",")","") ->  | O26: =IF((SUMIF(O27:O28,"",P27:P28)-SUMIF(O27:O28,"(",P27:P28))<0,"(","") ->  | P26: =ABS(SUMIF(O27:O28,"",P27:P28)-SUMIF(O27:O28,"(",P27:P28)) -> 0 | Q26: =IF(O26="(",")","") -> 
F27: 8.2.1 | G27: Выданные - всего, в том числе: | H27: 5810 | K27: =IF(I27="(",")","") ->  | N27: =IF(L27="(",")","") ->  | Q27: =IF(O27="(",")","") -> 
G28: Добавить вид | X28: add_FORMA5_STR13_8_range

Sheet Форма 5. Гос.помощь
E5: =Getcode() -> ELPASS.FORMS.BH | T5: =version -> Версия 1.0 от 01.10.2017
T7: Форма 0710005 с. 14
E8: 9. Государственная помощь
E11: № п/п | F11: Наименование | H11: Код | I11: ="За "&IF(List_01_reporting_period = "","отчётный год",List_01_reporting_period& " г.") -> За 2017 г. | L11: ="За "&IF(List_01_reporting_period = "","предыдущий год",List_01_reporting_period-1& " г.") -> За 2016 г.
E12: 1 | F12: 2 | H12: 3 | J12: 4 | M12: 5
E13: 9.1 | F13: Получено бюджетных средств - всего, в том числе: | H13: 5900 | I13: =IF((SUMIF(I14:I15,"",J14:J15)-SUMIF(I14:I15,"(",J14:J15))<0,"(","") ->  | J13: =ABS(SUMIF(I14:I15,"",J14:J15)-SUMIF(I14:I15,"(",J14:J15)) -> 20344 | K13: =IF(I13="(",")","") ->  | L13: =IF((SUMIF(L14:L15,"",M14:M15)-SUMIF(L14:L15,"(",M14:M15))<0,"(","") ->  | M13: =ABS(SUMIF(L14:L15,"",M14:M15)-SUMIF(L14:L15,"(",M14:M15)) -> 33420 | N13: =IF(L13="(",")","") -> 
E14: 9.1.1 | F14: на текущие расходы | H14: 5901 | J14: 20344 | K14: =IF(I14="(",")","") ->  | M14: 25316 | N14: =IF(L14="(",")","") -> 
E15: 9.1.2 | F15: на вложения во внеоборотные активы | H15: 5905 | K15: =IF(I15="(",")","") ->  | M15: 8104 | N15: =IF(L15="(",")","") -> 
E17: № п/п | F17: Наименование | G17: Период | H17: Код | I17: На начало года | L17: Получено за год | O17: Возвращено за год | R17: На конец года
E18: 1 | F18: 2 | G18: 3 | H18: 4 | J18: 5 | M18: 6 | O18: 7 | S18: 8
E19: 9.2 | F19: Бюджетные кредиты - всего, в том числе: | G19: ="за "&IF(List_01_reporting_period="","отчётный год",List_01_reporting_period&" год") -> за 2017 год | H19: 5910 | I19: =IF((SUM(IF($V$21:$V$23="c",IF(I$21:I$23="(",-J$21:J$23,J$21:J$23))))<0,"(","") ->  | J19: =ABS(SUM(IF($V$21:$V$23="c",IF(I$21:I$23="(",-J$21:J$23,J$21:J$23)))) -> 0 | K19: =IF(I19="(",")","") ->  | L19: =IF((SUM(IF($V$21:$V$23="c",IF(L$21:L$23="(",-M$21:M$23,M$21:M$23))))<0,"(","") ->  | M19: =ABS(SUM(IF($V$21:$V$23="c",IF(L$21:L$23="(",-M$21:M$23,M$21:M$23)))) -> 0 | N19: =IF(L19="(",")","") ->  | O19: ( | P19: =SUMIF($V$21:$V$23,$V19,P$21:P$23) -> 0 | Q19: ) | R19: =IF((SUM(IF($V$21:$V$23="c",IF(R$21:R$23="(",-S$21:S$23,S$21:S$23))))<0,"(","") ->  | S19: =ABS(SUM(IF($V$21:$V$23="c",IF(R$21:R$23="(",-S$21:S$23,S$21:S$23)))) -> 0 | T19: =IF(R19="(",")","") ->  | V19: c
G20: ="за "&IF(List_01_reporting_period="","предыдущий год",List_01_reporting_period-1&" год") -> за 2016 год | H20: 5920 | I20: =IF((SUM(IF($V$21:$V$23="p",IF(I$21:I$23="(",-J$21:J$23,J$21:J$23))))<0,"(","") ->  | J20: =ABS(SUM(IF($V$21:$V$23="p",IF(I$21:I$23="(",-J$21:J$23,J$21:J$23)))) -> 0 | K20: =IF(I20="(",")","") ->  | L20: =IF((SUM(IF($V$21:$V$23="p",IF(L$21:L$23="(",-M$21:M$23,M$21:M$23))))<0,"(","") ->  | M20: =ABS(SUM(IF($V$21:$V$23="p",IF(L$21:L$23="(",-M$21:M$23,M$21:M$23)))) -> 0 | N20: =IF(L20="(",")","") ->  | O20: ( | P20: =SUMIF($V$21:$V$23,$V20,P$21:P$23) -> 0 | Q20: ) | R20: =IF((SUM(IF($V$21:$V$23="p",IF(R$21:R$23="(",-S$21:S$23,S$21:S$23))))<0,"(","") ->  | S20: =ABS(SUM(IF($V$21:$V$23="p",IF(R$21:R$23="(",-S$21:S$23,S$21:S$23)))) -> 0 | T20: =IF(R20="(",")","") ->  | V20: p
E21: 9.2.1 | F21: Бюджетные кредиты - всего, в том числе: | G21: ="за "&IF(List_01_reporting_period="","отчётный год",List_01_reporting_period&" год") -> за 2017 год | K21: =IF(I21="(",")","") ->  | N21: =IF(L21="(",")","") ->  | O21: ( | Q21: ) | T21: =IF(R21="(",")","") ->  | V21: c
G22: ="за "&IF(List_01_reporting_period="","предыдущий год",List_01_reporting_period-1&" год") -> за 2016 год | K22: =IF(I22="(",")","") ->  | N22: =IF(L22="(",")","") ->  | O22: ( | Q22: ) | T22: =IF(R22="(",")","") ->  | V22: p
F23: Добавить цель | U23: add_FORMA5_STR14_range

Sheet Форма 6. Отчет о ЦИС
D1: ,
E5: =Getcode() -> ELPASS.FORMS.BH | M5: =version -> Версия 1.0 от 01.10.2017
M7: Форма 0710006 с. 1
E8: Отчёт о целевом использовании средств
E11: № п/п | F11: Наименование | G11: Код | H11: ="За "&IF(List_01_reporting_period="","отчётный период",List_01_reporting_period&" год") -> За 2017 год | K11: ="За "&IF(List_01_reporting_period="","период предыдущего года, аналогичный отчётному периоду",List_01_reporting_period-1&" год") -> За 2016 год
E13: 1 | F13: 2 | G13: 3 | H13: 4 | K13: 5
E14: 1 | F14: Остаток средств на начало отчётного года | G14: 6100
E15: 2 | F15: Поступило средств
E16: 2.1 | F16: Вступительные взносы | G16: 6210
E17: 2.2 | F17: Членские взносы | G17: 6215
E18: 2.3 | F18: Целевые взносы | G18: 6220
E19: 2.4 | F19: Добровольные имущественные взносы и пожертвования | G19: 6230
E20: 2.5 | F20: Прибыль от приносящей доход деятельности | G20: 6240
E21: 2.6 | F21: Прочие | G21: 6250
E22: 2.7 | F22: Всего поступило средств | G22: 6200 | I22: =SUM(I16:I21) -> 0 | L22: =SUM(L16:L21) -> 0
E23: 3 | F23: Использовано средств
E24: 3.1 | F24: Расходы на целевые мероприятия, в том числе: | G24: 6310 | H24: ( | I24: =SUM(I25:I27) -> 0 | J24: ) | K24: ( | L24: =SUM(L25:L27) -> 0 | M24: )
E25: 3.1.1 | F25: социальная и благотворительная помощь | G25: 6311 | H25: ( | J25: ) | K25: ( | M25: )
E26: 3.1.2 | F26: проведение конференций, совещаний, семинаров и т.п. | G26: 6312 | H26: ( | J26: ) | K26: ( | M26: )
E27: 3.1.3 | F27: иные мероприятия | G27: 6313 | H27: ( | J27: ) | K27: ( | M27: )
E28: 3.2 | F28: Расходы на содержание аппарата управления, в том числе: | G28: 6320 | H28: ( | I28: =SUM(I29:I34) -> 0 | J28: ) | K28: ( | L28: =SUM(L29:L34) -> 0 | M28: )
E29: 3.2.1 | F29: расходы, связанные с оплатой труда (включая начисления) | G29: 6321 | H29: ( | J29: ) | K29: ( | M29: )
E30: 3.2.2 | F30: выплаты, не связанные с оплатой труда | G30: 6322 | H30: ( | J30: ) | K30: ( | M30: )
E31: 3.2.3 | F31: расходы на служебные командировки и деловые поездки | G31: 6323 | H31: ( | J31: ) | K31: ( | M31: )
E32: 3.2.4 | F32: содержание помещений, зданий, автомобильного транспорта и иного имущества (кроме ремонта) | G32: 6324 | H32: ( | J32: ) | K32: ( | M32: )
E33: 3.2.5 | F33: ремонт основных средств и иного имущества | G33: 6325 | H33: ( | J33: ) | K33: ( | M33: )
E34: 3.2.6 | F34: прочие | G34: 6326 | H34: ( | J34: ) | K34: ( | M34: )
E35: 3.3 | F35: Приобретение основных средств, инвентаря и иного имущества | G35: 6330 | H35: ( | J35: ) | K35: ( | M35: )
E36: 3.4 | F36: Прочие | G36: 6350 | H36: ( | J36: ) | K36: ( | M36: )
E37: 3.5 | F37: Всего использовано средств | G37: 6300 | H37: ( | I37: =SUM(I24,I28,I35:I36) -> 0 | J37: ) | K37: ( | L37: =SUM(L24,L28,L35:L36) -> 0 | M37: )
E38: 4 | F38: Остаток средств на конец отчётного года | G38: 6400 | H38: =IF((IF(H14="(",-I14,I14)+IF(H22="(",-I22,I22)-I37)<0,"(","") ->  | I38: =ABS(I14+I22-I37) -> 0 | J38: =IF(H38="(",")","") ->  | K38: =IF((IF(H14="(",-L14,L14)+IF(K22="(",-L22,L22)-L37)<0,"(","") ->  | L38: =ABS(L14+L22-L37) -> 0 | M38: =IF(K38="(",")","") -> 

Sheet Комментарий
B3: =Getcode()&" "&version -> ELPASS.FORMS.BH Версия 1.0 от 01.10.2017
B4: =GetTemplateName() -> Формы бухгалтерского баланса, отчета о финансовых результатах и отчета о целевом использовании средств
B6: Комментарии регулируемой организации
B7: № | C7: Комментарий
B8: 1
C9: Добавить комментарий | D9: add_COMMENTS_range

Sheet Ошибки и предупреждения
B2: Результат проверки
B4: Ссылка | C4: Причина | D4: Статус

Sheet Columns (hidden)

Sheet Rows (hidden)
A1: add_COMMENTS_range
A4: add_FORMA1_R1_range
J5: =IF(H5="(",")","") ->  | M5: =IF(K5="(",")","") ->  | P5: =IF(N5="(",")","") -> 
A7: add_FORMA1_R2_range
H8: ( | J8: ) | K8: ( | M8: ) | N8: ( | P8: )
A11: add_FORMA2_R1_range | B11: для формы 2 и формы 4
J12: =IF(H12="(",")","") ->  | M12: =IF(K12="(",")","") -> 
A14: add_FORMA2_R2_range | B14: для формы 2 и формы 4
H15: ( | J15: ) | K15: ( | M15: )
A17: add_FORMA3_CAPITAL_range
K18: =IF(I18="(",")","") ->  | N18: =IF(L18="(",")","") ->  | Q18: =IF(O18="(",")","") ->  | T18: =IF(R18="(",")","") ->  | W18: =IF(U18="(",")","") ->  | X18: =IF(IF(I18="(",-J18,J18)+IF(L18="(",-M18,M18)+IF(O18="(",-P18,P18)+IF(R18="(",-S18,S18)+IF(U18="(",-V18,V18)<0,"(","") ->  | Y18: =ABS(IF(I18="(",-J18,J18)+IF(L18="(",-M18,M18)+IF(O18="(",-P18,P18)+IF(R18="(",-S18,S18)+IF(U18="(",-V18,V18)) -> 0 | Z18: =IF(X18="(",")","") -> 
A20: add_FORMA3_CORRECT_range
G21: до корректировок | K21: =IF(I21="(",")","") ->  | N21: =IF(L21="(",")","") ->  | Q21: =IF(O21="(",")","") ->  | R21: =IF((IF(I21="(",-J21,J21)+IF(L21="(",-M21,M21)+IF(O21="(",-P21,P21))<0,"(","") ->  | S21: =ABS(IF(I21="(",-J21,J21)+IF(L21="(",-M21,M21)+IF(O21="(",-P21,P21)) -> 0 | T21: =IF(R21="(",")","") -> 
G22: корректировка в связи с:
G23: изменением учётной политики | K23: =IF(I23="(",")","") ->  | N23: =IF(L23="(",")","") ->  | Q23: =IF(O23="(",")","") ->  | R23: =IF((IF(I23="(",-J23,J23)+IF(L23="(",-M23,M23)+IF(O23="(",-P23,P23))<0,"(","") ->  | S23: =ABS(IF(I23="(",-J23,J23)+IF(L23="(",-M23,M23)+IF(O23="(",-P23,P23)) -> 0 | T23: =IF(R23="(",")","") -> 
G24: исправлением ошибок | K24: =IF(I24="(",")","") ->  | N24: =IF(L24="(",")","") ->  | Q24: =IF(O24="(",")","") ->  | R24: =IF((IF(I24="(",-J24,J24)+IF(L24="(",-M24,M24)+IF(O24="(",-P24,P24))<0,"(","") ->  | S24: =ABS(IF(I24="(",-J24,J24)+IF(L24="(",-M24,M24)+IF(O24="(",-P24,P24)) -> 0 | T24: =IF(R24="(",")","") -> 
G25: после корректировок | I25: =IF((IF(I21="(",-J21,J21)+(SUMIF(I23:I24,"",J23:J24)-SUMIF(I23:I24,"(",J23:J24)))<0,"(","") ->  | J25: =ABS(IF(I21="(",-J21,J21)+(SUMIF(I23:I24,"",J23:J24)-SUMIF(I23:I24,"(",J23:J24))) -> 0 | K25: =IF(I25="(",")","") ->  | L25: =IF((IF(L21="(",-M21,M21)+(SUMIF(L23:L24,"",M23:M24)-SUMIF(L23:L24,"(",M23:M24)))<0,"(","") ->  | M25: =ABS(IF(L21="(",-M21,M21)+(SUMIF(L23:L24,"",M23:M24)-SUMIF(L23:L24,"(",M23:M24))) -> 0 | N25: =IF(L25="(",")","") ->  | O25: =IF((IF(O21="(",-P21,P21)+(SUMIF(O23:O24,"",P23:P24)-SUMIF(O23:O24,"(",P23:P24)))<0,"(","") ->  | P25: =ABS(IF(O21="(",-P21,P21)+(SUMIF(O23:O24,"",P23:P24)-SUMIF(O23:O24,"(",P23:P24))) -> 0 | Q25: =IF(O25="(",")","") ->  | R25: =IF((IF(I25="(",-J25,J25)+IF(L25="(",-M25,M25)+IF(O25="(",-P25,P25))<0,"(","") ->  | S25: =ABS(IF(I25="(",-J25,J25)+IF(L25="(",-M25,M25)+IF(O25="(",-P25,P25)) -> 0 | T25: =IF(R25="(",")","") -> 
A27: add_FORMA5_STR1_1_1_range
G28: ="за "&IF(List_01_reporting_period="","отчётный год",List_01_reporting_period&" год") -> за 2017 год | K28: =IF(I28="(",")","") ->  | L28: ( | N28: ) | Q28: =IF(O28="(",")","") ->  | R28: ( | T28: ) | W28: =IF(U28="(",")","") ->  | X28: ( | Z28: ) | AC28: =IF(AA28="(",")","") ->  | AF28: =IF(AD28="(",")","") ->  | AI28: =IF(AG28="(",")","") ->  | AL28: =IF(AJ28="(",")","") ->  | AM28: ( | AO28: ) | AQ28: c
G29: ="за "&IF(List_01_reporting_period="","предыдущий год",List_01_reporting_period-1&" год") -> за 2016 год | K29: =IF(I29="(",")","") ->  | L29: ( | N29: ) | Q29: =IF(O29="(",")","") ->  | R29: ( | T29: ) | W29: =IF(U29="(",")","") ->  | X29: ( | Z29: ) | AC29: =IF(AA29="(",")","") ->  | AF29: =IF(AD29="(",")","") ->  | AI29: =IF(AG29="(",")","") ->  | AL29: =IF(AJ29="(",")","") ->  | AM29: ( | AO29: ) | AQ29: p
A31: add_FORMA5_STR1_1_2_range
K32: =IF(I32="(",")","") ->  | N32: =IF(L32="(",")","") ->  | Q32: =IF(O32="(",")","") -> 
A34: add_FORMA5_STR1_1_4_range
G35: ="за "&IF(List_01_reporting_period="","отчётный год",List_01_reporting_period&" год") -> за 2017 год | K35: =IF(I35="(",")","") ->  | L35: ( | N35: ) | Q35: =IF(O35="(",")","") ->  | R35: ( | T35: ) | X35: ( | Z35: ) | AD35: ( | AF35: ) | AH35: c
G36: ="за "&IF(List_01_reporting_period="","предыдущий год",List_01_reporting_period-1&" год") -> за 2016 год | K36: =IF(I36="(",")","") ->  | L36: ( | N36: ) | Q36: =IF(O36="(",")","") ->  | R36: ( | T36: ) | X36: ( | Z36: ) | AD36: ( | AF36: ) | AH36: p
A38: add_FORMA5_STR1_1_5_range
G39: ="за "&IF(List_01_reporting_period="","отчётный год",List_01_reporting_period&" год") -> за 2017 год | K39: =IF(I39="(",")","") ->  | N39: =IF(L39="(",")","") ->  | O39: ( | Q39: ) | R39: ( | T39: ) | W39: =IF(U39="(",")","") ->  | Y39: c
G40: ="за "&IF(List_01_reporting_period="","предыдущий год",List_01_reporting_period-1&" год") -> за 2016 год | K40: =IF(I40="(",")","") ->  | N40: =IF(L40="(",")","") ->  | O40: ( | Q40: ) | R40: ( | T40: ) | W40: =IF(U40="(",")","") ->  | Y40: p
A43: add_FORMA5_STR4_2_1_range
G44: ="за "&IF(List_01_reporting_period="","отчётный год",List_01_reporting_period&" год") -> за 2017 год | K44: =IF(I44="(",")","") ->  | L44: ( | N44: ) | Q44: =IF(O44="(",")","") ->  | R44: ( | T44: ) | W44: =IF(U44="(",")","") ->  | X44: ( | Z44: ) | AC44: =IF(AA44="(",")","") ->  | AF44: =IF(AD44="(",")","") ->  | AI44: =IF(AG44="(",")","") ->  | AJ44: ( | AL44: ) | AN44: c
G45: ="за "&IF(List_01_reporting_period="","предыдущий год",List_01_reporting_period-1&" год") -> за 2016 год | K45: =IF(I45="(",")","") ->  | L45: ( | N45: ) | Q45: =IF(O45="(",")","") ->  | R45: ( | T45: ) | W45: =IF(U45="(",")","") ->  | X45: ( | Z45: ) | AC45: =IF(AA45="(",")","") ->  | AF45: =IF(AD45="(",")","") ->  | AI45: =IF(AG45="(",")","") ->  | AJ45: ( | AL45: ) | AN45: p
A47: add_FORMA5_STR4_2_2_range
G48: ="за "&IF(List_01_reporting_period="","отчётный год",List_01_reporting_period&" год") -> за 2017 год | K48: =IF(I48="(",")","") ->  | N48: =IF(L48="(",")","") ->  | O48: ( | Q48: ) | R48: ( | T48: ) | W48: =IF(U48="(",")","") -> 
G49: ="за "&IF(List_01_reporting_period="","предыдущий год",List_01_reporting_period-1&" год") -> за 2016 год | K49: =IF(I49="(",")","") ->  | N49: =IF(L49="(",")","") ->  | O49: ( | Q49: ) | R49: ( | T49: ) | W49: =IF(U49="(",")","") -> 
A51: add_FORMA5_STR4_2_3_range
K52: =IF(I52="(",")","") ->  | N52: =IF(L52="(",")","") -> 
A54: add_FORMA5_STR4_2_3_1_range
I55: ( | K55: ) | L55: ( | N55: )
A57: add_FORMA5_STR4_2_4_range
K58: =IF(I58="(",")","") ->  | N58: =IF(L58="(",")","") ->  | Q58: =IF(O58="(",")","") -> 
A60: add_FORMA5_STR7_3_1_range
G61: ="за "&IF(List_01_reporting_period="","отчётный год",List_01_reporting_period&" год") -> за 2017 год | K61: =IF(I61="(",")","") ->  | N61: =IF(L61="(",")","") ->  | Q61: =IF(O61="(",")","") ->  | R61: ( | T61: ) | W61: =IF(U61="(",")","") ->  | Z61: =IF(X61="(",")","") ->  | AC61: =IF(AA61="(",")","") ->  | AF61: =IF(AD61="(",")","") ->  | AI61: =IF(AG61="(",")","") ->  | AK61: c
G62: ="за "&IF(List_01_reporting_period="","предыдущий год",List_01_reporting_period-1&" год") -> за 2016 год | K62: =IF(I62="(",")","") ->  | N62: =IF(L62="(",")","") ->  | Q62: =IF(O62="(",")","") ->  | R62: ( | T62: ) | W62: =IF(U62="(",")","") ->  | Z62: =IF(X62="(",")","") ->  | AC62: =IF(AA62="(",")","") ->  | AF62: =IF(AD62="(",")","") ->  | AI62: =IF(AG62="(",")","") ->  | AK62: p
A64: add_FORMA5_STR7_3_2_range
K65: =IF(I65="(",")","") ->  | N65: =IF(L65="(",")","") ->  | Q65: =IF(O65="(",")","") -> 
A66: add_FORMA5_STR7_4_1_range
G67: ="за "&IF(List_01_reporting_period="","отчётный год",List_01_reporting_period&" год") -> за 2017 год | K67: =IF(I67="(",")","") ->  | L67: ( | N67: ) | Q67: =IF(O67="(",")","") ->  | R67: ( | T67: ) | W67: =IF(U67="(",")","") ->  | Z67: =IF(X67="(",")","") ->  | AC67: =IF(AA67="(",")","") ->  | AF67: =IF(AD67="(",")","") ->  | AG67: ( | AI67: ) | AK67: c
G68: ="за "&IF(List_01_reporting_period="","предыдущий год",List_01_reporting_period-1&" год") -> за 2016 год | K68: =IF(I68="(",")","") ->  | L68: ( | N68: ) | Q68: =IF(O68="(",")","") ->  | R68: ( | T68: ) | W68: =IF(U68="(",")","") ->  | Z68: =IF(X68="(",")","") ->  | AC68: =IF(AA68="(",")","") ->  | AF68: =IF(AD68="(",")","") ->  | AG68: ( | AI68: ) | AK68: p
A71: add_FORMA5_STR12_5_1_1_range
G72: ="за "&IF(List_01_reporting_period="","отчётный год",List_01_reporting_period&" год") -> за 2017 год | K72: =IF(I72="(",")","") ->  | L72: ( | N72: ) | Q72: =IF(O72="(",")","") ->  | T72: =IF(R72="(",")","") ->  | U72: ( | W72: ) | X72: ( | Z72: ) | AC72: =IF(AA72="(",")","") ->  | AD72: ( | AF72: ) | AI72: =IF(AG72="(",")","") ->  | AJ72: ( | AL72: ) | AN72: c
G73: ="за "&IF(List_01_reporting_period="","предыдущий год",List_01_reporting_period-1&" год") -> за 2016 год | K73: =IF(I73="(",")","") ->  | L73: ( | N73: ) | Q73: =IF(O73="(",")","") ->  | T73: =IF(R73="(",")","") ->  | U73: ( | W73: ) | X73: ( | Z73: ) | AC73: =IF(AA73="(",")","") ->  | AD73: ( | AF73: ) | AI73: =IF(AG73="(",")","") ->  | AJ73: ( | AL73: ) | AN73: p
A75: add_FORMA5_STR12_5_1_2_range
G76: ="за "&IF(List_01_reporting_period="","отчётный год",List_01_reporting_period&" год") -> за 2017 год | K76: =IF(I76="(",")","") ->  | L76: ( | N76: ) | Q76: =IF(O76="(",")","") ->  | T76: =IF(R76="(",")","") ->  | U76: ( | W76: ) | X76: ( | Z76: ) | AC76: =IF(AA76="(",")","") ->  | AF76: =IF(AD76="(",")","") ->  | AI76: =IF(AG76="(",")","") ->  | AJ76: ( | AL76: ) | AN76: c
G77: ="за "&IF(List_01_reporting_period="","предыдущий год",List_01_reporting_period-1&" год") -> за 2016 год | K77: =IF(I77="(",")","") ->  | L77: ( | N77: ) | Q77: =IF(O77="(",")","") ->  | T77: =IF(R77="(",")","") ->  | U77: ( | W77: ) | X77: ( | Z77: ) | AC77: =IF(AA77="(",")","") ->  | AF77: =IF(AD77="(",")","") ->  | AI77: =IF(AG77="(",")","") ->  | AJ77: ( | AL77: ) | AN77: p
A79: add_FORMA5_STR12_5_2_range
K80: =IF(I80="(",")","") ->  | N80: =IF(L80="(",")","") ->  | Q80: =IF(O80="(",")","") ->  | T80: =IF(R80="(",")","") ->  | W80: =IF(U80="(",")","") ->  | Z80: =IF(X80="(",")","") -> 
A82: add_FORMA5_STR12_5_3_1_range
G83: ="за "&IF(List_01_reporting_period="","отчётный год",List_01_reporting_period&" год") -> за 2017 год | K83: =IF(I83="(",")","") ->  | N83: =IF(L83="(",")","") ->  | Q83: =IF(O83="(",")","") ->  | R83: ( | T83: ) | U83: ( | W83: ) | X83: ( | Z83: ) | AC83: =IF(AA83="(",")","") ->  | AE83: c
G84: ="за "&IF(List_01_reporting_period="","предыдущий год",List_01_reporting_period-1&" год") -> за 2016 год | K84: =IF(I84="(",")","") ->  | N84: =IF(L84="(",")","") ->  | Q84: =IF(O84="(",")","") ->  | R84: ( | T84: ) | U84: ( | W84: ) | X84: ( | Z84: ) | AC84: =IF(AA84="(",")","") ->  | AE84: p
A86: add_FORMA5_STR12_5_3_2_range
G87: ="за "&IF(List_01_reporting_period="","отчётный год",List_01_reporting_period&" год") -> за 2017 год | K87: =IF(I87="(",")","") ->  | N87: =IF(L87="(",")","") ->  | Q87: =IF(O87="(",")","") ->  | R87: ( | T87: ) | U87: ( | W87: ) | Z87: =IF(X87="(",")","") ->  | AC87: =IF(AA87="(",")","") ->  | AE87: c
G88: ="за "&IF(List_01_reporting_period="","предыдущий год",List_01_reporting_period-1&" год") -> за 2016 год | K88: =IF(I88="(",")","") ->  | N88: =IF(L88="(",")","") ->  | Q88: =IF(O88="(",")","") ->  | R88: ( | T88: ) | U88: ( | W88: ) | Z88: =IF(X88="(",")","") ->  | AC88: =IF(AA88="(",")","") ->  | AE88: p
A90: add_FORMA5_STR12_5_4_range
K91: =IF(I91="(",")","") ->  | N91: =IF(L91="(",")","") ->  | Q91: =IF(O91="(",")","") -> 
A93: add_FORMA5_STR12_6_range
K94: =IF(I94="(",")","") ->  | N94: =IF(L94="(",")","") -> 
A97: add_FORMA5_STR13_7_range
K98: =IF(I98="(",")","") ->  | N98: =IF(L98="(",")","") ->  | O98: ( | Q98: ) | R98: ( | T98: ) | W98: =IF(U98="(",")","") ->  | Y98: c
A100: add_FORMA5_STR13_8_range
K101: =IF(I101="(",")","") ->  | N101: =IF(L101="(",")","") ->  | Q101: =IF(O101="(",")","") -> 
A104: add_FORMA5_STR14_range
G105: ="за "&IF(List_01_reporting_period="","отчётный год",List_01_reporting_period&" год") -> за 2017 год | K105: =IF(I105="(",")","") ->  | N105: =IF(L105="(",")","") ->  | O105: ( | Q105: ) | T105: =IF(R105="(",")","") ->  | V105: c
G106: ="за "&IF(List_01_reporting_period="","предыдущий год",List_01_reporting_period-1&" год") -> за 2016 год | K106: =IF(I106="(",")","") ->  | N106: =IF(L106="(",")","") ->  | O106: ( | Q106: ) | T106: =IF(R106="(",")","") ->  | V106: p

Sheet Reference (hidden)
A1: Месяц (MONTH) | B1: Да/нет (BOOL) | C1: Единица измерения (UNIT)
A2: январь | B2: да | C2: руб.
A3: февраль | B3: нет | C3: тыс.руб.
A4: март | C4: млн.руб.
A5: апрель
A6: май
A7: июнь
A8: июль
A9: август
A10: сентябрь
A11: октябрь
A12: ноябрь
A13: декабрь

Sheet RegistryMunicipal (hidden)
A1: MO1 | B1: МО1_ОКТМО | C1: ИМЯ ДИАПАЗОНА | E1: MO1 | F1: MO2 | G1: МО2_ОКТМО
A2: Абзелиловский муниципальный район | B2: 80601000 | C2: MO_LIST_2 | E2: Абзелиловский муниципальный район | F2: Абзелиловский муниципальный район | G2: 80601000
A3: Альшеевский муниципальный район | B3: 80602000 | C3: MO_LIST_3 | E3: Абзелиловский муниципальный район | F3: Альмухаметовский сельский совет | G3: 80601404
A4: Архангельский муниципальный район | B4: 80603000 | C4: MO_LIST_4 | E4: Абзелиловский муниципальный район | F4: Амангильдинский сельский совет | G4: 80601407
A5: Аскинский муниципальный район | B5: 80604000 | C5: MO_LIST_5 | E5: Абзелиловский муниципальный район | F5: Аскаровский сельский совет | G5: 80601410
A6: Аургазинский муниципальный район | B6: 80605000 | C6: MO_LIST_6 | E6: Абзелиловский муниципальный район | F6: Баимовский сельский совет | G6: 80601413
A7: Баймакский муниципальный район | B7: 80606000 | C7: MO_LIST_7 | E7: Абзелиловский муниципальный район | F7: Бурангуловский сельский совет | G7: 80601416
A8: Бакалинский муниципальный район | B8: 80607000 | C8: MO_LIST_8 | E8: Абзелиловский муниципальный район | F8: Гусевский сельский совет | G8: 80601419
A9: Балтачевский муниципальный район | B9: 80608000 | C9: MO_LIST_9 | E9: Абзелиловский муниципальный район | F9: Давлетовский сельский совет | G9: 80601422
A10: Белебеевский муниципальный район | B10: 80609000 | C10: MO_LIST_10 | E10: Абзелиловский муниципальный район | F10: Кирдасовский сельский совет | G10: 80601425
A11: Белокатайский муниципальный район | B11: 80610000 | C11: MR_LIST_11 | E11: Абзелиловский муниципальный район | F11: Краснобашкирский сельский совет | G11: 80601428
A12: Белорецкий муниципальный район | B12: 80611000 | C12: MO_LIST_12 | E12: Абзелиловский муниципальный район | F12: Равиловский сельский совет | G12: 80601431
A13: Бижбулякский муниципальный район | B13: 80612000 | C13: MO_LIST_13 | E13: Абзелиловский муниципальный район | F13: Ташбулатовский сельский совет | G13: 80601434
A14: Бирский муниципальный район | B14: 80613000 | C14: MO_LIST_14 | E14: Абзелиловский муниципальный район | F14: Таштимеровский сельский совет | G14: 80601437
A15: Благоварский муниципальный район | B15: 80614000 | C15: MO_LIST_15 | E15: Абзелиловский муниципальный район | F15: Халиловский сельский совет | G15: 80601440
A16: Благовещенский муниципальный район | B16: 80615000 | C16: MO_LIST_16 | E16: Абзелиловский муниципальный район | F16: Хамитовский сельский совет | G16: 80601443
A17: Буздякский муниципальный район | B17: 80617000 | C17: MO_LIST_17 | E17: Абзелиловский муниципальный район | F17: Янгильский сельский совет | G17: 80601446
A18: Бураевский муниципальный район | B18: 80618000 | C18: MO_LIST_18 | E18: Альшеевский муниципальный район | F18: Абдрашитовский сельский совет | G18: 80602404
A19: Бурзянский муниципальный район | B19: 80619000 | C19: MO_LIST_19 | E19: Альшеевский муниципальный район | F19: Аксеновский сельский совет | G19: 80602406
A20: Гафурийский муниципальный район | B20: 80621000 | C20: MO_LIST_20 | E20: Альшеевский муниципальный район | F20: Альшеевский муниципальный район | G20: 80602000
A21: Город Агидель | B21: 80703000 | C21: MO_LIST_21 | E21: Альшеевский муниципальный район | F21: Воздвиженский сельский совет | G21: 80602413
A22: Город Кумертау | B22: 80723000 | C22: MO_LIST_22 | E22: Альшеевский муниципальный район | F22: Гайниямакский сельский совет | G22: 80602416
A23: Город Нефтекамск | B23: 80727000 | C23: MO_LIST_23 | E23: Альшеевский муниципальный район | F23: Зеленоклиновский сельский совет | G23: 80602418
A24: Город Октябрьский | B24: 80735000 | C24: MO_LIST_24 | E24: Альшеевский муниципальный район | F24: Ибраевский сельский совет | G24: 80602419
A25: Город Салават | B25: 80739000 | C25: MO_LIST_25 | E25: Альшеевский муниципальный район | F25: Казанский сельский совет | G25: 80602422
A26: Город Сибай | B26: 80743000 | C26: MO_LIST_26 | E26: Альшеевский муниципальный район | F26: Кармышевский сельский совет | G26: 80602428
A27: Город Стерлитамак | B27: 80745000 | C27: MO_LIST_27 | E27: Альшеевский муниципальный район | F27: Кипчак-Аскаровский сельский совет | G27: 80602431
A28: Город Уфа | B28: 80701000 | C28: MO_LIST_28 | E28: Альшеевский муниципальный район | F28: Кызыльский сельский совет | G28: 80602437
A29: Давлекановский муниципальный район | B29: 80622000 | C29: MO_LIST_29 | E29: Альшеевский муниципальный район | F29: Мендяновский сельский совет | G29: 80602440
A30: Дуванский муниципальный район | B30: 80623000 | C30: MO_LIST_30 | E30: Альшеевский муниципальный район | F30: Нигматуллинский сельский совет | G30: 80602443
A31: Дюртюлинский муниципальный район | B31: 80624000 | C31: MO_LIST_31 | E31: Альшеевский муниципальный район | F31: Нижнеаврюзовский сельский совет | G31: 80602446
A32: Ермекеевский муниципальный район | B32: 80625000 | C32: MO_LIST_32 | E32: Альшеевский муниципальный район | F32: Никифаровский сельский совет | G32: 80602449
A33: ЗАТО город Межгорье | B33: 80707000 | C33: MO_LIST_33 | E33: Альшеевский муниципальный район | F33: Раевский сельский совет | G33: 80602451
A34: Зианчуринский муниципальный район | B34: 80626000 | C34: MO_LIST_34 | E34: Альшеевский муниципальный район | F34: Слаковский сельский совет | G34: 80602455
A35: Зилаирский муниципальный район | B35: 80627000 | C35: MO_LIST_35 | E35: Альшеевский муниципальный район | F35: Ташлинский сельский совет | G35: 80602458
A36: Иглинский муниципальный район | B36: 80628000 | C36: MO_LIST_36 | E36: Альшеевский муниципальный район | F36: Трунтаишевский сельский совет | G36: 80602461
A37: Илишевский муниципальный район | B37: 80630000 | C37: MO_LIST_37 | E37: Альшеевский муниципальный район | F37: Чебенлинский сельский совет | G37: 80602464
A38: Ишимбайский муниципальный район | B38: 80631000 | C38: MO_LIST_38 | E38: Альшеевский муниципальный район | F38: Шафрановский сельский совет | G38: 80602470
A39: Калтасинский муниципальный район | B39: 80633000 | C39: MO_LIST_39 | E39: Архангельский муниципальный район | F39: Абзановский сельский совет | G39: 80603404
A40: Караидельский муниципальный район | B40: 80634000 | C40: MO_LIST_40 | E40: Архангельский муниципальный район | F40: Арх-Латышский сельский совет | G40: 80603413
A41: Кармаскалинский муниципальный район | B41: 80635000 | C41: MO_LIST_41 | E41: Архангельский муниципальный район | F41: Архангельский муниципальный район | G41: 80603000
A42: Кигинский муниципальный район | B42: 80636000 | C42: MO_LIST_42 | E42: Архангельский муниципальный район | F42: Архангельский сельский совет | G42: 80603410
A43: Краснокамский муниципальный район | B43: 80637000 | C43: MO_LIST_43 | E43: Архангельский муниципальный район | F43: Бакалдинский сельский совет | G43: 80603416
A44: Кугарчинский муниципальный район | B44: 80638000 | C44: MO_LIST_44 | E44: Архангельский муниципальный район | F44: Инзерский сельский совет | G44: 80603419
A45: Кушнаренковский муниципальный район | B45: 80640000 | C45: MO_LIST_45 | E45: Архангельский муниципальный район | F45: Ирныкшинский сельский совет | G45: 80603422
A46: Куюргазинский муниципальный район | B46: 80639000 | C46: MO_LIST_46 | E46: Архангельский муниципальный район | F46: Краснозилимский сельский совет | G46: 80603425
A47: Мелеузовский муниципальный район | B47: 80641000 | C47: MO_LIST_47 | E47: Архангельский муниципальный район | F47: Краснокуртовский сельский совет | G47: 80603428
A48: Мечетлинский муниципальный район | B48: 80642000 | C48: MO_LIST_48 | E48: Архангельский муниципальный район | F48: Липовский сельский совет | G48: 80603434
A49: Мишкинский муниципальный район | B49: 80643000 | C49: MO_LIST_49 | E49: Архангельский муниципальный район | F49: Орловский сельский совет | G49: 80603440
A50: Миякинский муниципальный район | B50: 80644000 | C50: MO_LIST_50 | E50: Архангельский муниципальный район | F50: Тавакачевский сельский совет | G50: 80603446
A51: Нуримановский муниципальный район | B51: 80645000 | C51: MO_LIST_51 | E51: Архангельский муниципальный район | F51: Узунларовский сельский совет | G51: 80603450
A52: Салаватский муниципальный район | B52: 80647000 | C52: MO_LIST_52 | E52: Аскинский муниципальный район | F52: Арбашевский сельский совет | G52: 80604402
A53: Стерлибашевский муниципальный район | B53: 80648000 | C53: MO_LIST_53 | E53: Аскинский муниципальный район | F53: Аскинский муниципальный район | G53: 80604000
A54: Стерлитамакский муниципальный район | B54: 80649000 | C54: MO_LIST_54 | E54: Аскинский муниципальный район | F54: Аскинский сельский совет | G54: 80604404
A55: Татышлинский муниципальный район | B55: 80650000 | C55: MO_LIST_55 | E55: Аскинский муниципальный район | F55: Евбулякский сельский совет | G55: 80604413
A56: Туймазинский муниципальный район | B56: 80651000 | C56: MO_LIST_56 | E56: Аскинский муниципальный район | F56: Казанчинский сельский совет | G56: 80604416
A57: Уфимский муниципальный район | B57: 80652000 | C57: MO_LIST_57 | E57: Аскинский муниципальный район | F57: Карткисяковский сельский совет | G57: 80604418
A58: Учалинский муниципальный район | B58: 80653000 | C58: MO_LIST_58 | E58: Аскинский муниципальный район | F58: Кашкинский сельский совет | G58: 80604419
A59: Федоровский муниципальный район | B59: 80654000 | C59: MO_LIST_59 | E59: Аскинский муниципальный район | F59: Ключевский сельский совет | G59: 80604425
A60: Хайбуллинский муниципальный район | B60: 80655000 | C60: MO_LIST_60 | E60: Аскинский муниципальный район | F60: Кубиязовский сельский совет | G60: 80604428
A61: Чекмагушевский муниципальный район | B61: 80656000 | C61: MO_LIST_61 | E61: Аскинский муниципальный район | F61: Кунгаковский сельский совет | G61: 80604431
A62: Чишминский муниципальный район | B62: 80657000 | C62: MO_LIST_62 | E62: Аскинский муниципальный район | F62: Кшлау-Елгинский сельский совет | G62: 80604437
A63: Шаранский муниципальный район | B63: 80658000 | C63: MO_LIST_63 | E63: Аскинский муниципальный район | F63: Мутабашевский сельский совет | G63: 80604440
A64: Янаульский муниципальный район | B64: 80659000 | C64: MO_LIST_64 | E64: Аскинский муниципальный район | F64: Петропавловский сельский совет | G64: 80604442
E65: Аскинский муниципальный район | F65: Султанбековский сельский совет | G65: 80604443
E66: Аскинский муниципальный район | F66: Урмиязовский сельский совет | G66: 80604446
E67: Аскинский муниципальный район | F67: Усть-Табасский сельский совет | G67: 80604450
E68: Аургазинский муниципальный район | F68: Аургазинский муниципальный район | G68: 80605000
E69: Аургазинский муниципальный район | F69: Балыклыкульский сельский совет | G69: 80605402
E70: Аургазинский муниципальный район | F70: Батыровский сельский совет | G70: 80605404
E71: Аургазинский муниципальный район | F71: Бишкаинский сельский совет | G71: 80605407
E72: Аургазинский муниципальный район | F72: Ибраевский сельский совет | G72: 80605410
E73: Аургазинский муниципальный район | F73: Исмагиловский сельский совет | G73: 80605413
E74: Аургазинский муниципальный район | F74: Ишлинский сельский совет | G74: 80605416
E75: Аургазинский муниципальный район | F75: Кебячевский сельский совет | G75: 80605419
E76: Аургазинский муниципальный район | F76: Меселинский сельский совет | G76: 80605422
E77: Аургазинский муниципальный район | F77: Михайловский сельский совет | G77: 80605425
E78: Аургазинский муниципальный район | F78: Нагадакский сельский совет | G78: 80605428
E79: Аургазинский муниципальный район | F79: Новокальчировский сельский совет | G79: 80605431
E80: Аургазинский муниципальный район | F80: Семенкинский сельский совет | G80: 80605434
E81: Аургазинский муниципальный район | F81: Степановский сельский совет | G81: 80605437
E82: Аургазинский муниципальный район | F82: Султанмуратовский сельский совет | G82: 80605440
E83: Аургазинский муниципальный район | F83: Таштамакский сельский совет | G83: 80605443
E84: Аургазинский муниципальный район | F84: Толбазинский сельский совет | G84: 80605446
E85: Аургазинский муниципальный район | F85: Тряпинский сельский совет | G85: 80605449
E86: Аургазинский муниципальный район | F86: Тукаевский сельский совет | G86: 80605452
E87: Аургазинский муниципальный район | F87: Турумбетовский сельский совет | G87: 80605458
E88: Аургазинский муниципальный район | F88: Уршакский сельский совет | G88: 80605461
E89: Аургазинский муниципальный район | F89: Чуваш-Карамалинский сельский совет | G89: 80605472
E90: Баймакский муниципальный район | F90: 1-й Иткуловский сельский совет | G90: 80606416
E91: Баймакский муниципальный район | F91: Абдулкаримовский сельский совет | G91: 80606404
E92: Баймакский муниципальный район | F92: Акмурунский сельский совет | G92: 80606407
E93: Баймакский муниципальный район | F93: Баймакский муниципальный район | G93: 80606000
E94: Баймакский муниципальный район | F94: Бекешевский сельский совет | G94: 80606409
E95: Баймакский муниципальный район | F95: Биляловский сельский совет | G95: 80606410
E96: Баймакский муниципальный район | F96: Город Баймак | G96: 80606101
E97: Баймакский муниципальный район | F97: Зилаирский сельский совет | G97: 80606413
E98: Баймакский муниципальный район | F98: Ишбердинский сельский совет | G98: 80606428
E99: Баймакский муниципальный район | F99: Ишмурзинский сельский совет | G99: 80606422
E100: Баймакский муниципальный район | F100: Ишмухаметовский сельский совет | G100: 80606425
E101: Баймакский муниципальный район | F101: Кульчуровский сельский совет | G101: 80606437
E102: Баймакский муниципальный район | F102: Кусеевский сельский совет | G102: 80606431
E103: Баймакский муниципальный район | F103: Мерясовский сельский совет | G103: 80606438
E104: Баймакский муниципальный район | F104: Мукасовский сельский совет | G104: 80606434
E105: Баймакский муниципальный район | F105: Нигаматовский сельский совет | G105: 80606440
E106: Баймакский муниципальный район | F106: Семеновский сельский совет | G106: 80606442
E107: Баймакский муниципальный район | F107: Сибайский сельский совет | G107: 80606443
E108: Баймакский муниципальный район | F108: Тавлыкаевский сельский совет | G108: 80606446
E109: Баймакский муниципальный район | F109: Татлыбаевский сельский совет | G109: 80606449
E110: Баймакский муниципальный район | F110: Темясовский сельский совет | G110: 80606452
E111: Баймакский муниципальный район | F111: Тубинский сельский совет | G111: 80606453
E112: Баймакский муниципальный район | F112: Юмашевский сельский совет | G112: 80606455
E113: Баймакский муниципальный район | F113: Яратовский сельский совет | G113: 80606459
E114: Бакалинский муниципальный район | F114: Ахмановский сельский совет | G114: 80607404
E115: Бакалинский муниципальный район | F115: Бакалинский муниципальный район | G115: 80607000
E116: Бакалинский муниципальный район | F116: Бакалинский сельский совет | G116: 80607407
E117: Бакалинский муниципальный район | F117: Бузюровский сельский совет | G117: 80607413
E118: Бакалинский муниципальный район | F118: Дияшевский сельский совет | G118: 80607419
E119: Бакалинский муниципальный район | F119: Камышлытамакский сельский совет | G119: 80607425
E120: Бакалинский муниципальный район | F120: Килеевский сельский совет | G120: 80607428
E121: Бакалинский муниципальный район | F121: Куштиряковский сельский совет | G121: 80607431
E122: Бакалинский муниципальный район | F122: Михайловский сельский совет | G122: 80607410
E123: Бакалинский муниципальный район | F123: Мустафинский сельский совет | G123: 80607434
E124: Бакалинский муниципальный район | F124: Новокатаевский сельский совет | G124: 80607440
E125: Бакалинский муниципальный район | F125: Новоурсаевский сельский совет | G125: 80607446
E126: Бакалинский муниципальный район | F126: Старокостеевский сельский совет | G126: 80607451
E127: Бакалинский муниципальный район | F127: Старокуручевский сельский совет | G127: 80607449
E128: Бакалинский муниципальный район | F128: Староматинский сельский совет | G128: 80607455
E129: Бакалинский муниципальный район | F129: Старошарашлинский сельский совет | G129: 80607458
E130: Бакалинский муниципальный район | F130: Тактагуловский сельский совет | G130: 80607461
E131: Бакалинский муниципальный район | F131: Урманаевский сельский совет | G131: 80607464
E132: Балтачевский муниципальный район | F132: Балтачевский муниципальный район | G132: 80608000
E133: Балтачевский муниципальный район | F133: Богдановский сельский совет | G133: 80608404
E134: Балтачевский муниципальный район | F134: Верхнеянактаевский сельский совет | G134: 80608407
E135: Балтачевский муниципальный район | F135: Кундашлинский сельский совет | G135: 80608413
E136: Балтачевский муниципальный район | F136: Кунтугушевский сельский совет | G136: 80608416
E137: Балтачевский муниципальный район | F137: Нижнекарышевский сельский совет | G137: 80608419
E138: Балтачевский муниципальный район | F138: Нижнесикиязовский сельский совет | G138: 80608422
E139: Балтачевский муниципальный район | F139: Норкинский сельский совет | G139: 80608425
E140: Балтачевский муниципальный район | F140: Сейтяковский сельский совет | G140: 80608428
E141: Балтачевский муниципальный район | F141: Старобалтачевский сельский совет | G141: 80608431
E142: Балтачевский муниципальный район | F142: Староянбаевский сельский совет | G142: 80608434
E143: Балтачевский муниципальный район | F143: Тошкуровский сельский совет | G143: 80608437
E144: Балтачевский муниципальный район | F144: Тучубаевский сельский совет | G144: 80608440
E145: Балтачевский муниципальный район | F145: Шавьядинский сельский совет | G145: 80608441
E146: Балтачевский муниципальный район | F146: Штандинский сельский совет | G146: 80608443
E147: Балтачевский муниципальный район | F147: Ялангачевский сельский совет | G147: 80608448
E148: Белебеевский муниципальный район | F148: Аксаковский сельский совет | G148: 80609401
E149: Белебеевский муниципальный район | F149: Анновский сельский совет | G149: 80609413
E150: Белебеевский муниципальный район | F150: Баженовский сельский совет | G150: 80609402
E151: Белебеевский муниципальный район | F151: Белебеевский муниципальный район | G151: 80609000
E152: Белебеевский муниципальный район | F152: Город Белебей | G152: 80609101
E153: Белебеевский муниципальный район | F153: Донской сельский совет | G153: 80609404
E154: Белебеевский муниципальный район | F154: Ермолкинский сельский совет | G154: 80609407
E155: Белебеевский муниципальный район | F155: Знаменский сельский совет | G155: 80609410
E156: Белебеевский муниципальный район | F156: Максим-Горьковский сельский совет | G156: 80609416
E157: Белебеевский муниципальный район | F157: Малиновский сельский совет | G157: 80609419
E158: Белебеевский муниципальный район | F158: Метевбашевский сельский совет | G158: 80609425
E159: Белебеевский муниципальный район | F159: Приютовский поссовет | G159: 80609165
E160: Белебеевский муниципальный район | F160: Рассветовский сельский совет | G160: 80609428
E161: Белебеевский муниципальный район | F161: Семенкинский сельский совет | G161: 80609431
E162: Белебеевский муниципальный район | F162: Слакбашевский сельский совет | G162: 80609434
E163: Белебеевский муниципальный район | F163: Тузлукушевский сельский совет | G163: 80609437
E164: Белебеевский муниципальный район | F164: Усень-Ивановский сельский совет | G164: 80609440
E165: Белебеевский муниципальный район | F165: Шаровский сельский совет | G165: 80609443
E166: Белокатайский муниципальный район | F166: Атаршинский сельский совет | G166: 80610402
E167: Белокатайский муниципальный район | F167: Белокатайский муниципальный район | G167: 80610000
E168: Белокатайский муниципальный район | F168: Белянковский сельский совет | G168: 80610404
E169: Белокатайский муниципальный район | F169: Емашинский сельский совет | G169: 80610407
E170: Белокатайский муниципальный район | F170: Карлыхановский сельский совет | G170: 80610413
E171: Белокатайский муниципальный район | F171: Майгазинский сельский совет | G171: 80610416
E172: Белокатайский муниципальный район | F172: Нижнеискушинский сельский совет | G172: 80610419
E173: Белокатайский муниципальный район | F173: Новобелокатайский сельский совет | G173: 80610422
E174: Белокатайский муниципальный район | F174: Ногушинский сельский совет | G174: 80610425
E175: Белокатайский муниципальный район | F175: Старобелокатайский сельский совет | G175: 80610428
E176: Белокатайский муниципальный район | F176: Тардавский сельский совет | G176: 80610431
E177: Белокатайский муниципальный район | F177: Ургалинский сельский совет | G177: 80610434
E178: Белокатайский муниципальный район | F178: Утяшевский сельский совет | G178: 80610437
E179: Белокатайский муниципальный район | F179: Яныбаевский сельский совет | G179: 80610440
E180: Белорецкий муниципальный район | F180: Абзаковский сельский совет | G180: 80611404
E181: Белорецкий муниципальный район | F181: Азикеевский сельский совет | G181: 80611407
E182: Белорецкий муниципальный район | F182: Ассинский сельский совет | G182: 80611410
E183: Белорецкий муниципальный район | F183: Белорецкий муниципальный район | G183: 80611000
E184: Белорецкий муниципальный район | F184: Верхнеавзянский сельский совет | G184: 80611415
E185: Белорецкий муниципальный район | F185: Город Белорецк | G185: 80611101
E186: Белорецкий муниципальный район | F186: Железнодорожный сельский совет | G186: 80611418
E187: Белорецкий муниципальный район | F187: Зигазинский сельский совет | G187: 80611416
E188: Белорецкий муниципальный район | F188: Зуяковский сельский совет | G188: 80611417
E189: Белорецкий муниципальный район | F189: Инзерский сельский совет | G189: 80611420
E190: Белорецкий муниципальный район | F190: Ишлинский сельский совет | G190: 80611422
E191: Белорецкий муниципальный район | F191: Кагинский сельский совет | G191: 80611425
E192: Белорецкий муниципальный район | F192: Ломовский сельский совет | G192: 80611427
E193: Белорецкий муниципальный район | F193: Николаевский сельский совет | G193: 80611434
E194: Белорецкий муниципальный район | F194: Нурский сельский совет | G194: 80611440
E195: Белорецкий муниципальный район | F195: Серменевский сельский совет | G195: 80611443
E196: Белорецкий муниципальный район | F196: Сосновский сельский совет | G196: 80611446
E197: Белорецкий муниципальный район | F197: Тирлянский сельский совет | G197: 80611448
E198: Белорецкий муниципальный район | F198: Туканский сельский совет | G198: 80611449
E199: Белорецкий муниципальный район | F199: Узянский сельский совет | G199: 80611452
E200: Белорецкий муниципальный район | F200: Шигаевский сельский совет | G200: 80611455
... 696 more rows

Sheet SheetList (hidden)
A1: Расчетные листы | B1: Скрытые листы
A2: Инструкция | B2: Columns
A3: Титульный | B3: Rows
A4: Параметры | B4: Reference
A5: Форма 1. Актив | B5: RegistryMunicipal
A6: Форма 1. Пассив | B6: SheetList
A7: Форма1. Расшифровка показателей
A8: Форма 2. Доходы-расходы
A9: Форма2. Расшифровка показателей
A10: Форма 3. Движение капитала
A11: Форма 3. Корректировки
A12: Форма 3. Чистые активы
A13: Форма 4. Отчет о ДДС
A14: Форма4. Расшифровка показателей
A15: Форма 5. НА и НИОКР
A16: Форма 5. Основные средства
A17: Форма 5. Фин.вложения и запасы
A18: Форма 5. ДиКЗ и запасы
A19: Форма 5. Обязательства
A20: Форма 5. Гос.помощь
A21: Форма 6. Отчет о ЦИС
A22: Комментарий
A23: Ошибки и предупреждения
